Workbook

Sheet MODELO PPTO.
B2: 2025 | F2: ANEXO 1
D3: PRODUCTORA | H3: PROGRAMA / SERIE
D4: NOMBRE PRODUCTORA | H4: PROGRAMA:
D6: Género: | L6: Nº capítulos: | O6: 1
L8: Duración:
H10: IMPORTE
B11: CAPÍTULO | D11: RESUMEN CAPÍTULOS PRESUPUESTADOS | H11: PRE | J11: PRO | L11: POST | N11: TOTAL
B13: 01.00.00.00 | D13: GUIÓN,MÚSICAS,COMPRA DERECHOS/PROGRAMAS | H13: =L56 -> 0 | J13: =M56 -> 0 | L13: =N56 -> 0 | N13: =O56 -> 0
B14: 02.00.00.00 | D14: PERSONAL ARTÍSTICO | H14: =L79 -> 0 | J14: =M79 -> 0 | L14: =N79 -> 0 | N14: =O79 -> 0
B15: 03.00.00.00 | D15: EQUIPO TÉCNICO | H15: =L199 -> 0 | J15: =M199 -> 0 | L15: =N199 -> 0 | N15: =O199 -> 0
B16: 04.00.00.00 | D16: ESCENOGRAFÍA | H16: =L370 -> 0 | J16: =M370 -> 0 | L16: =N370 -> 0 | N16: =O370 -> 0
B17: 05.00.00.00 | D17: =+D442 -> MAQUINARIA DE RODAJE Y TRANSPORTES. | H17: =L442 -> 0 | J17: =M442 -> 0 | L17: =N442 -> 0 | N17: =O442 -> 0
B18: 06.00.00.00 | D18: =+D527 -> VIAJES, DIETAS Y COMIDAS | H18: =L527 -> 0 | J18: =M527 -> 0 | L18: =N527 -> 0 | N18: =O527 -> 0
B19: 07.00.00.00 | D19: SOPORTES GRABACIÓN Y VARIOS PRODUCCIÓN | H19: =L566 -> 0 | J19: =M566 -> 0 | L19: =N566 -> 0 | N19: =O566 -> 0
B20: 08.00.00.00 | D20: MONTAJE, SONORIZACIÓN Y POSTPRODUCCIÓN | H20: =L595 -> 0 | J20: =M595 -> 0 | L20: =N595 -> 0 | N20: =O595 -> 0
B21: 09.00.00.00 | D21: =+D642 -> SEGUROS E IMPUESTOS | H21: =L642 -> 0 | J21: =M642 -> 0 | L21: =N642 -> 0 | N21: =O642 -> 0
B22: 10.00.00.00 | D22: =+D652 -> GASTOS GENERALES | H22: =L652 -> 0 | J22: =M652 -> 0 | L22: =N652 -> 0 | N22: =O652 -> 0
D24: TOTAL PRESUPUESTO | H24: =SUM(H13:I22) -> 0 | J24: =SUM(J13:K22) -> 0 | L24: =SUM(L13:M22) -> 0 | N24: =SUM(N13:O22) -> 0
D25: B.I. ( 10 %. TODOS CAPS. SALVO Cap.2) | H25: =(L56+L199+L370+L442+L527+L566+L595+L642+L652)*10% -> 0 | J25: =(M56+M199+M370+M442+M527+M566+M595+M642+M652)*10% -> 0 | L25: =(N56+N199+N370+N442+N527+N566+N595+N642+N652)*10% -> 0 | N25: =(O56+O199+O370+O442+O527+O566+O595+O642+O652)*10% -> 0
D26: B.I. ( 5% DEL CAP.2 ) | H26: =L79*5% -> 0 | J26: =M79*5% -> 0 | L26: =N79*5% -> 0 | N26: =O79*5% -> 0
D27: TOTAL PRESUPUESTO PROGRAMA | H27: =H24+H25+H26 -> 0 | J27: =J24+J25+J26 -> 0 | L27: =L24+L25+L26 -> 0 | N27: =N24+N25+N26 -> 0
D28: COSTE PROGRAMA/CAPÍTULO | N28: =IF(O6=0,0,N27/O6) -> 0
D29: COSTE MINUTO/CAPÍTULO | N29: =IF(N28=0,0,N28/O8) -> 0
D31: IVA:21% | N31: =N27*21% -> 0
D32: TOTAL PRESUPUESTO PROGRAMA CON IVA | N32: =N27+N31 -> 0
B34: PARTIDAS A JUSTIFICAR: | H34: OBSERVACIONES
B35: PARTIDA | C35: Capítulo | D35: CONCEPTO | E35: SUB-TOTAL
C36: =CONCATENATE(MID($C$35,1,3)," ",MID(B36,1,2)) -> Cap
C37: Cap
B38: =B79 -> 02.00.00.00. | C38: Cap 02 | D38: =D79 -> PERSONAL ARTISTICO | E38: =O79 -> 0
C39: Cap
C40: Cap
C41: Cap
B42: =B366 -> 03.13.00.00. | C42: Cap 03 | D42: =D366 -> SEGURIDAD SOCIAL EQUIPO TÉCNICO | E42: =O366 -> 0
C43: Cap
C44: Cap
C45: Cap
C46: Cap
B47: 07.02.09.00. | C47: Cap 07 | D47: PREMIOS | E47: =O585 -> 0
C48: Cap
C49: Cap
B50: % Ppto. | C50: =IF(N24=0,0,E50/N24) -> 0 | D50: TOTAL | E50: =SUM(E36:G49) -> 0
F52: VALOR | G52: T. C. | H52: Nº UNIDADES | L52: IMPORTE
B53: CAPITULO | C53: Nº | D53: CONCEPTO | E53: UNIDAD | F53: UNIDAD | G53: Tipo Contrato | H53: PRE | I53: PRO | J53: POST | K53: TOTAL | L53: PRE | M53: PRO | N53: POST | O53: TOTAL
E54: .
E55: .
B56: 01.00.00.00. | C56: CAP. 1 | D56: GUION. MUSICAS. COMPRA PROGRAMAS/DERECHOS | E56: . | H56: TOTAL CAPITULO 1 | L56: =+L57+L69 -> 0 | M56: =+M57+M69 -> 0 | N56: =+N57+N69 -> 0 | O56: =+O57+O69 -> 0
B57: 01.01.00.00. | C57: Nº | D57: Guión | E57: UNIDAD | F57: VALOR | G57: CONTRATO | H57: PRE | I57: PRO | J57: POST | K57: TOTAL | L57: =SUM(L58:L67) -> 0 | M57: =SUM(M58:M67) -> 0 | N57: =SUM(N58:N67) -> 0 | O57: =SUM(O58:O67) -> 0
B58: 01.01.01.00. | D58: Idea, argumento original | K58: =SUM(H58:J58) -> 0 | L58: =+H58*F58*C58 -> 0 | M58: =+I58*F58*C58 -> 0 | N58: =+J58*F58*C58 -> 0 | O58: =SUM(L58:N58) -> 0
B59: 01.01.02.00. | D59: Proyecto/Biblia. | K59: 0 | L59: 0 | M59: 0 | N59: =+J59*F59*C59 -> 0 | O59: 0
B60: 01.01.03.00. | D60: Guiones | G60: M | K60: 0 | L60: 0 | M60: 0 | N60: =+J60*F60*C60 -> 0 | O60: 0
B61: 01.01.03.01. | D61: Guionistas (mercantiles) | G61: M | K61: 0 | L61: 0 | M61: 0 | N61: =+J61*F61*C61 -> 0 | O61: 0
B62: 01.01.03.02. | D62: Coordinador de guiones (mercantil) | G62: M | K62: 0 | L62: 0 | M62: 0 | N62: 0 | O62: 0
B63: 01.01.04.00. | D63: Derechos de formato | F63: =(SUM(N14:N22,O69,O58:O62,O64:O67)*0/100)/O6 -> 0 | K63: 0 | L63: =+H63*F63*C63 -> 0 | M63: =+I63*F63*C63 -> 0 | N63: 0 | O63: 0
B64: 01.01.05.00. | D64: Consultoría derechos (auditor derechos formato, gastos viajes…) | K64: 0 | L64: 0 | M64: 0 | N64: 0 | O64: 0
B65: 01.01.06.00. | D65: Adquisición otros derechos | K65: =SUM(H65:J65) -> 0 | L65: =+H65*F65*C65 -> 0 | M65: =+I65*F65*C65 -> 0 | N65: =+J65*F65*C65 -> 0 | O65: =SUM(L65:N65) -> 0
B66: 01.01.07.00. | K66: 0 | L66: =+H66*F66*C66 -> 0 | M66: =+I66*F66*C66 -> 0 | N66: 0 | O66: 0
D67: Para añadir nuevas partidas, insertadlas en ESTA fila y arrastrad formulas de la fila superior | K67: 0 | L67: 0 | M67: 0 | N67: =+J67*F67*C67 -> 0 | O67: 0
E68: .
B69: 01.02.00.00. | C69: Nº | D69: Música | E69: UNIDAD | F69: VALOR | G69: CONTRATO | H69: PRE | I69: PRO | J69: POST | K69: TOTAL | L69: =SUM(L70:L77) -> 0 | M69: =SUM(M70:M77) -> 0 | N69: =SUM(N70:N77) -> 0 | O69: =SUM(O70:O77) -> 0
B70: 01.02.01.00. | D70: Derechos autor músicas y/o canciones | K70: =SUM(H70:J70) -> 0 | L70: =+H70*F70*C70 -> 0 | M70: =+I70*F70*C70 -> 0 | N70: =+J70*F70*C70 -> 0 | O70: =SUM(L70:N70) -> 0
B71: 01.02.02.00. | D71: Compositor sintonía y/o música de fondo | K71: 0 | L71: 0 | M71: 0 | N71: =+J71*F71*C71 -> 0 | O71: 0
B72: 01.02.03.00. | D72: Compositor música o canciones originales. | K72: 0 | L72: 0 | M72: 0 | N72: =+J72*F72*C72 -> 0 | O72: 0
B73: 01.02.04.00. | D73: Arreglista | K73: 0 | L73: 0 | M73: 0 | N73: =+J73*F73*C73 -> 0 | O73: 0
B74: 01.02.05.00. | D74: Copistería musical | K74: 0 | L74: 0 | M74: 0 | N74: =+J74*F74*C74 -> 0 | O74: 0
B75: 01.02.06.00. | D75: Música de librería. | K75: 0 | L75: 0 | M75: 0 | N75: =+J75*F75*C75 -> 0 | O75: 0
B76: 01.02.07.00. | K76: 0 | L76: =+H76*F76*C76 -> 0 | M76: =+I76*F76*C76 -> 0 | N76: =+J76*F76*C76 -> 0 | O76: =SUM(L76:N76) -> 0
D77: Para añadir nuevas partidas, insertadlas en ESTA fila y arrastrad formulas de la fila superior | K77: 0 | L77: 0 | M77: 0 | N77: =+J77*F77*C77 -> 0 | O77: 0
E78: .
B79: 02.00.00.00. | C79: CAP. 2 | D79: PERSONAL ARTISTICO | E79: . | H79: TOTAL CAPITULO 2 | L79: =SUM(L80+L88+L99+L117+L126+L135+L143+L154+L161+L171+L196) -> 0 | M79: =SUM(M80+M88+M99+M117+M126+M135+M143+M154+M161+M171+M196) -> 0 | N79: =SUM(N80+N88+N99+N117+N126+N135+N143+N154+N161+N171+N196) -> 0 | O79: =SUM(O80+O88+O99+O117+O126+O135+O143+O154+O161+O171+O196) -> 0
B80: 02.01.00.00. | C80: Nº | D80: Protagonistas.Presentadores. | E80: UNIDAD | F80: VALOR | G80: CONTRATO | H80: PRE | I80: PRO | J80: POST | K80: TOTAL | L80: =SUM(L81:L86) -> 0 | M80: =SUM(M81:M86) -> 0 | N80: =SUM(N81:N86) -> 0 | O80: =SUM(O81:O86) -> 0
B81: 02.01.01.00. | K81: =SUM(H81:J81) -> 0 | L81: =+H81*F81*C81 -> 0 | M81: =+I81*F81*C81 -> 0 | N81: =+J81*F81*C81 -> 0 | O81: =SUM(L81:N81) -> 0
B82: 02.01.02.00. | K82: 0 | L82: 0 | M82: 0 | N82: 0 | O82: 0
B83: 02.01.03.00. | K83: 0 | L83: 0 | M83: 0 | N83: 0 | O83: 0
B84: 02.01.04.00. | K84: 0 | L84: 0 | M84: 0 | N84: 0 | O84: 0
B85: 02.01.05.00. | K85: 0 | L85: 0 | M85: 0 | N85: 0 | O85: 0
D86: Para añadir nuevas partidas, insertadlas en ESTA fila y arrastrad formulas de la fila superior | K86: 0 | L86: 0 | M86: 0 | N86: 0 | O86: 0
E87: .
B88: 02.02.00.00. | C88: Nº | D88: Principales. | E88: UNIDAD | F88: VALOR | G88: CONTRATO | H88: PRE | I88: PRO | J88: POST | K88: TOTAL | L88: =SUM(L89:L97) -> 0 | M88: =SUM(M89:M97) -> 0 | N88: =SUM(N89:N97) -> 0 | O88: =SUM(O89:O97) -> 0
B89: 02.02.01.00. | K89: =SUM(H89:J89) -> 0 | L89: =+H89*F89*C89 -> 0 | M89: =+I89*F89*C89 -> 0 | N89: =+J89*F89*C89 -> 0 | O89: =SUM(L89:N89) -> 0
B90: 02.02.02.00. | K90: 0 | L90: 0 | M90: 0 | N90: 0 | O90: 0
B91: 02.02.03.00. | K91: 0 | L91: 0 | M91: 0 | N91: 0 | O91: 0
B92: 02.02.04.00. | K92: 0 | L92: 0 | M92: 0 | N92: 0 | O92: 0
B93: 02.02.05.00. | K93: 0 | L93: 0 | M93: 0 | N93: 0 | O93: 0
B94: 02.02.06.00. | K94: =SUM(H94:J94) -> 0 | L94: =+H94*F94*C94 -> 0 | M94: =+I94*F94*C94 -> 0 | N94: =+J94*F94*C94 -> 0 | O94: =SUM(L94:N94) -> 0
B95: 02.02.07.00. | K95: 0 | L95: 0 | M95: 0 | N95: 0 | O95: 0
K96: =SUM(H96:J96) -> 0 | L96: =+H96*F96*C96 -> 0 | M96: =+I96*F96*C96 -> 0 | N96: =+J96*F96*C96 -> 0 | O96: =SUM(L96:N96) -> 0
D97: Para añadir nuevas partidas, insertadlas en ESTA fila y arrastrad formulas de la fila superior | K97: 0 | L97: 0 | M97: 0 | N97: 0 | O97: 0
E98: .
B99: 02.03.00.00. | C99: Nº | D99: Secundarios.Colaboraciones especiales o Actores Invitados | E99: UNIDAD | F99: VALOR | G99: CONTRATO | H99: PRE | I99: PRO | J99: POST | K99: TOTAL | L99: =SUM(L100:L115) -> 0 | M99: =SUM(M100:M115) -> 0 | N99: =SUM(N100:N115) -> 0 | O99: =SUM(O100:O115) -> 0
B100: 02.03.01.00. | K100: =SUM(H100:J100) -> 0 | L100: =+H100*F100*C100 -> 0 | M100: =+I100*F100*C100 -> 0 | N100: =+J100*F100*C100 -> 0 | O100: =SUM(L100:N100) -> 0
B101: 02.03.02.00. | K101: 0 | L101: 0 | M101: 0 | N101: 0 | O101: 0
B102: 02.03.03.00. | K102: 0 | L102: 0 | M102: 0 | N102: 0 | O102: 0
B103: 02.03.04.00. | K103: 0 | L103: 0 | M103: 0 | N103: 0 | O103: 0
B104: 02.03.05.00. | K104: 0 | L104: 0 | M104: 0 | N104: 0 | O104: 0
B105: 02.03.06.00. | K105: 0 | L105: 0 | M105: 0 | N105: 0 | O105: 0
B106: 02.03.07.00. | K106: 0 | L106: 0 | M106: 0 | N106: 0 | O106: 0
B107: 02.03.08.00. | K107: 0 | L107: 0 | M107: 0 | N107: 0 | O107: 0
B108: 02.03.09.00. | K108: 0 | L108: 0 | M108: 0 | N108: 0 | O108: 0
B109: 02.03.10.00. | K109: 0 | L109: 0 | M109: 0 | N109: 0 | O109: 0
B110: 02.03.11.00. | K110: 0 | L110: 0 | M110: 0 | N110: 0 | O110: 0
B111: 02.03.12.00. | K111: 0 | L111: 0 | M111: 0 | N111: 0 | O111: 0
B112: 02.03.13.00. | K112: 0 | L112: 0 | M112: 0 | N112: 0 | O112: 0
B113: 02.03.14.00. | K113: 0 | L113: 0 | M113: 0 | N113: 0 | O113: 0
B114: 02.03.15.00. | K114: 0 | L114: 0 | M114: 0 | N114: 0 | O114: 0
D115: Para añadir nuevas partidas, insertadlas en ESTA fila y arrastrad formulas de la fila superior | K115: 0 | L115: 0 | M115: 0 | N115: 0 | O115: 0
E116: .
B117: 02.04.00.00. | C117: Nº | D117: Pequeñas partes.(Episódicos) | E117: UNIDAD | F117: VALOR | G117: CONTRATO | H117: PRE | I117: PRO | J117: POST | K117: TOTAL | L117: =SUM(L118:L124) -> 0 | M117: =SUM(M118:M124) -> 0 | N117: =SUM(N118:N124) -> 0 | O117: =SUM(O118:O124) -> 0
B118: 02.04.01.00. | K118: =SUM(H118:J118) -> 0 | L118: =+H118*F118*C118 -> 0 | M118: =+I118*F118*C118 -> 0 | N118: =+J118*F118*C118 -> 0 | O118: =SUM(L118:N118) -> 0
B119: 02.04.02.00. | K119: 0 | L119: 0 | M119: 0 | N119: 0 | O119: 0
B120: 02.04.03.00. | K120: 0 | L120: 0 | M120: 0 | N120: 0 | O120: 0
B121: 02.04.04.00. | K121: 0 | L121: 0 | M121: 0 | N121: 0 | O121: 0
B122: 02.04.05.00. | K122: 0 | L122: 0 | M122: 0 | N122: 0 | O122: 0
B123: 02.04.06.00. | K123: 0 | L123: 0 | M123: 0 | N123: 0 | O123: 0
D124: Para añadir nuevas partidas, insertadlas en ESTA fila y arrastrad formulas de la fila superior | K124: 0 | L124: 0 | M124: 0 | N124: 0 | O124: 0
E125: .
B126: 02.05.00.00. | C126: Nº | D126: Figuración y público. | E126: UNIDAD | F126: VALOR | G126: CONTRATO | H126: PRE | I126: PRO | J126: POST | K126: TOTAL | L126: =SUM(L127:L133) -> 0 | M126: =SUM(M127:M133) -> 0 | N126: =SUM(N127:N133) -> 0 | O126: =SUM(O127:O133) -> 0
B127: 02.05.01.00. | D127: Figuración Especial | K127: =SUM(H127:J127) -> 0 | L127: =+H127*F127*C127 -> 0 | M127: =+I127*F127*C127 -> 0 | N127: =+J127*F127*C127 -> 0 | O127: =SUM(L127:N127) -> 0
B128: 02.05.02.00. | D128: Figuración normal | K128: 0 | L128: 0 | M128: 0 | N128: 0 | O128: 0
B129: 02.05.03.00. | D129: Dobles | K129: 0 | L129: 0 | M129: 0 | N129: 0 | O129: 0
B130: 02.05.04.00. | D130: Azafatas de imagen | K130: 0 | L130: 0 | M130: 0 | N130: 0 | O130: 0
B131: 02.05.05.00. | D131: Público | K131: 0 | L131: 0 | M131: 0 | N131: 0 | O131: 0
B132: 02.05.06.00. | K132: 0 | L132: 0 | M132: 0 | N132: 0 | O132: 0
D133: Para añadir nuevas partidas, insertadlas en ESTA fila y arrastrad formulas de la fila superior | K133: =SUM(H133:J133) -> 0 | L133: =+H133*F133*C133 -> 0 | M133: =+I133*F133*C133 -> 0 | N133: =+J133*F133*C133 -> 0 | O133: =SUM(L133:N133) -> 0
E134: .
B135: 02.06.00.00. | C135: Nº | D135: Especialistas. | E135: UNIDAD | F135: VALOR | G135: CONTRATO | H135: PRE | I135: PRO | J135: POST | K135: TOTAL | L135: =SUM(L136:L141) -> 0 | M135: =SUM(M136:M141) -> 0 | N135: =SUM(N136:N141) -> 0 | O135: =SUM(O136:O141) -> 0
B136: 02.06.01.00. | D136: Dobles de acción | K136: =SUM(H136:J136) -> 0 | L136: =+H136*F136*C136 -> 0 | M136: =+I136*F136*C136 -> 0 | N136: =+J136*F136*C136 -> 0 | O136: =SUM(L136:N136) -> 0
B137: 02.06.02.00. | D137: Maestro de armas/Jefe de especialistas. | K137: 0 | L137: 0 | M137: 0 | N137: 0 | O137: 0
B138: 02.06.03.00. | D138: Especialistas. | K138: 0 | L138: 0 | M138: 0 | N138: 0 | O138: 0
B139: 02.06.04.00. | D139: Caballistas. | K139: 0 | L139: 0 | M139: 0 | N139: 0 | O139: 0
B140: 02.06.05.00. | D140: Profesores/tutores menores | K140: =SUM(H140:J140) -> 0 | L140: =+H140*F140*C140 -> 0 | M140: =+I140*F140*C140 -> 0 | N140: =+J140*F140*C140 -> 0 | O140: =SUM(L140:N140) -> 0
D141: Para añadir nuevas partidas, insertadlas en ESTA fila y arrastrad formulas de la fila superior | K141: 0 | L141: 0 | M141: 0 | N141: 0 | O141: 0
E142: .
B143: 02.07.00.00. | C143: Nº | D143: Ballet y Orquestas. | E143: UNIDAD | F143: VALOR | G143: CONTRATO | H143: PRE | I143: PRO | J143: POST | K143: TOTAL | L143: =SUM(L144:L152) -> 0 | M143: =SUM(M144:M152) -> 0 | N143: =SUM(N144:N152) -> 0 | O143: =SUM(O144:O152) -> 0
B144: 02.07.01.00. | D144: Coreógrafo. | K144: =SUM(H144:J144) -> 0 | L144: =+H144*F144*C144 -> 0 | M144: =+I144*F144*C144 -> 0 | N144: =+J144*F144*C144 -> 0 | O144: =SUM(L144:N144) -> 0
B145: 02.07.02.00. | D145: Ayudante coreógrafo | K145: 0 | L145: 0 | M145: 0 | N145: 0 | O145: 0
B146: 02.07.03.00. | D146: Bailarines | K146: 0 | L146: 0 | M146: 0 | N146: 0 | O146: 0
B147: 02.07.04.00. | D147: Modelos | K147: 0 | L147: 0 | M147: 0 | N147: 0 | O147: 0
B148: 02.07.05.00. | D148: Orquestas/Grupos musicales. | K148: 0 | L148: 0 | M148: 0 | N148: 0 | O148: 0
B149: 02.07.06.00. | D149: Coros en escena. | K149: 0 | L149: 0 | M149: 0 | N149: 0 | O149: 0
B150: 02.07.07.00. | D150: Músicos de escena live/playback | K150: 0 | L150: 0 | M150: 0 | N150: 0 | O150: 0
B151: 02.07.08.00. | D151: Otras actuaciones musicales. | K151: =SUM(H151:J151) -> 0 | L151: =+H151*F151*C151 -> 0 | M151: =+I151*F151*C151 -> 0 | N151: =+J151*F151*C151 -> 0 | O151: =SUM(L151:N151) -> 0
D152: Para añadir nuevas partidas, insertadlas en ESTA fila y arrastrad formulas de la fila superior | K152: 0 | L152: 0 | M152: 0 | N152: 0 | O152: 0
E153: .
B154: 02.08.00.00. | C154: Nº | D154: Doblaje y efectos sonoros. | E154: UNIDAD | F154: VALOR | G154: CONTRATO | H154: PRE | I154: PRO | J154: POST | K154: TOTAL | L154: =SUM(L155:L159) -> 0 | M154: =SUM(M155:M159) -> 0 | N154: =SUM(N155:N159) -> 0 | O154: =SUM(O155:O159) -> 0
B155: 02.08.01.00. | D155: Director de doblaje . | K155: =SUM(H155:J155) -> 0 | L155: =+H155*F155*C155 -> 0 | M155: =+I155*F155*C155 -> 0 | N155: =+J155*F155*C155 -> 0 | O155: =SUM(L155:N155) -> 0
B156: 02.08.02.00. | D156: Dobladores. | K156: 0 | L156: 0 | M156: 0 | N156: 0 | O156: 0
B157: 02.08.03.00. | D157: Locutores/Comentaristas en off. | K157: 0 | L157: 0 | M157: 0 | N157: 0 | O157: 0
B158: 02.08.04.00. | D158: Efectos sala. | K158: 0 | L158: 0 | M158: 0 | N158: 0 | O158: 0
D159: Para añadir nuevas partidas, insertadlas en ESTA fila y arrastrad formulas de la fila superior | K159: 0 | L159: 0 | M159: 0 | N159: 0 | O159: 0
E160: .
B161: 02.09.00.00. | C161: Nº | D161: Varios programas. | E161: UNIDAD | F161: VALOR | G161: CONTRATO | H161: PRE | I161: PRO | J161: POST | K161: TOTAL | L161: =SUM(L162:L169) -> 0 | M161: =SUM(M162:M169) -> 0 | N161: =SUM(N162:N169) -> 0 | O161: =SUM(O162:O169) -> 0
B162: 02.09.01.00. | D162: Actuaciones especiales. | K162: =SUM(H162:J162) -> 0 | L162: =+H162*F162*C162 -> 0 | M162: =+I162*F162*C162 -> 0 | N162: =+J162*F162*C162 -> 0 | O162: =SUM(L162:N162) -> 0
B163: 02.09.02.00. | D163: Concursantes. | K163: 0 | L163: 0 | M163: 0 | N163: 0 | O163: 0
B164: 02.09.03.00. | D164: Invitados nacionales | K164: 0 | L164: 0 | M164: 0 | N164: 0 | O164: 0
B165: 02.09.04.00. | D165: Invitados internacionales. | K165: 0 | L165: 0 | M165: 0 | N165: 0 | O165: 0
B166: 02.09.05.00. | D166: Invitados VIP. | K166: 0 | L166: 0 | M166: 0 | N166: 0 | O166: 0
B167: 02.09.06.00. | D167: Jurados | K167: 0 | L167: 0 | M167: 0 | N167: 0 | O167: 0
B168: 02.09.07.00. | D168: Colaboraciones específicas. | K168: =SUM(H168:J168) -> 0 | L168: =+H168*F168*C168 -> 0 | M168: =+I168*F168*C168 -> 0 | N168: =+J168*F168*C168 -> 0 | O168: =SUM(L168:N168) -> 0
D169: Para añadir nuevas partidas, insertadlas en ESTA fila y arrastrad formulas de la fila superior | K169: =SUM(H169:J169) -> 0 | L169: =+H169*F169*C169 -> 0 | M169: =+I169*F169*C169 -> 0 | N169: =+J169*F169*C169 -> 0 | O169: =SUM(L169:N169) -> 0
E170: .
B171: 02.10.00.00. | C171: Nº | D171: Gastos personal Artístico e Invitados | E171: UNIDAD | F171: VALOR | G171: CONTRATO | H171: PRE | I171: PRO | J171: POST | K171: TOTAL | L171: =SUM(L172:L194) -> 0 | M171: =SUM(M172:M194) -> 0 | N171: =SUM(N172:N194) -> 0 | O171: =SUM(O172:O194) -> 0
B172: 02.10.01.00. | D172: Viajes Presentador | K172: =SUM(H172:J172) -> 0 | L172: =+H172*F172*C172 -> 0 | M172: =+I172*F172*C172 -> 0 | N172: =+J172*F172*C172 -> 0 | O172: =SUM(L172:N172) -> 0
B173: 02.10.01.01. | D173: Viajes | K173: 0 | L173: 0 | M173: 0 | N173: 0 | O173: 0
B174: 02.10.01.02. | D174: Viajes Invitados | K174: 0 | L174: 0 | M174: 0 | N174: 0 | O174: 0
B175: 02.10.01.03. | D175: Viajes Concursantes | K175: 0 | L175: 0 | M175: 0 | N175: 0 | O175: 0
B176: 02.10.02.00. | D176: Hoteles Presentador | K176: 0 | L176: 0 | M176: 0 | N176: 0 | O176: 0
B177: 02.10.02.01. | D177: Hoteles | K177: 0 | L177: 0 | M177: 0 | N177: 0 | O177: 0
B178: 02.10.02.02. | D178: Hoteles Invitados | K178: 0 | L178: 0 | M178: 0 | N178: 0 | O178: 0
B179: 02.10.02.03. | D179: Hoteles Concursantes | K179: 0 | L179: 0 | M179: 0 | N179: 0 | O179: 0
B180: 02.10.03.00. | D180: Transportes (Taxis y otros) | K180: 0 | L180: 0 | M180: 0 | N180: 0 | O180: 0
B181: 02.10.04.00. | D181: Alquiler Transporte | K181: 0 | L181: 0 | M181: 0 | N181: 0 | O181: 0
B182: 02.10.04.01. | D182: Alquiler Transporte Concursantes | K182: 0 | L182: 0 | M182: 0 | N182: 0 | O182: 0
B183: 02.10.05.00. | D183: Comidas y/ó cenas - Personal Artístico | K183: 0 | L183: 0 | M183: 0 | N183: 0 | O183: 0
B184: 02.10.05.01. | D184: Comidas de figuración. | K184: 0 | L184: 0 | M184: 0 | N184: 0 | O184: 0
B185: 02.10.05.02. | D185: Comidas - Catering Invitados | K185: 0 | L185: 0 | M185: 0 | N185: 0 | O185: 0
B186: 02.10.06.00. | D186: Gastos Presentador | K186: 0 | L186: 0 | M186: 0 | N186: 0 | O186: 0
B187: 02.10.07.00. | D187: Gastos Concursantes. | K187: 0 | L187: 0 | M187: 0 | N187: 0 | O187: 0
B188: 02.10.08.00. | D188: Gastos Invitados | K188: 0 | L188: 0 | M188: 0 | N188: 0 | O188: 0
B189: 02.10.09.00. | D189: Gastos Artistas | K189: 0 | L189: 0 | M189: 0 | N189: 0 | O189: 0
B190: 02.10.10.00. | D190: DIETAS - Nº Actores en: | K190: 0 | L190: 0 | M190: 0 | N190: 0 | O190: 0
B191: 02.10.11.00. | D191: DIETAS - Presentador | K191: 0 | L191: 0 | M191: 0 | N191: 0 | O191: 0
B192: 02.10.12.00. | K192: 0 | L192: 0 | M192: 0 | N192: 0 | O192: 0
B193: 02.10.13.00. | K193: 0 | L193: 0 | M193: 0 | N193: 0 | O193: 0
D194: Para añadir nuevas partidas, insertadlas en ESTA fila y arrastrad formulas de la fila superior | K194: 0 | L194: 0 | M194: 0 | N194: 0 | O194: 0
E195: .
B196: 02.11.00.00 | D196: SEGURIDAD SOCIAL PERSONAL ARTÍSTICO | E196: .. | L196: ='SEG. SOCIAL ARTISTAS'!L98 -> 0 | M196: ='SEG. SOCIAL ARTISTAS'!M98 -> 0 | N196: ='SEG. SOCIAL ARTISTAS'!N98 -> 0 | O196: ='SEG. SOCIAL ARTISTAS'!O98 -> 0
E197: .
E198: . | P198: CALENDARIO
B199: 03.00.00.00 | C199: CAP. 3 | D199: EQUIPO TECNICO | E199: . | H199: TOTAL CAPITULO 3 | L199: =SUM(L200+L222+L246+L266+L280+L288+L296+L303+L310+L319+L334+L346+L366+L367+L368) -> 0 | M199: =SUM(M200+M222+M246+M266+M280+M288+M296+M303+M310+M319+M334+M346+M366+M367+M368) -> 0 | N199: =SUM(N200+N222+N246+N266+N280+N288+N296+N303+N310+N319+N334+N346+N366+N367+N368) -> 0 | O199: =SUM(O200+O222+O246+O266+O280+O288+O296+O303+O310+O319+O334+O346+O366+O367+O368) -> 0 | P199: PREPRODUCCIÓN | V199: PRODUCCIÓN | AB199: POST - PRODUCCIÓN | AH199: TOTALES
B200: 03.01.00.00. | C200: Nº | D200: Dirección y realización | E200: UNIDAD | F200: VALOR | G200: CONTRATO | H200: PRE | I200: PRO | J200: POST | K200: TOTAL | L200: =SUM(L201:L220) -> 0 | M200: =SUM(M201:M220) -> 0 | N200: =SUM(N201:N220) -> 0 | O200: =SUM(O201:O220) -> 0 | P200: F.INICIO | Q200: F.FIN | R200: Días Lab. | S200: T. Días | T200: T.SEM. | U200: T.MESES | V200: F.INICIO | W200: F.FIN | X200: Días Lab. | Y200: T. Días | Z200: T.SEM. | AA200: T.MESES | AB200: F.INICIO | AC200: F.FIN | AD200: Días Lab. | AE200: T. Días | AF200: T.SEM. | AG200: T.MESES | AH200: Días Lab. | AI200: Días | AJ200: SEM. | AK200: MESES
B201: 03.01.01.00. | D201: Director/es | G201: - | H201: =U201 -> 0 | I201: =AA201 -> 0 | J201: =AG201 -> 0 | K201: =SUM(H201:J201) -> 0 | L201: =+H201*F201*C201 -> 0 | M201: =+I201*F201*C201 -> 0 | N201: =+J201*F201*C201 -> 0 | O201: =SUM(L201:N201) -> 0 | R201: =NETWORKDAYS(P201,Q201) -> 0 | S201: =IF(AND(ISBLANK(P201),ISBLANK(Q201)),0,_xlfn.DAYS(Q201,P201)+1) -> 0 | T201: =(+S201/7) -> 0 | U201: =IF(AND(ISBLANK(P201),ISBLANK(Q201)),0,T201/(52/12)) -> 0 | X201: =NETWORKDAYS(V201,W201) -> 0 | Y201: =IF(AND(ISBLANK(V201),ISBLANK(W201)),0,_xlfn.DAYS(W201,V201)+1) -> 0 | Z201: =(+Y201/7) -> 0 | AA201: =IF(AND(ISBLANK(V201),ISBLANK(W201)),0,Z201/(52/12)) -> 0 | AD201: =NETWORKDAYS(AB201,AC201) -> 0 | AE201: =IF(AND(ISBLANK(AB201),ISBLANK(AC201)),0,_xlfn.DAYS(AC201,AB201)+1) -> 0 | AF201: =(+AE201/7) -> 0 | AG201: =IF(AND(ISBLANK(AB201),ISBLANK(AC201)),0,AF201/(52/12)) -> 0 | AH201: =+R201+X201+AD201 -> 0 | AI201: =S201+Y201+AE201 -> 0 | AJ201: =T201+Z201+AF201 -> 0 | AK201: =U201+AA201+AG201 -> 0
B202: 03.01.01.01. | D202: Sub-Director | G202: - | H202: =U202 -> 0 | I202: =AA202 -> 0 | J202: =AG202 -> 0 | K202: 0 | L202: 0 | M202: 0 | N202: 0 | O202: 0 | R202: =NETWORKDAYS(P202,Q202) -> 0 | S202: =IF(AND(ISBLANK(P202),ISBLANK(Q202)),0,_xlfn.DAYS(Q202,P202)+1) -> 0 | T202: =(+S202/7) -> 0 | U202: =IF(AND(ISBLANK(P202),ISBLANK(Q202)),0,T202/(52/12)) -> 0 | X202: =NETWORKDAYS(V202,W202) -> 0 | Y202: 0 | Z202: 0 | AA202: =IF(AND(ISBLANK(V202),ISBLANK(W202)),0,Z202/(52/12)) -> 0 | AD202: =NETWORKDAYS(AB202,AC202) -> 0 | AE202: =IF(AND(ISBLANK(AB202),ISBLANK(AC202)),0,_xlfn.DAYS(AC202,AB202)+1) -> 0 | AF202: =(+AE202/7) -> 0 | AG202: =IF(AND(ISBLANK(AB202),ISBLANK(AC202)),0,AF202/(52/12)) -> 0 | AH202: =+R202+X202+AD202 -> 0 | AI202: 0 | AJ202: 0 | AK202: 0
B203: 03.01.02.00. | D203: Primer Ayte. de dirección | G203: - | H203: 0 | I203: 0 | J203: 0 | K203: 0 | L203: 0 | M203: 0 | N203: 0 | O203: 0 | R203: 0 | S203: =IF(AND(ISBLANK(P203),ISBLANK(Q203)),0,_xlfn.DAYS(Q203,P203)+1) -> 0 | T203: 0 | U203: =IF(AND(ISBLANK(P203),ISBLANK(Q203)),0,T203/(52/12)) -> 0 | X203: 0 | Y203: 0 | Z203: 0 | AA203: =IF(AND(ISBLANK(V203),ISBLANK(W203)),0,Z203/(52/12)) -> 0 | AD203: 0 | AE203: 0 | AF203: 0 | AG203: =IF(AND(ISBLANK(AB203),ISBLANK(AC203)),0,AF203/(52/12)) -> 0 | AH203: 0 | AI203: 0 | AJ203: 0 | AK203: 0
B204: 03.01.03.00. | D204: Segundo Ayte dirección | G204: - | H204: =U204 -> 0 | I204: =AA204 -> 0 | J204: =AG204 -> 0 | K204: 0 | L204: 0 | M204: 0 | N204: 0 | O204: 0 | R204: 0 | S204: 0 | T204: 0 | U204: 0 | X204: 0 | Y204: 0 | Z204: 0 | AA204: 0 | AD204: 0 | AE204: 0 | AF204: 0 | AG204: 0 | AH204: 0 | AI204: 0 | AJ204: 0 | AK204: 0
B205: 03.01.02.01. | D205: Primer Ayte. Dccon papeles | G205: - | H205: 0 | I205: 0 | J205: 0 | K205: 0 | L205: 0 | M205: 0 | N205: 0 | O205: 0 | R205: 0 | S205: 0 | T205: 0 | U205: 0 | X205: 0 | Y205: 0 | Z205: 0 | AA205: 0 | AD205: 0 | AE205: 0 | AF205: 0 | AG205: 0 | AH205: 0 | AI205: 0 | AJ205: 0 | AK205: 0
B206: 03.01.03.01. | D206: Segundo Ayte. Dccon papeles | G206: - | H206: 0 | I206: 0 | J206: 0 | K206: 0 | L206: 0 | M206: 0 | N206: 0 | O206: 0 | R206: 0 | S206: 0 | T206: 0 | U206: 0 | X206: 0 | Y206: 0 | Z206: 0 | AA206: 0 | AD206: 0 | AE206: 0 | AF206: 0 | AG206: 0 | AH206: 0 | AI206: 0 | AJ206: 0 | AK206: 0
B207: 03.01.04.00. | D207: Auxiliar de dirección. | G207: - | H207: 0 | I207: 0 | J207: 0 | K207: 0 | L207: 0 | M207: 0 | N207: 0 | O207: 0 | R207: 0 | S207: 0 | T207: 0 | U207: 0 | X207: 0 | Y207: 0 | Z207: 0 | AA207: 0 | AD207: 0 | AE207: 0 | AF207: 0 | AG207: 0 | AH207: 0 | AI207: 0 | AJ207: 0 | AK207: 0
B208: 03.01.05.00. | D208: Secretario/a de rodaje, Script | G208: - | H208: 0 | I208: 0 | J208: 0 | K208: 0 | L208: 0 | M208: 0 | N208: 0 | O208: 0 | R208: 0 | S208: 0 | T208: 0 | U208: 0 | X208: 0 | Y208: 0 | Z208: 0 | AA208: 0 | AD208: 0 | AE208: 0 | AF208: 0 | AG208: 0 | AH208: 0 | AI208: 0 | AJ208: 0 | AK208: 0
B209: 03.01.06.00. | D209: Director de Casting. | G209: - | H209: 0 | I209: 0 | J209: 0 | K209: 0 | L209: 0 | M209: 0 | N209: 0 | O209: 0 | R209: 0 | S209: 0 | T209: 0 | U209: 0 | X209: 0 | Y209: 0 | Z209: 0 | AA209: 0 | AD209: 0 | AE209: 0 | AF209: 0 | AG209: 0 | AH209: 0 | AI209: 0 | AJ209: 0 | AK209: 0
... 608 more rows

Sheet SEG. SOCIAL ARTISTAS
A1: ='MODELO PPTO.'!B2 -> 2025 | B1: CÁLCULO COSTES SEGURIDAD SOCIAL ARTISTAS | D1: ¡ OJO, LA PRODUCTORA DEBE CALCULAR EL TOTAL DE LA COLUMNA SOMBREADA EN NARANJA !
B3: ='MODELO PPTO.'!H4 -> PROGRAMA:
D5: T.C (1) | E5: MEDIDA (2) | G5: Nª UNIDADES | K5: SALARIOS | L5: COSTE SEGURIDAD SOCIAL EMPRESA | O5: TOTAL (4)
A6: 02.00.00.00. | B6: Nº | C6: ='MODELO PPTO.'!D79 -> PERSONAL ARTISTICO | E6: Unidad | F6: Valor | G6: Pre | H6: Pro | I6: Post | J6: TOTAL | K6: TOTAL | L6: Pre | M6: Pro | N6: Post
A8: ='MODELO PPTO.'!B80 -> 02.01.00.00. | C8: Protagonistas.Presentadores. | K8: ='MODELO PPTO.'!O80 -> 0 | L8: =SUM(L9:L14) -> 0 | M8: =SUM(M9:M14) -> 0 | N8: =SUM(N9:N14) -> 0 | O8: =SUM(O9:O14) -> 0
A9: ='MODELO PPTO.'!B81 -> 02.01.01.00. | B9: ='MODELO PPTO.'!C81 -> 0 | C9: =IF('MODELO PPTO.'!D81<>"",'MODELO PPTO.'!D81,"") ->  | D9: ='MODELO PPTO.'!G81 -> 0 | E9: ='MODELO PPTO.'!E81 -> 0 | F9: ='MODELO PPTO.'!F81 -> 0 | G9: ='MODELO PPTO.'!H81 -> 0 | H9: ='MODELO PPTO.'!I81 -> 0 | I9: ='MODELO PPTO.'!J81 -> 0 | J9: ='MODELO PPTO.'!K81 -> 0 | K9: ='MODELO PPTO.'!O81 -> 0 | L9: =IF(O9=0,0,(O9*G9)/J9) -> 0 | M9: =IF(O9=0,0,(O9*H9)/J9) -> 0 | N9: =IF(O9=0,0,(O9*I9)/J9) -> 0
A10: ='MODELO PPTO.'!B82 -> 02.01.02.00. | B10: ='MODELO PPTO.'!C82 -> 0 | C10: =IF('MODELO PPTO.'!D82<>"",'MODELO PPTO.'!D82,"") ->  | D10: ='MODELO PPTO.'!G82 -> 0 | E10: ='MODELO PPTO.'!E82 -> 0 | F10: ='MODELO PPTO.'!F82 -> 0 | G10: ='MODELO PPTO.'!H82 -> 0 | H10: ='MODELO PPTO.'!I82 -> 0 | I10: ='MODELO PPTO.'!J82 -> 0 | J10: ='MODELO PPTO.'!K82 -> 0 | K10: ='MODELO PPTO.'!O82 -> 0 | L10: =IF(O10=0,0,(O10*G10)/J10) -> 0 | M10: =IF(O10=0,0,(O10*H10)/J10) -> 0 | N10: =IF(O10=0,0,(O10*I10)/J10) -> 0
A11: ='MODELO PPTO.'!B83 -> 02.01.03.00. | B11: ='MODELO PPTO.'!C83 -> 0 | C11: =IF('MODELO PPTO.'!D83<>"",'MODELO PPTO.'!D83,"") ->  | D11: ='MODELO PPTO.'!G83 -> 0 | E11: ='MODELO PPTO.'!E83 -> 0 | F11: ='MODELO PPTO.'!F83 -> 0 | G11: ='MODELO PPTO.'!H83 -> 0 | H11: ='MODELO PPTO.'!I83 -> 0 | I11: ='MODELO PPTO.'!J83 -> 0 | J11: ='MODELO PPTO.'!K83 -> 0 | K11: ='MODELO PPTO.'!O83 -> 0 | L11: 0 | M11: 0 | N11: 0
A12: ='MODELO PPTO.'!B84 -> 02.01.04.00. | B12: ='MODELO PPTO.'!C84 -> 0 | C12: =IF('MODELO PPTO.'!D84<>"",'MODELO PPTO.'!D84,"") ->  | D12: ='MODELO PPTO.'!G84 -> 0 | E12: ='MODELO PPTO.'!E84 -> 0 | F12: ='MODELO PPTO.'!F84 -> 0 | G12: ='MODELO PPTO.'!H84 -> 0 | H12: ='MODELO PPTO.'!I84 -> 0 | I12: ='MODELO PPTO.'!J84 -> 0 | J12: ='MODELO PPTO.'!K84 -> 0 | K12: ='MODELO PPTO.'!O84 -> 0 | L12: 0 | M12: 0 | N12: 0
A13: ='MODELO PPTO.'!B85 -> 02.01.05.00. | B13: ='MODELO PPTO.'!C85 -> 0 | C13: =IF('MODELO PPTO.'!D85<>"",'MODELO PPTO.'!D85,"") ->  | D13: ='MODELO PPTO.'!G85 -> 0 | E13: ='MODELO PPTO.'!E85 -> 0 | F13: ='MODELO PPTO.'!F85 -> 0 | G13: ='MODELO PPTO.'!H85 -> 0 | H13: ='MODELO PPTO.'!I85 -> 0 | I13: ='MODELO PPTO.'!J85 -> 0 | J13: ='MODELO PPTO.'!K85 -> 0 | K13: ='MODELO PPTO.'!O85 -> 0 | L13: 0 | M13: 0 | N13: 0
A14: ='MODELO PPTO.'!B86 -> 0 | B14: ='MODELO PPTO.'!C86 -> 0 | C14: =IF('MODELO PPTO.'!D86<>"",'MODELO PPTO.'!D86,"") -> Para añadir nuevas partidas, insertadlas en ESTA fila y arrastrad formulas de la fila superior | D14: ='MODELO PPTO.'!G86 -> 0 | E14: ='MODELO PPTO.'!E86 -> 0 | F14: ='MODELO PPTO.'!F86 -> 0 | G14: ='MODELO PPTO.'!H86 -> 0 | H14: ='MODELO PPTO.'!I86 -> 0 | I14: ='MODELO PPTO.'!J86 -> 0 | J14: ='MODELO PPTO.'!K86 -> 0 | K14: ='MODELO PPTO.'!O86 -> 0 | L14: 0 | M14: 0 | N14: 0
A16: ='MODELO PPTO.'!B88 -> 02.02.00.00. | C16: Principales. | K16: ='MODELO PPTO.'!O88 -> 0 | L16: =SUM(L17:L24) -> 0 | M16: =SUM(M17:M24) -> 0 | N16: =SUM(N17:N24) -> 0 | O16: =SUM(O17:O24) -> 0
A17: ='MODELO PPTO.'!B89 -> 02.02.01.00. | B17: ='MODELO PPTO.'!C89 -> 0 | C17: =IF('MODELO PPTO.'!D89<>"",'MODELO PPTO.'!D89,"") ->  | D17: ='MODELO PPTO.'!G89 -> 0 | E17: ='MODELO PPTO.'!E89 -> 0 | F17: ='MODELO PPTO.'!F89 -> 0 | G17: ='MODELO PPTO.'!H89 -> 0 | H17: ='MODELO PPTO.'!I89 -> 0 | I17: ='MODELO PPTO.'!J89 -> 0 | J17: ='MODELO PPTO.'!K89 -> 0 | K17: ='MODELO PPTO.'!O89 -> 0 | L17: =IF(O17=0,0,(O17*G17)/J17) -> 0 | M17: =IF(O17=0,0,(O17*H17)/J17) -> 0 | N17: =IF(O17=0,0,(O17*I17)/J17) -> 0
A18: ='MODELO PPTO.'!B90 -> 02.02.02.00. | B18: ='MODELO PPTO.'!C90 -> 0 | C18: =IF('MODELO PPTO.'!D90<>"",'MODELO PPTO.'!D90,"") ->  | D18: ='MODELO PPTO.'!G90 -> 0 | E18: ='MODELO PPTO.'!E90 -> 0 | F18: ='MODELO PPTO.'!F90 -> 0 | G18: ='MODELO PPTO.'!H90 -> 0 | H18: ='MODELO PPTO.'!I90 -> 0 | I18: ='MODELO PPTO.'!J90 -> 0 | J18: ='MODELO PPTO.'!K90 -> 0 | K18: ='MODELO PPTO.'!O90 -> 0 | L18: =IF(O18=0,0,(O18*G18)/J18) -> 0 | M18: =IF(O18=0,0,(O18*H18)/J18) -> 0 | N18: =IF(O18=0,0,(O18*I18)/J18) -> 0
A19: ='MODELO PPTO.'!B91 -> 02.02.03.00. | B19: ='MODELO PPTO.'!C91 -> 0 | C19: =IF('MODELO PPTO.'!D91<>"",'MODELO PPTO.'!D91,"") ->  | D19: ='MODELO PPTO.'!G91 -> 0 | E19: ='MODELO PPTO.'!E91 -> 0 | F19: ='MODELO PPTO.'!F91 -> 0 | G19: ='MODELO PPTO.'!H91 -> 0 | H19: ='MODELO PPTO.'!I91 -> 0 | I19: ='MODELO PPTO.'!J91 -> 0 | J19: ='MODELO PPTO.'!K91 -> 0 | K19: ='MODELO PPTO.'!O91 -> 0 | L19: 0 | M19: 0 | N19: 0
A20: ='MODELO PPTO.'!B92 -> 02.02.04.00. | B20: ='MODELO PPTO.'!C92 -> 0 | C20: =IF('MODELO PPTO.'!D92<>"",'MODELO PPTO.'!D92,"") ->  | D20: ='MODELO PPTO.'!G92 -> 0 | E20: ='MODELO PPTO.'!E92 -> 0 | F20: ='MODELO PPTO.'!F92 -> 0 | G20: ='MODELO PPTO.'!H92 -> 0 | H20: ='MODELO PPTO.'!I92 -> 0 | I20: ='MODELO PPTO.'!J92 -> 0 | J20: ='MODELO PPTO.'!K92 -> 0 | K20: ='MODELO PPTO.'!O92 -> 0 | L20: 0 | M20: 0 | N20: 0
A21: ='MODELO PPTO.'!B93 -> 02.02.05.00. | B21: ='MODELO PPTO.'!C93 -> 0 | C21: =IF('MODELO PPTO.'!D93<>"",'MODELO PPTO.'!D93,"") ->  | D21: ='MODELO PPTO.'!G93 -> 0 | E21: ='MODELO PPTO.'!E93 -> 0 | F21: ='MODELO PPTO.'!F93 -> 0 | G21: ='MODELO PPTO.'!H93 -> 0 | H21: ='MODELO PPTO.'!I93 -> 0 | I21: ='MODELO PPTO.'!J93 -> 0 | J21: ='MODELO PPTO.'!K93 -> 0 | K21: ='MODELO PPTO.'!O93 -> 0 | L21: 0 | M21: 0 | N21: 0
A22: ='MODELO PPTO.'!B94 -> 02.02.06.00. | B22: ='MODELO PPTO.'!C94 -> 0 | C22: =IF('MODELO PPTO.'!D94<>"",'MODELO PPTO.'!D94,"") ->  | D22: ='MODELO PPTO.'!G94 -> 0 | E22: ='MODELO PPTO.'!E94 -> 0 | F22: ='MODELO PPTO.'!F94 -> 0 | G22: ='MODELO PPTO.'!H94 -> 0 | H22: ='MODELO PPTO.'!I94 -> 0 | I22: ='MODELO PPTO.'!J94 -> 0 | J22: ='MODELO PPTO.'!K94 -> 0 | K22: ='MODELO PPTO.'!O94 -> 0 | L22: =IF(O22=0,0,(O22*G22)/J22) -> 0 | M22: =IF(O22=0,0,(O22*H22)/J22) -> 0 | N22: 0
A23: ='MODELO PPTO.'!B95 -> 02.02.07.00. | B23: ='MODELO PPTO.'!C95 -> 0 | C23: =IF('MODELO PPTO.'!D95<>"",'MODELO PPTO.'!D95,"") ->  | D23: ='MODELO PPTO.'!G95 -> 0 | E23: ='MODELO PPTO.'!E95 -> 0 | F23: ='MODELO PPTO.'!F95 -> 0 | G23: ='MODELO PPTO.'!H95 -> 0 | H23: ='MODELO PPTO.'!I95 -> 0 | I23: ='MODELO PPTO.'!J95 -> 0 | J23: ='MODELO PPTO.'!K95 -> 0 | K23: ='MODELO PPTO.'!O95 -> 0 | L23: 0 | M23: 0 | N23: 0
A24: ='MODELO PPTO.'!B97 -> 0 | B24: ='MODELO PPTO.'!C97 -> 0 | C24: =IF('MODELO PPTO.'!D97<>"",'MODELO PPTO.'!D97,"") -> Para añadir nuevas partidas, insertadlas en ESTA fila y arrastrad formulas de la fila superior | D24: ='MODELO PPTO.'!G97 -> 0 | E24: ='MODELO PPTO.'!E97 -> 0 | F24: ='MODELO PPTO.'!F97 -> 0 | G24: ='MODELO PPTO.'!H97 -> 0 | H24: ='MODELO PPTO.'!I97 -> 0 | I24: ='MODELO PPTO.'!J97 -> 0 | J24: ='MODELO PPTO.'!K97 -> 0 | K24: ='MODELO PPTO.'!O97 -> 0 | L24: 0 | M24: 0 | N24: =IF(O24=0,0,(O24*I24)/J24) -> 0
A26: ='MODELO PPTO.'!B99 -> 02.03.00.00. | C26: Secundarios.Colaboraciones especiales o Actores Invitados | K26: ='MODELO PPTO.'!O99 -> 0 | L26: =SUM(L27:L42) -> 0 | M26: =SUM(M27:M42) -> 0 | N26: =SUM(N27:N42) -> 0 | O26: =SUM(O27:O42) -> 0
A27: ='MODELO PPTO.'!B100 -> 02.03.01.00. | B27: ='MODELO PPTO.'!C100 -> 0 | C27: =IF('MODELO PPTO.'!D100<>"",'MODELO PPTO.'!D100,"") ->  | D27: ='MODELO PPTO.'!G100 -> 0 | E27: ='MODELO PPTO.'!E100 -> 0 | F27: ='MODELO PPTO.'!F100 -> 0 | G27: ='MODELO PPTO.'!H100 -> 0 | H27: ='MODELO PPTO.'!I100 -> 0 | I27: ='MODELO PPTO.'!J100 -> 0 | J27: ='MODELO PPTO.'!K100 -> 0 | K27: ='MODELO PPTO.'!O100 -> 0 | L27: =IF(O27=0,0,(O27*G27)/J27) -> 0 | M27: =IF(O27=0,0,(O27*H27)/J27) -> 0 | N27: =IF(O27=0,0,(O27*I27)/J27) -> 0
A28: ='MODELO PPTO.'!B101 -> 02.03.02.00. | B28: ='MODELO PPTO.'!C101 -> 0 | C28: =IF('MODELO PPTO.'!D101<>"",'MODELO PPTO.'!D101,"") ->  | D28: ='MODELO PPTO.'!G101 -> 0 | E28: ='MODELO PPTO.'!E101 -> 0 | F28: ='MODELO PPTO.'!F101 -> 0 | G28: ='MODELO PPTO.'!H101 -> 0 | H28: ='MODELO PPTO.'!I101 -> 0 | I28: ='MODELO PPTO.'!J101 -> 0 | J28: ='MODELO PPTO.'!K101 -> 0 | K28: ='MODELO PPTO.'!O101 -> 0 | L28: =IF(O28=0,0,(O28*G28)/J28) -> 0 | M28: =IF(O28=0,0,(O28*H28)/J28) -> 0 | N28: =IF(O28=0,0,(O28*I28)/J28) -> 0
A29: ='MODELO PPTO.'!B102 -> 02.03.03.00. | B29: ='MODELO PPTO.'!C102 -> 0 | C29: =IF('MODELO PPTO.'!D102<>"",'MODELO PPTO.'!D102,"") ->  | D29: ='MODELO PPTO.'!G102 -> 0 | E29: ='MODELO PPTO.'!E102 -> 0 | F29: ='MODELO PPTO.'!F102 -> 0 | G29: ='MODELO PPTO.'!H102 -> 0 | H29: ='MODELO PPTO.'!I102 -> 0 | I29: ='MODELO PPTO.'!J102 -> 0 | J29: ='MODELO PPTO.'!K102 -> 0 | K29: ='MODELO PPTO.'!O102 -> 0 | L29: 0 | M29: 0 | N29: 0
A30: ='MODELO PPTO.'!B103 -> 02.03.04.00. | B30: ='MODELO PPTO.'!C103 -> 0 | C30: =IF('MODELO PPTO.'!D103<>"",'MODELO PPTO.'!D103,"") ->  | D30: ='MODELO PPTO.'!G103 -> 0 | E30: ='MODELO PPTO.'!E103 -> 0 | F30: ='MODELO PPTO.'!F103 -> 0 | G30: ='MODELO PPTO.'!H103 -> 0 | H30: ='MODELO PPTO.'!I103 -> 0 | I30: ='MODELO PPTO.'!J103 -> 0 | J30: ='MODELO PPTO.'!K103 -> 0 | K30: ='MODELO PPTO.'!O103 -> 0 | L30: 0 | M30: 0 | N30: 0
A31: ='MODELO PPTO.'!B104 -> 02.03.05.00. | B31: ='MODELO PPTO.'!C104 -> 0 | C31: =IF('MODELO PPTO.'!D104<>"",'MODELO PPTO.'!D104,"") ->  | D31: ='MODELO PPTO.'!G104 -> 0 | E31: ='MODELO PPTO.'!E104 -> 0 | F31: ='MODELO PPTO.'!F104 -> 0 | G31: ='MODELO PPTO.'!H104 -> 0 | H31: ='MODELO PPTO.'!I104 -> 0 | I31: ='MODELO PPTO.'!J104 -> 0 | J31: ='MODELO PPTO.'!K104 -> 0 | K31: ='MODELO PPTO.'!O104 -> 0 | L31: 0 | M31: 0 | N31: 0
A32: ='MODELO PPTO.'!B105 -> 02.03.06.00. | B32: ='MODELO PPTO.'!C105 -> 0 | C32: =IF('MODELO PPTO.'!D105<>"",'MODELO PPTO.'!D105,"") ->  | D32: ='MODELO PPTO.'!G105 -> 0 | E32: ='MODELO PPTO.'!E105 -> 0 | F32: ='MODELO PPTO.'!F105 -> 0 | G32: ='MODELO PPTO.'!H105 -> 0 | H32: ='MODELO PPTO.'!I105 -> 0 | I32: ='MODELO PPTO.'!J105 -> 0 | J32: ='MODELO PPTO.'!K105 -> 0 | K32: ='MODELO PPTO.'!O105 -> 0 | L32: 0 | M32: 0 | N32: 0
A33: ='MODELO PPTO.'!B106 -> 02.03.07.00. | B33: ='MODELO PPTO.'!C106 -> 0 | C33: =IF('MODELO PPTO.'!D106<>"",'MODELO PPTO.'!D106,"") ->  | D33: ='MODELO PPTO.'!G106 -> 0 | E33: ='MODELO PPTO.'!E106 -> 0 | F33: ='MODELO PPTO.'!F106 -> 0 | G33: ='MODELO PPTO.'!H106 -> 0 | H33: ='MODELO PPTO.'!I106 -> 0 | I33: ='MODELO PPTO.'!J106 -> 0 | J33: ='MODELO PPTO.'!K106 -> 0 | K33: ='MODELO PPTO.'!O106 -> 0 | L33: 0 | M33: 0 | N33: 0
A34: ='MODELO PPTO.'!B107 -> 02.03.08.00. | B34: ='MODELO PPTO.'!C107 -> 0 | C34: =IF('MODELO PPTO.'!D107<>"",'MODELO PPTO.'!D107,"") ->  | D34: ='MODELO PPTO.'!G107 -> 0 | E34: ='MODELO PPTO.'!E107 -> 0 | F34: ='MODELO PPTO.'!F107 -> 0 | G34: ='MODELO PPTO.'!H107 -> 0 | H34: ='MODELO PPTO.'!I107 -> 0 | I34: ='MODELO PPTO.'!J107 -> 0 | J34: ='MODELO PPTO.'!K107 -> 0 | K34: ='MODELO PPTO.'!O107 -> 0 | L34: 0 | M34: 0 | N34: 0
A35: ='MODELO PPTO.'!B108 -> 02.03.09.00. | B35: ='MODELO PPTO.'!C108 -> 0 | C35: =IF('MODELO PPTO.'!D108<>"",'MODELO PPTO.'!D108,"") ->  | D35: ='MODELO PPTO.'!G108 -> 0 | E35: ='MODELO PPTO.'!E108 -> 0 | F35: ='MODELO PPTO.'!F108 -> 0 | G35: ='MODELO PPTO.'!H108 -> 0 | H35: ='MODELO PPTO.'!I108 -> 0 | I35: ='MODELO PPTO.'!J108 -> 0 | J35: ='MODELO PPTO.'!K108 -> 0 | K35: ='MODELO PPTO.'!O108 -> 0 | L35: 0 | M35: 0 | N35: 0
A36: ='MODELO PPTO.'!B109 -> 02.03.10.00. | B36: ='MODELO PPTO.'!C109 -> 0 | C36: =IF('MODELO PPTO.'!D109<>"",'MODELO PPTO.'!D109,"") ->  | D36: ='MODELO PPTO.'!G109 -> 0 | E36: ='MODELO PPTO.'!E109 -> 0 | F36: ='MODELO PPTO.'!F109 -> 0 | G36: ='MODELO PPTO.'!H109 -> 0 | H36: ='MODELO PPTO.'!I109 -> 0 | I36: ='MODELO PPTO.'!J109 -> 0 | J36: ='MODELO PPTO.'!K109 -> 0 | K36: ='MODELO PPTO.'!O109 -> 0 | L36: 0 | M36: 0 | N36: 0
A37: ='MODELO PPTO.'!B110 -> 02.03.11.00. | B37: ='MODELO PPTO.'!C110 -> 0 | C37: =IF('MODELO PPTO.'!D110<>"",'MODELO PPTO.'!D110,"") ->  | D37: ='MODELO PPTO.'!G110 -> 0 | E37: ='MODELO PPTO.'!E110 -> 0 | F37: ='MODELO PPTO.'!F110 -> 0 | G37: ='MODELO PPTO.'!H110 -> 0 | H37: ='MODELO PPTO.'!I110 -> 0 | I37: ='MODELO PPTO.'!J110 -> 0 | J37: ='MODELO PPTO.'!K110 -> 0 | K37: ='MODELO PPTO.'!O110 -> 0 | L37: 0 | M37: 0 | N37: 0
A38: ='MODELO PPTO.'!B111 -> 02.03.12.00. | B38: ='MODELO PPTO.'!C111 -> 0 | C38: =IF('MODELO PPTO.'!D111<>"",'MODELO PPTO.'!D111,"") ->  | D38: ='MODELO PPTO.'!G111 -> 0 | E38: ='MODELO PPTO.'!E111 -> 0 | F38: ='MODELO PPTO.'!F111 -> 0 | G38: ='MODELO PPTO.'!H111 -> 0 | H38: ='MODELO PPTO.'!I111 -> 0 | I38: ='MODELO PPTO.'!J111 -> 0 | J38: ='MODELO PPTO.'!K111 -> 0 | K38: ='MODELO PPTO.'!O111 -> 0 | L38: 0 | M38: 0 | N38: 0
A39: ='MODELO PPTO.'!B112 -> 02.03.13.00. | B39: ='MODELO PPTO.'!C112 -> 0 | C39: =IF('MODELO PPTO.'!D112<>"",'MODELO PPTO.'!D112,"") ->  | D39: ='MODELO PPTO.'!G112 -> 0 | E39: ='MODELO PPTO.'!E112 -> 0 | F39: ='MODELO PPTO.'!F112 -> 0 | G39: ='MODELO PPTO.'!H112 -> 0 | H39: ='MODELO PPTO.'!I112 -> 0 | I39: ='MODELO PPTO.'!J112 -> 0 | J39: ='MODELO PPTO.'!K112 -> 0 | K39: ='MODELO PPTO.'!O112 -> 0 | L39: 0 | M39: 0 | N39: 0
A40: ='MODELO PPTO.'!B113 -> 02.03.14.00. | B40: ='MODELO PPTO.'!C113 -> 0 | C40: =IF('MODELO PPTO.'!D113<>"",'MODELO PPTO.'!D113,"") ->  | D40: ='MODELO PPTO.'!G113 -> 0 | E40: ='MODELO PPTO.'!E113 -> 0 | F40: ='MODELO PPTO.'!F113 -> 0 | G40: ='MODELO PPTO.'!H113 -> 0 | H40: ='MODELO PPTO.'!I113 -> 0 | I40: ='MODELO PPTO.'!J113 -> 0 | J40: ='MODELO PPTO.'!K113 -> 0 | K40: ='MODELO PPTO.'!O113 -> 0 | L40: 0 | M40: 0 | N40: 0
A41: ='MODELO PPTO.'!B114 -> 02.03.15.00. | B41: ='MODELO PPTO.'!C114 -> 0 | C41: =IF('MODELO PPTO.'!D114<>"",'MODELO PPTO.'!D114,"") ->  | D41: ='MODELO PPTO.'!G114 -> 0 | E41: ='MODELO PPTO.'!E114 -> 0 | F41: ='MODELO PPTO.'!F114 -> 0 | G41: ='MODELO PPTO.'!H114 -> 0 | H41: ='MODELO PPTO.'!I114 -> 0 | I41: ='MODELO PPTO.'!J114 -> 0 | J41: ='MODELO PPTO.'!K114 -> 0 | K41: ='MODELO PPTO.'!O114 -> 0 | L41: 0 | M41: 0 | N41: 0
A42: ='MODELO PPTO.'!B115 -> 0 | B42: ='MODELO PPTO.'!C115 -> 0 | C42: =IF('MODELO PPTO.'!D115<>"",'MODELO PPTO.'!D115,"") -> Para añadir nuevas partidas, insertadlas en ESTA fila y arrastrad formulas de la fila superior | D42: ='MODELO PPTO.'!G115 -> 0 | E42: ='MODELO PPTO.'!E115 -> 0 | F42: ='MODELO PPTO.'!F115 -> 0 | G42: ='MODELO PPTO.'!H115 -> 0 | H42: ='MODELO PPTO.'!I115 -> 0 | I42: ='MODELO PPTO.'!J115 -> 0 | J42: ='MODELO PPTO.'!K115 -> 0 | K42: ='MODELO PPTO.'!O115 -> 0 | L42: 0 | M42: 0 | N42: 0
A44: ='MODELO PPTO.'!B117 -> 02.04.00.00. | C44: Pequeñas partes.(Episódicos) | K44: ='MODELO PPTO.'!O117 -> 0 | L44: =SUM(L45:L51) -> 0 | M44: =SUM(M45:M51) -> 0 | N44: =SUM(N45:N51) -> 0 | O44: =SUM(O45:O51) -> 0
A45: ='MODELO PPTO.'!B118 -> 02.04.01.00. | B45: ='MODELO PPTO.'!C118 -> 0 | C45: =IF('MODELO PPTO.'!D118<>"",'MODELO PPTO.'!D118,"") ->  | D45: ='MODELO PPTO.'!G118 -> 0 | E45: ='MODELO PPTO.'!E118 -> 0 | F45: ='MODELO PPTO.'!F118 -> 0 | G45: ='MODELO PPTO.'!H118 -> 0 | H45: ='MODELO PPTO.'!I118 -> 0 | I45: ='MODELO PPTO.'!J118 -> 0 | J45: ='MODELO PPTO.'!K118 -> 0 | K45: ='MODELO PPTO.'!O118 -> 0 | L45: =IF(O45=0,0,(O45*G45)/J45) -> 0 | M45: =IF(O45=0,0,(O45*H45)/J45) -> 0 | N45: =IF(O45=0,0,(O45*I45)/J45) -> 0
A46: ='MODELO PPTO.'!B119 -> 02.04.02.00. | B46: ='MODELO PPTO.'!C119 -> 0 | C46: =IF('MODELO PPTO.'!D119<>"",'MODELO PPTO.'!D119,"") ->  | D46: ='MODELO PPTO.'!G119 -> 0 | E46: ='MODELO PPTO.'!E119 -> 0 | F46: ='MODELO PPTO.'!F119 -> 0 | G46: ='MODELO PPTO.'!H119 -> 0 | H46: ='MODELO PPTO.'!I119 -> 0 | I46: ='MODELO PPTO.'!J119 -> 0 | J46: ='MODELO PPTO.'!K119 -> 0 | K46: ='MODELO PPTO.'!O119 -> 0 | L46: =IF(O46=0,0,(O46*G46)/J46) -> 0 | M46: =IF(O46=0,0,(O46*H46)/J46) -> 0 | N46: =IF(O46=0,0,(O46*I46)/J46) -> 0
A47: ='MODELO PPTO.'!B120 -> 02.04.03.00. | B47: ='MODELO PPTO.'!C120 -> 0 | C47: =IF('MODELO PPTO.'!D120<>"",'MODELO PPTO.'!D120,"") ->  | D47: ='MODELO PPTO.'!G120 -> 0 | E47: ='MODELO PPTO.'!E120 -> 0 | F47: ='MODELO PPTO.'!F120 -> 0 | G47: ='MODELO PPTO.'!H120 -> 0 | H47: ='MODELO PPTO.'!I120 -> 0 | I47: ='MODELO PPTO.'!J120 -> 0 | J47: ='MODELO PPTO.'!K120 -> 0 | K47: ='MODELO PPTO.'!O120 -> 0 | L47: 0 | M47: 0 | N47: 0
A48: ='MODELO PPTO.'!B121 -> 02.04.04.00. | B48: ='MODELO PPTO.'!C121 -> 0 | C48: =IF('MODELO PPTO.'!D121<>"",'MODELO PPTO.'!D121,"") ->  | D48: ='MODELO PPTO.'!G121 -> 0 | E48: ='MODELO PPTO.'!E121 -> 0 | F48: ='MODELO PPTO.'!F121 -> 0 | G48: ='MODELO PPTO.'!H121 -> 0 | H48: ='MODELO PPTO.'!I121 -> 0 | I48: ='MODELO PPTO.'!J121 -> 0 | J48: ='MODELO PPTO.'!K121 -> 0 | K48: ='MODELO PPTO.'!O121 -> 0 | L48: 0 | M48: 0 | N48: 0
A49: ='MODELO PPTO.'!B122 -> 02.04.05.00. | B49: ='MODELO PPTO.'!C122 -> 0 | C49: =IF('MODELO PPTO.'!D122<>"",'MODELO PPTO.'!D122,"") ->  | D49: ='MODELO PPTO.'!G122 -> 0 | E49: ='MODELO PPTO.'!E122 -> 0 | F49: ='MODELO PPTO.'!F122 -> 0 | G49: ='MODELO PPTO.'!H122 -> 0 | H49: ='MODELO PPTO.'!I122 -> 0 | I49: ='MODELO PPTO.'!J122 -> 0 | J49: ='MODELO PPTO.'!K122 -> 0 | K49: ='MODELO PPTO.'!O122 -> 0 | L49: 0 | M49: 0 | N49: 0
A50: ='MODELO PPTO.'!B123 -> 02.04.06.00. | B50: ='MODELO PPTO.'!C123 -> 0 | C50: =IF('MODELO PPTO.'!D123<>"",'MODELO PPTO.'!D123,"") ->  | D50: ='MODELO PPTO.'!G123 -> 0 | E50: ='MODELO PPTO.'!E123 -> 0 | F50: ='MODELO PPTO.'!F123 -> 0 | G50: ='MODELO PPTO.'!H123 -> 0 | H50: ='MODELO PPTO.'!I123 -> 0 | I50: ='MODELO PPTO.'!J123 -> 0 | J50: ='MODELO PPTO.'!K123 -> 0 | K50: ='MODELO PPTO.'!O123 -> 0 | L50: 0 | M50: 0 | N50: 0
A51: ='MODELO PPTO.'!B124 -> 0 | B51: ='MODELO PPTO.'!C124 -> 0 | C51: =IF('MODELO PPTO.'!D124<>"",'MODELO PPTO.'!D124,"") -> Para añadir nuevas partidas, insertadlas en ESTA fila y arrastrad formulas de la fila superior | D51: ='MODELO PPTO.'!G124 -> 0 | E51: ='MODELO PPTO.'!E124 -> 0 | F51: ='MODELO PPTO.'!F124 -> 0 | G51: ='MODELO PPTO.'!H124 -> 0 | H51: ='MODELO PPTO.'!I124 -> 0 | I51: ='MODELO PPTO.'!J124 -> 0 | J51: ='MODELO PPTO.'!K124 -> 0 | K51: ='MODELO PPTO.'!O124 -> 0 | L51: 0 | M51: 0 | N51: 0
A53: ='MODELO PPTO.'!B126 -> 02.05.00.00. | C53: Figuración y público. | K53: ='MODELO PPTO.'!O126 -> 0 | L53: =SUM(L54:L60) -> 0 | M53: =SUM(M54:M60) -> 0 | N53: =SUM(N54:N60) -> 0 | O53: =SUM(O54:O60) -> 0
A54: ='MODELO PPTO.'!B127 -> 02.05.01.00. | B54: ='MODELO PPTO.'!C127 -> 0 | C54: =IF('MODELO PPTO.'!D127<>"",'MODELO PPTO.'!D127,"") -> Figuración Especial | D54: ='MODELO PPTO.'!G127 -> 0 | E54: ='MODELO PPTO.'!E127 -> 0 | F54: ='MODELO PPTO.'!F127 -> 0 | G54: ='MODELO PPTO.'!H127 -> 0 | H54: ='MODELO PPTO.'!I127 -> 0 | I54: ='MODELO PPTO.'!J127 -> 0 | J54: ='MODELO PPTO.'!K127 -> 0 | K54: ='MODELO PPTO.'!O127 -> 0 | L54: =IF(O54=0,0,(O54*G54)/J54) -> 0 | M54: =IF(O54=0,0,(O54*H54)/J54) -> 0 | N54: =IF(O54=0,0,(O54*I54)/J54) -> 0
A55: ='MODELO PPTO.'!B128 -> 02.05.02.00. | B55: ='MODELO PPTO.'!C128 -> 0 | C55: =IF('MODELO PPTO.'!D128<>"",'MODELO PPTO.'!D128,"") -> Figuración normal | D55: ='MODELO PPTO.'!G128 -> 0 | E55: ='MODELO PPTO.'!E128 -> 0 | F55: ='MODELO PPTO.'!F128 -> 0 | G55: ='MODELO PPTO.'!H128 -> 0 | H55: ='MODELO PPTO.'!I128 -> 0 | I55: ='MODELO PPTO.'!J128 -> 0 | J55: ='MODELO PPTO.'!K128 -> 0 | K55: ='MODELO PPTO.'!O128 -> 0 | L55: =IF(O55=0,0,(O55*G55)/J55) -> 0 | M55: =IF(O55=0,0,(O55*H55)/J55) -> 0 | N55: =IF(O55=0,0,(O55*I55)/J55) -> 0
A56: ='MODELO PPTO.'!B129 -> 02.05.03.00. | B56: ='MODELO PPTO.'!C129 -> 0 | C56: =IF('MODELO PPTO.'!D129<>"",'MODELO PPTO.'!D129,"") -> Dobles | D56: ='MODELO PPTO.'!G129 -> 0 | E56: ='MODELO PPTO.'!E129 -> 0 | F56: ='MODELO PPTO.'!F129 -> 0 | G56: ='MODELO PPTO.'!H129 -> 0 | H56: ='MODELO PPTO.'!I129 -> 0 | I56: ='MODELO PPTO.'!J129 -> 0 | J56: ='MODELO PPTO.'!K129 -> 0 | K56: ='MODELO PPTO.'!O129 -> 0 | L56: 0 | M56: 0 | N56: 0
A57: ='MODELO PPTO.'!B130 -> 02.05.04.00. | B57: ='MODELO PPTO.'!C130 -> 0 | C57: =IF('MODELO PPTO.'!D130<>"",'MODELO PPTO.'!D130,"") -> Azafatas de imagen | D57: ='MODELO PPTO.'!G130 -> 0 | E57: ='MODELO PPTO.'!E130 -> 0 | F57: ='MODELO PPTO.'!F130 -> 0 | G57: ='MODELO PPTO.'!H130 -> 0 | H57: ='MODELO PPTO.'!I130 -> 0 | I57: ='MODELO PPTO.'!J130 -> 0 | J57: ='MODELO PPTO.'!K130 -> 0 | K57: ='MODELO PPTO.'!O130 -> 0 | L57: 0 | M57: 0 | N57: 0
A58: ='MODELO PPTO.'!B131 -> 02.05.05.00. | B58: ='MODELO PPTO.'!C131 -> 0 | C58: =IF('MODELO PPTO.'!D131<>"",'MODELO PPTO.'!D131,"") -> Público | D58: ='MODELO PPTO.'!G131 -> 0 | E58: ='MODELO PPTO.'!E131 -> 0 | F58: ='MODELO PPTO.'!F131 -> 0 | G58: ='MODELO PPTO.'!H131 -> 0 | H58: ='MODELO PPTO.'!I131 -> 0 | I58: ='MODELO PPTO.'!J131 -> 0 | J58: ='MODELO PPTO.'!K131 -> 0 | K58: ='MODELO PPTO.'!O131 -> 0 | L58: =IF(O58=0,0,(O58*G58)/J58) -> 0 | M58: =IF(O58=0,0,(O58*H58)/J58) -> 0 | N58: =IF(O58=0,0,(O58*I58)/J58) -> 0
A59: ='MODELO PPTO.'!B132 -> 02.05.06.00. | B59: ='MODELO PPTO.'!C132 -> 0 | C59: =IF('MODELO PPTO.'!D132<>"",'MODELO PPTO.'!D132,"") ->  | D59: ='MODELO PPTO.'!G132 -> 0 | E59: ='MODELO PPTO.'!E132 -> 0 | F59: ='MODELO PPTO.'!F132 -> 0 | G59: ='MODELO PPTO.'!H132 -> 0 | H59: ='MODELO PPTO.'!I132 -> 0 | I59: ='MODELO PPTO.'!J132 -> 0 | J59: ='MODELO PPTO.'!K132 -> 0 | K59: ='MODELO PPTO.'!O132 -> 0 | L59: 0 | M59: 0 | N59: 0
A60: ='MODELO PPTO.'!B133 -> 0 | B60: ='MODELO PPTO.'!C133 -> 0 | C60: =IF('MODELO PPTO.'!D133<>"",'MODELO PPTO.'!D133,"") -> Para añadir nuevas partidas, insertadlas en ESTA fila y arrastrad formulas de la fila superior | D60: ='MODELO PPTO.'!G133 -> 0 | E60: ='MODELO PPTO.'!E133 -> 0 | F60: ='MODELO PPTO.'!F133 -> 0 | G60: ='MODELO PPTO.'!H133 -> 0 | H60: ='MODELO PPTO.'!I133 -> 0 | I60: ='MODELO PPTO.'!J133 -> 0 | J60: ='MODELO PPTO.'!K133 -> 0 | K60: ='MODELO PPTO.'!O133 -> 0 | L60: 0 | M60: 0 | N60: 0
A62: ='MODELO PPTO.'!B135 -> 02.06.00.00. | C62: Especialistas. | K62: ='MODELO PPTO.'!O135 -> 0 | L62: =SUM(L63:L68) -> 0 | M62: =SUM(M63:M68) -> 0 | N62: =SUM(N63:N68) -> 0 | O62: =SUM(O63:O68) -> 0
A63: ='MODELO PPTO.'!B136 -> 02.06.01.00. | B63: ='MODELO PPTO.'!C136 -> 0 | C63: =IF('MODELO PPTO.'!D136<>"",'MODELO PPTO.'!D136,"") -> Dobles de acción | D63: ='MODELO PPTO.'!G136 -> 0 | E63: ='MODELO PPTO.'!E136 -> 0 | F63: ='MODELO PPTO.'!F136 -> 0 | G63: ='MODELO PPTO.'!H136 -> 0 | H63: ='MODELO PPTO.'!I136 -> 0 | I63: ='MODELO PPTO.'!J136 -> 0 | J63: ='MODELO PPTO.'!K136 -> 0 | K63: ='MODELO PPTO.'!O136 -> 0 | L63: =IF(O63=0,0,(O63*G63)/J63) -> 0 | M63: =IF(O63=0,0,(O63*H63)/J63) -> 0 | N63: =IF(O63=0,0,(O63*I63)/J63) -> 0
A64: ='MODELO PPTO.'!B137 -> 02.06.02.00. | B64: ='MODELO PPTO.'!C137 -> 0 | C64: =IF('MODELO PPTO.'!D137<>"",'MODELO PPTO.'!D137,"") -> Maestro de armas/Jefe de especialistas. | D64: ='MODELO PPTO.'!G137 -> 0 | E64: ='MODELO PPTO.'!E137 -> 0 | F64: ='MODELO PPTO.'!F137 -> 0 | G64: ='MODELO PPTO.'!H137 -> 0 | H64: ='MODELO PPTO.'!I137 -> 0 | I64: ='MODELO PPTO.'!J137 -> 0 | J64: ='MODELO PPTO.'!K137 -> 0 | K64: ='MODELO PPTO.'!O137 -> 0 | L64: =IF(O64=0,0,(O64*G64)/J64) -> 0 | M64: =IF(O64=0,0,(O64*H64)/J64) -> 0 | N64: =IF(O64=0,0,(O64*I64)/J64) -> 0
A65: ='MODELO PPTO.'!B138 -> 02.06.03.00. | B65: ='MODELO PPTO.'!C138 -> 0 | C65: =IF('MODELO PPTO.'!D138<>"",'MODELO PPTO.'!D138,"") -> Especialistas. | D65: ='MODELO PPTO.'!G138 -> 0 | E65: ='MODELO PPTO.'!E138 -> 0 | F65: ='MODELO PPTO.'!F138 -> 0 | G65: ='MODELO PPTO.'!H138 -> 0 | H65: ='MODELO PPTO.'!I138 -> 0 | I65: ='MODELO PPTO.'!J138 -> 0 | J65: ='MODELO PPTO.'!K138 -> 0 | K65: ='MODELO PPTO.'!O138 -> 0 | L65: 0 | M65: 0 | N65: 0
A66: ='MODELO PPTO.'!B139 -> 02.06.04.00. | B66: ='MODELO PPTO.'!C139 -> 0 | C66: =IF('MODELO PPTO.'!D139<>"",'MODELO PPTO.'!D139,"") -> Caballistas. | D66: ='MODELO PPTO.'!G139 -> 0 | E66: ='MODELO PPTO.'!E139 -> 0 | F66: ='MODELO PPTO.'!F139 -> 0 | G66: ='MODELO PPTO.'!H139 -> 0 | H66: ='MODELO PPTO.'!I139 -> 0 | I66: ='MODELO PPTO.'!J139 -> 0 | J66: ='MODELO PPTO.'!K139 -> 0 | K66: ='MODELO PPTO.'!O139 -> 0 | L66: 0 | M66: 0 | N66: 0
A67: ='MODELO PPTO.'!B140 -> 02.06.05.00. | B67: ='MODELO PPTO.'!C140 -> 0 | C67: =IF('MODELO PPTO.'!D140<>"",'MODELO PPTO.'!D140,"") -> Profesores/tutores menores | D67: ='MODELO PPTO.'!G140 -> 0 | E67: ='MODELO PPTO.'!E140 -> 0 | F67: ='MODELO PPTO.'!F140 -> 0 | G67: ='MODELO PPTO.'!H140 -> 0 | H67: ='MODELO PPTO.'!I140 -> 0 | I67: ='MODELO PPTO.'!J140 -> 0 | J67: ='MODELO PPTO.'!K140 -> 0 | K67: ='MODELO PPTO.'!O140 -> 0 | L67: =IF(O67=0,0,(O67*G67)/J67) -> 0 | M67: =IF(O67=0,0,(O67*H67)/J67) -> 0 | N67: =IF(O67=0,0,(O67*I67)/J67) -> 0
A68: ='MODELO PPTO.'!B141 -> 0 | B68: ='MODELO PPTO.'!C141 -> 0 | C68: =IF('MODELO PPTO.'!D141<>"",'MODELO PPTO.'!D141,"") -> Para añadir nuevas partidas, insertadlas en ESTA fila y arrastrad formulas de la fila superior | D68: ='MODELO PPTO.'!G141 -> 0 | E68: ='MODELO PPTO.'!E141 -> 0 | F68: ='MODELO PPTO.'!F141 -> 0 | G68: ='MODELO PPTO.'!H141 -> 0 | H68: ='MODELO PPTO.'!I141 -> 0 | I68: ='MODELO PPTO.'!J141 -> 0 | J68: ='MODELO PPTO.'!K141 -> 0 | K68: ='MODELO PPTO.'!O141 -> 0 | L68: 0 | M68: 0 | N68: 0
A70: ='MODELO PPTO.'!B143 -> 02.07.00.00. | C70: Ballet y Orquestas. | K70: ='MODELO PPTO.'!O143 -> 0 | L70: =SUM(L71:L79) -> 0 | M70: =SUM(M71:M79) -> 0 | N70: =SUM(N71:N79) -> 0 | O70: =SUM(O71:O79) -> 0
A71: ='MODELO PPTO.'!B144 -> 02.07.01.00. | B71: ='MODELO PPTO.'!C144 -> 0 | C71: =IF('MODELO PPTO.'!D144<>"",'MODELO PPTO.'!D144,"") -> Coreógrafo. | D71: ='MODELO PPTO.'!G144 -> 0 | E71: ='MODELO PPTO.'!E144 -> 0 | F71: ='MODELO PPTO.'!F144 -> 0 | G71: ='MODELO PPTO.'!H144 -> 0 | H71: ='MODELO PPTO.'!I144 -> 0 | I71: ='MODELO PPTO.'!J144 -> 0 | J71: ='MODELO PPTO.'!K144 -> 0 | K71: ='MODELO PPTO.'!O144 -> 0 | L71: =IF(O71=0,0,(O71*G71)/J71) -> 0 | M71: =IF(O71=0,0,(O71*H71)/J71) -> 0 | N71: =IF(O71=0,0,(O71*I71)/J71) -> 0
A72: ='MODELO PPTO.'!B145 -> 02.07.02.00. | B72: ='MODELO PPTO.'!C145 -> 0 | C72: =IF('MODELO PPTO.'!D145<>"",'MODELO PPTO.'!D145,"") -> Ayudante coreógrafo | D72: ='MODELO PPTO.'!G145 -> 0 | E72: ='MODELO PPTO.'!E145 -> 0 | F72: ='MODELO PPTO.'!F145 -> 0 | G72: ='MODELO PPTO.'!H145 -> 0 | H72: ='MODELO PPTO.'!I145 -> 0 | I72: ='MODELO PPTO.'!J145 -> 0 | J72: ='MODELO PPTO.'!K145 -> 0 | K72: ='MODELO PPTO.'!O145 -> 0 | L72: =IF(O72=0,0,(O72*G72)/J72) -> 0 | M72: =IF(O72=0,0,(O72*H72)/J72) -> 0 | N72: =IF(O72=0,0,(O72*I72)/J72) -> 0
A73: ='MODELO PPTO.'!B146 -> 02.07.03.00. | B73: ='MODELO PPTO.'!C146 -> 0 | C73: =IF('MODELO PPTO.'!D146<>"",'MODELO PPTO.'!D146,"") -> Bailarines | D73: ='MODELO PPTO.'!G146 -> 0 | E73: ='MODELO PPTO.'!E146 -> 0 | F73: ='MODELO PPTO.'!F146 -> 0 | G73: ='MODELO PPTO.'!H146 -> 0 | H73: ='MODELO PPTO.'!I146 -> 0 | I73: ='MODELO PPTO.'!J146 -> 0 | J73: ='MODELO PPTO.'!K146 -> 0 | K73: ='MODELO PPTO.'!O146 -> 0 | L73: 0 | M73: 0 | N73: 0
A74: ='MODELO PPTO.'!B147 -> 02.07.04.00. | B74: ='MODELO PPTO.'!C147 -> 0 | C74: =IF('MODELO PPTO.'!D147<>"",'MODELO PPTO.'!D147,"") -> Modelos | D74: ='MODELO PPTO.'!G147 -> 0 | E74: ='MODELO PPTO.'!E147 -> 0 | F74: ='MODELO PPTO.'!F147 -> 0 | G74: ='MODELO PPTO.'!H147 -> 0 | H74: ='MODELO PPTO.'!I147 -> 0 | I74: ='MODELO PPTO.'!J147 -> 0 | J74: ='MODELO PPTO.'!K147 -> 0 | K74: ='MODELO PPTO.'!O147 -> 0 | L74: 0 | M74: 0 | N74: 0
A75: ='MODELO PPTO.'!B148 -> 02.07.05.00. | B75: ='MODELO PPTO.'!C148 -> 0 | C75: =IF('MODELO PPTO.'!D148<>"",'MODELO PPTO.'!D148,"") -> Orquestas/Grupos musicales. | D75: ='MODELO PPTO.'!G148 -> 0 | E75: ='MODELO PPTO.'!E148 -> 0 | F75: ='MODELO PPTO.'!F148 -> 0 | G75: ='MODELO PPTO.'!H148 -> 0 | H75: ='MODELO PPTO.'!I148 -> 0 | I75: ='MODELO PPTO.'!J148 -> 0 | J75: ='MODELO PPTO.'!K148 -> 0 | K75: ='MODELO PPTO.'!O148 -> 0 | L75: 0 | M75: 0 | N75: 0
A76: ='MODELO PPTO.'!B149 -> 02.07.06.00. | B76: ='MODELO PPTO.'!C149 -> 0 | C76: =IF('MODELO PPTO.'!D149<>"",'MODELO PPTO.'!D149,"") -> Coros en escena. | D76: ='MODELO PPTO.'!G149 -> 0 | E76: ='MODELO PPTO.'!E149 -> 0 | F76: ='MODELO PPTO.'!F149 -> 0 | G76: ='MODELO PPTO.'!H149 -> 0 | H76: ='MODELO PPTO.'!I149 -> 0 | I76: ='MODELO PPTO.'!J149 -> 0 | J76: ='MODELO PPTO.'!K149 -> 0 | K76: ='MODELO PPTO.'!O149 -> 0 | L76: 0 | M76: 0 | N76: 0
A77: ='MODELO PPTO.'!B150 -> 02.07.07.00. | B77: ='MODELO PPTO.'!C150 -> 0 | C77: =IF('MODELO PPTO.'!D150<>"",'MODELO PPTO.'!D150,"") -> Músicos de escena live/playback | D77: ='MODELO PPTO.'!G150 -> 0 | E77: ='MODELO PPTO.'!E150 -> 0 | F77: ='MODELO PPTO.'!F150 -> 0 | G77: ='MODELO PPTO.'!H150 -> 0 | H77: ='MODELO PPTO.'!I150 -> 0 | I77: ='MODELO PPTO.'!J150 -> 0 | J77: ='MODELO PPTO.'!K150 -> 0 | K77: ='MODELO PPTO.'!O150 -> 0 | L77: 0 | M77: 0 | N77: 0
A78: ='MODELO PPTO.'!B151 -> 02.07.08.00. | B78: ='MODELO PPTO.'!C151 -> 0 | C78: =IF('MODELO PPTO.'!D151<>"",'MODELO PPTO.'!D151,"") -> Otras actuaciones musicales. | D78: ='MODELO PPTO.'!G151 -> 0 | E78: ='MODELO PPTO.'!E151 -> 0 | F78: ='MODELO PPTO.'!F151 -> 0 | G78: ='MODELO PPTO.'!H151 -> 0 | H78: ='MODELO PPTO.'!I151 -> 0 | I78: ='MODELO PPTO.'!J151 -> 0 | J78: ='MODELO PPTO.'!K151 -> 0 | K78: ='MODELO PPTO.'!O151 -> 0 | L78: =IF(O78=0,0,(O78*G78)/J78) -> 0 | M78: =IF(O78=0,0,(O78*H78)/J78) -> 0 | N78: =IF(O78=0,0,(O78*I78)/J78) -> 0
A79: ='MODELO PPTO.'!B152 -> 0 | B79: ='MODELO PPTO.'!C152 -> 0 | C79: =IF('MODELO PPTO.'!D152<>"",'MODELO PPTO.'!D152,"") -> Para añadir nuevas partidas, insertadlas en ESTA fila y arrastrad formulas de la fila superior | D79: ='MODELO PPTO.'!G152 -> 0 | E79: ='MODELO PPTO.'!E152 -> 0 | F79: ='MODELO PPTO.'!F152 -> 0 | G79: ='MODELO PPTO.'!H152 -> 0 | H79: ='MODELO PPTO.'!I152 -> 0 | I79: ='MODELO PPTO.'!J152 -> 0 | J79: ='MODELO PPTO.'!K152 -> 0 | K79: ='MODELO PPTO.'!O152 -> 0 | L79: 0 | M79: 0 | N79: 0
A81: ='MODELO PPTO.'!B154 -> 02.08.00.00. | C81: Doblaje y efectos sonoros. | K81: ='MODELO PPTO.'!O154 -> 0 | L81: =SUM(L82:L86) -> 0 | M81: =SUM(M82:M86) -> 0 | N81: =SUM(N82:N86) -> 0 | O81: =SUM(O82:O86) -> 0
A82: ='MODELO PPTO.'!B155 -> 02.08.01.00. | B82: ='MODELO PPTO.'!C155 -> 0 | C82: =IF('MODELO PPTO.'!D155<>"",'MODELO PPTO.'!D155,"") -> Director de doblaje . | D82: ='MODELO PPTO.'!G155 -> 0 | E82: ='MODELO PPTO.'!E155 -> 0 | F82: ='MODELO PPTO.'!F155 -> 0 | G82: ='MODELO PPTO.'!H155 -> 0 | H82: ='MODELO PPTO.'!I155 -> 0 | I82: ='MODELO PPTO.'!J155 -> 0 | J82: ='MODELO PPTO.'!K155 -> 0 | K82: ='MODELO PPTO.'!O155 -> 0 | L82: =IF(O82=0,0,(O82*G82)/J82) -> 0 | M82: =IF(O82=0,0,(O82*H82)/J82) -> 0 | N82: =IF(O82=0,0,(O82*I82)/J82) -> 0
A83: ='MODELO PPTO.'!B156 -> 02.08.02.00. | B83: ='MODELO PPTO.'!C156 -> 0 | C83: =IF('MODELO PPTO.'!D156<>"",'MODELO PPTO.'!D156,"") -> Dobladores. | D83: ='MODELO PPTO.'!G156 -> 0 | E83: ='MODELO PPTO.'!E156 -> 0 | F83: ='MODELO PPTO.'!F156 -> 0 | G83: ='MODELO PPTO.'!H156 -> 0 | H83: ='MODELO PPTO.'!I156 -> 0 | I83: ='MODELO PPTO.'!J156 -> 0 | J83: ='MODELO PPTO.'!K156 -> 0 | K83: ='MODELO PPTO.'!O156 -> 0 | L83: =IF(O83=0,0,(O83*G83)/J83) -> 0 | M83: =IF(O83=0,0,(O83*H83)/J83) -> 0 | N83: =IF(O83=0,0,(O83*I83)/J83) -> 0
A84: ='MODELO PPTO.'!B157 -> 02.08.03.00. | B84: ='MODELO PPTO.'!C157 -> 0 | C84: =IF('MODELO PPTO.'!D157<>"",'MODELO PPTO.'!D157,"") -> Locutores/Comentaristas en off. | D84: ='MODELO PPTO.'!G157 -> 0 | E84: ='MODELO PPTO.'!E157 -> 0 | F84: ='MODELO PPTO.'!F157 -> 0 | G84: ='MODELO PPTO.'!H157 -> 0 | H84: ='MODELO PPTO.'!I157 -> 0 | I84: ='MODELO PPTO.'!J157 -> 0 | J84: ='MODELO PPTO.'!K157 -> 0 | K84: ='MODELO PPTO.'!O157 -> 0 | L84: 0 | M84: 0 | N84: 0
A85: ='MODELO PPTO.'!B158 -> 02.08.04.00. | B85: ='MODELO PPTO.'!C158 -> 0 | C85: =IF('MODELO PPTO.'!D158<>"",'MODELO PPTO.'!D158,"") -> Efectos sala. | D85: ='MODELO PPTO.'!G158 -> 0 | E85: ='MODELO PPTO.'!E158 -> 0 | F85: ='MODELO PPTO.'!F158 -> 0 | G85: ='MODELO PPTO.'!H158 -> 0 | H85: ='MODELO PPTO.'!I158 -> 0 | I85: ='MODELO PPTO.'!J158 -> 0 | J85: ='MODELO PPTO.'!K158 -> 0 | K85: ='MODELO PPTO.'!O158 -> 0 | L85: =IF(O85=0,0,(O85*G85)/J85) -> 0 | M85: =IF(O85=0,0,(O85*H85)/J85) -> 0 | N85: =IF(O85=0,0,(O85*I85)/J85) -> 0
A86: ='MODELO PPTO.'!B159 -> 0 | B86: ='MODELO PPTO.'!C159 -> 0 | C86: =IF('MODELO PPTO.'!D159<>"",'MODELO PPTO.'!D159,"") -> Para añadir nuevas partidas, insertadlas en ESTA fila y arrastrad formulas de la fila superior | D86: ='MODELO PPTO.'!G159 -> 0 | E86: ='MODELO PPTO.'!E159 -> 0 | F86: ='MODELO PPTO.'!F159 -> 0 | G86: ='MODELO PPTO.'!H159 -> 0 | H86: ='MODELO PPTO.'!I159 -> 0 | I86: ='MODELO PPTO.'!J159 -> 0 | J86: ='MODELO PPTO.'!K159 -> 0 | K86: ='MODELO PPTO.'!O159 -> 0 | L86: 0 | M86: 0 | N86: 0
A88: ='MODELO PPTO.'!B161 -> 02.09.00.00. | C88: Varios programas entretenimiento. | K88: ='MODELO PPTO.'!O161 -> 0 | L88: =SUM(L89:L96) -> 0 | M88: =SUM(M89:M96) -> 0 | N88: =SUM(N89:N96) -> 0 | O88: =SUM(O89:O96) -> 0
A89: ='MODELO PPTO.'!B162 -> 02.09.01.00. | B89: ='MODELO PPTO.'!C162 -> 0 | C89: =IF('MODELO PPTO.'!D162<>"",'MODELO PPTO.'!D162,"") -> Actuaciones especiales. | D89: ='MODELO PPTO.'!G162 -> 0 | E89: ='MODELO PPTO.'!E162 -> 0 | F89: ='MODELO PPTO.'!F162 -> 0 | G89: ='MODELO PPTO.'!H162 -> 0 | H89: ='MODELO PPTO.'!I162 -> 0 | I89: ='MODELO PPTO.'!J162 -> 0 | J89: ='MODELO PPTO.'!K162 -> 0 | K89: ='MODELO PPTO.'!O162 -> 0 | L89: =IF(O89=0,0,(O89*G89)/J89) -> 0 | M89: =IF(O89=0,0,(O89*H89)/J89) -> 0 | N89: =IF(O89=0,0,(O89*I89)/J89) -> 0
A90: ='MODELO PPTO.'!B163 -> 02.09.02.00. | B90: ='MODELO PPTO.'!C163 -> 0 | C90: =IF('MODELO PPTO.'!D163<>"",'MODELO PPTO.'!D163,"") -> Concursantes. | D90: ='MODELO PPTO.'!G163 -> 0 | E90: ='MODELO PPTO.'!E163 -> 0 | F90: ='MODELO PPTO.'!F163 -> 0 | G90: ='MODELO PPTO.'!H163 -> 0 | H90: ='MODELO PPTO.'!I163 -> 0 | I90: ='MODELO PPTO.'!J163 -> 0 | J90: ='MODELO PPTO.'!K163 -> 0 | K90: ='MODELO PPTO.'!O163 -> 0 | L90: =IF(O90=0,0,(O90*G90)/J90) -> 0 | M90: =IF(O90=0,0,(O90*H90)/J90) -> 0 | N90: 0
A91: ='MODELO PPTO.'!B164 -> 02.09.03.00. | B91: ='MODELO PPTO.'!C164 -> 0 | C91: =IF('MODELO PPTO.'!D164<>"",'MODELO PPTO.'!D164,"") -> Invitados nacionales | D91: ='MODELO PPTO.'!G164 -> 0 | E91: ='MODELO PPTO.'!E164 -> 0 | F91: ='MODELO PPTO.'!F164 -> 0 | G91: ='MODELO PPTO.'!H164 -> 0 | H91: ='MODELO PPTO.'!I164 -> 0 | I91: ='MODELO PPTO.'!J164 -> 0 | J91: ='MODELO PPTO.'!K164 -> 0 | K91: ='MODELO PPTO.'!O164 -> 0 | L91: 0 | M91: 0 | N91: 0
A92: ='MODELO PPTO.'!B165 -> 02.09.04.00. | B92: ='MODELO PPTO.'!C165 -> 0 | C92: =IF('MODELO PPTO.'!D165<>"",'MODELO PPTO.'!D165,"") -> Invitados internacionales. | D92: ='MODELO PPTO.'!G165 -> 0 | E92: ='MODELO PPTO.'!E165 -> 0 | F92: ='MODELO PPTO.'!F165 -> 0 | G92: ='MODELO PPTO.'!H165 -> 0 | H92: ='MODELO PPTO.'!I165 -> 0 | I92: ='MODELO PPTO.'!J165 -> 0 | J92: ='MODELO PPTO.'!K165 -> 0 | K92: ='MODELO PPTO.'!O165 -> 0 | L92: 0 | M92: 0 | N92: 0
A93: ='MODELO PPTO.'!B166 -> 02.09.05.00. | B93: ='MODELO PPTO.'!C166 -> 0 | C93: =IF('MODELO PPTO.'!D166<>"",'MODELO PPTO.'!D166,"") -> Invitados VIP. | D93: ='MODELO PPTO.'!G166 -> 0 | E93: ='MODELO PPTO.'!E166 -> 0 | F93: ='MODELO PPTO.'!F166 -> 0 | G93: ='MODELO PPTO.'!H166 -> 0 | H93: ='MODELO PPTO.'!I166 -> 0 | I93: ='MODELO PPTO.'!J166 -> 0 | J93: ='MODELO PPTO.'!K166 -> 0 | K93: ='MODELO PPTO.'!O166 -> 0 | L93: 0 | M93: 0 | N93: 0
A94: ='MODELO PPTO.'!B167 -> 02.09.06.00. | B94: ='MODELO PPTO.'!C167 -> 0 | C94: =IF('MODELO PPTO.'!D167<>"",'MODELO PPTO.'!D167,"") -> Jurados | D94: ='MODELO PPTO.'!G167 -> 0 | E94: ='MODELO PPTO.'!E167 -> 0 | F94: ='MODELO PPTO.'!F167 -> 0 | G94: ='MODELO PPTO.'!H167 -> 0 | H94: ='MODELO PPTO.'!I167 -> 0 | I94: ='MODELO PPTO.'!J167 -> 0 | J94: ='MODELO PPTO.'!K167 -> 0 | K94: ='MODELO PPTO.'!O167 -> 0 | L94: 0 | M94: 0 | N94: 0
A95: ='MODELO PPTO.'!B168 -> 02.09.07.00. | B95: ='MODELO PPTO.'!C168 -> 0 | C95: =IF('MODELO PPTO.'!D168<>"",'MODELO PPTO.'!D168,"") -> Colaboraciones específicas. | D95: ='MODELO PPTO.'!G168 -> 0 | E95: ='MODELO PPTO.'!E168 -> 0 | F95: ='MODELO PPTO.'!F168 -> 0 | G95: ='MODELO PPTO.'!H168 -> 0 | H95: ='MODELO PPTO.'!I168 -> 0 | I95: ='MODELO PPTO.'!J168 -> 0 | J95: ='MODELO PPTO.'!K168 -> 0 | K95: ='MODELO PPTO.'!O168 -> 0 | L95: =IF(O95=0,0,(O95*G95)/J95) -> 0 | M95: =IF(O95=0,0,(O95*H95)/J95) -> 0 | N95: 0
A96: ='MODELO PPTO.'!B169 -> 0 | B96: ='MODELO PPTO.'!C169 -> 0 | C96: =IF('MODELO PPTO.'!D169<>"",'MODELO PPTO.'!D169,"") -> Para añadir nuevas partidas, insertadlas en ESTA fila y arrastrad formulas de la fila superior | D96: ='MODELO PPTO.'!G169 -> 0 | E96: ='MODELO PPTO.'!E169 -> 0 | F96: ='MODELO PPTO.'!F169 -> 0 | G96: ='MODELO PPTO.'!H169 -> 0 | H96: ='MODELO PPTO.'!I169 -> 0 | I96: ='MODELO PPTO.'!J169 -> 0 | J96: ='MODELO PPTO.'!K169 -> 0 | K96: ='MODELO PPTO.'!O169 -> 0 | L96: 0 | M96: 0 | N96: 0
A98: 02.11.00.00 | C98: SEGURIDAD SOCIAL PERSONAL ARTÍSTICO | K98: =K88+K81+K70+K62+K53+K44+K26+K16+K8 -> 0 | L98: =L88+L81+L70+L62+L53+L44+L26+L16+L8 -> 0 | M98: =M88+M81+M70+M62+M53+M44+M26+M16+M8 -> 0 | N98: =N88+N81+N70+N62+N53+N44+N26+N16+N8 -> 0 | O98: =O88+O81+O70+O62+O53+O44+O26+O16+O8 -> 0
A100: NOTAS PARA LA CUMPLIMENTACIÓN DEL CÁLCULO DE SEGURIDAD SOCIAL EQUIPO ARTISTICO
A102: 1. | C102: La columna T.C. (tipo de contrato) y unidad deben cumplimentarse con carácter obligatorio, en base a la siguiente tabla, para el cálculo de costes
A104: T.C (1) | C104: C= CONTRATO LABORAL DURACIÓN DETERMINADA
C105: M=CONTRATO MERCANTIL
A107: Unidad | C107: J= JORNADA O SESIÓN
C108: Sem=SEMANA
C109: M=MES
A111: 2. | C111: El cálculo de S. S. deberá hacerse siguiendo las normas dictadas por la Tesoreria de la Seguridad Social en materia de Artístas (COLUMNA O).
A112: 3. | C112: Si fuera necesario incluir alguna fila, habrá que arrastras las fórmulas y vincular con la hoja de presupuesto.
A113: TOTAL (4) | C113: Ejemplo para rellenar la columna "O" por parte de la Productora | I113: S.S. ARTISTAS | L113: 2025 | N113: COSTE SS/SESION
A114: Ejemplo-1 | C114: 1 Artista con salario superior a la base máxima de cotización (4.909,50) en 1 mes: | I114: RETRIBUCIONES INTEGRAS DIARIAS | L114: BASE COTIZACION DIARIA* | N114: 0.3327
C115: Fórmula a poner en la casilla correspondiente sería 4909,5*0,3327*1*1 | I115: Hasta 555 euros | L115: 327 | N115: =+L115*$N$114 -> 108.7929
A116: Ejemplo-2 | C116: 2 Artistas con salario inferior a la base máxima de cotización (p.e. 1.500) en 0,5 meses: | I116: Entre 555,01 y 999 euros | L116: 412 | N116: =+L116*$N$114 -> 137.0724
C117: Fórmula a poner en la casilla correspondiente sería 1.500*0,3327*2*0,5 | I117: Entre 999,01 y 1.672,00 euros | L117: 492 | N117: =+L117*$N$114 -> 163.6884
A118: En el caso que el Artista trabaje sólo algunas sesiones, habrá que ir a la tabla de las bases | I118: Mayor de 1.672,01 euros | L118: 653.1 | N118: =+L118*$N$114 -> 217.28637
A119: de cotización a S.S. para Artístas y localizar la base para su rango, y aplicar la misma fórmula.
J120: * Base máxima cotizacion | K120: =+'COSTES SOCIALES EQUIPO TÉCNICO'!N12 -> 4909.5 | L120: =K120*0.3327 -> 1633.39065

Sheet COSTES SOCIALES EQUIPO TÉCNICO
N2: Contratación 2025 | O2: F/FD | P2: C
N3: Contingencias comunes | O3: 23.6 | P3: 23.6
N4: Mecanismo equidad inter | O4: 0.67 | P4: 0.67
N5: Contingencias profesionales | O5: 1.5 | P5: 1.5
N6: Desempleo | O6: 5.5 | P6: 6.7
N7: Formación profesional | O7: 0.6 | P7: 0.6
N8: FOGASA | O8: 0.2 | P8: 0.2
O9: 0.3207 | P9: 0.3327
B10: ='MODELO PPTO.'!B2 -> 2025 | C10: ='MODELO PPTO.'!H4 -> PROGRAMA:
B11: CÁLCULO COSTES DE EQUIPO TÉCNICO | J11: Base Diario 2025 (33,27%) | N11: =N12/30 -> 163.65 | P11: Cotización: | Q11: =N11*33.27% -> 54.446355 | T11: VACACIONES
B12: (2) TANTO LA UNIDAD COMO EL VALOR DE MEDIDA DEBEN ESTAR EN BASE MENSUAL excepto contratación por jornada | J12: Base Mensual 2025 (33,27%) | N12: 4909.5 | P12: Cotización: | Q12: =N12*33.27% -> 1633.39065 | T12: NATURALES_2,5 | AA12: INDEMNIZACIONES (días x año) | AF12: 12
B14: CODIGO | C14: Nº UND. | D14: CONCEPTO | E14: T.C (1) | F14: MEDIDA (2) | H14: Nª UNIDADES | L14: SALARIOS | N14: COSTE SS Unidad | O14: Cuota Solidaridad | P14: S.S. | T14: VACACIONES PERSONA | U14: VACACIONES | Y14: S.S.VACACIONES | AC14: FINIQUITO. | AG14: AJUSTE | AH14: TOTAL GENERAL
F15: Unidad | G15: Valor | H15: Pre | I15: Pro | J15: Post | K15: TOTAL | L15: TOTAL | P15: TOTAL | Q15: PRE | R15: PRO | S15: POST | U15: TOTAL | V15: PRE | W15: PRO | X15: POST | Y15: TOTAL | Z15: PRE | AA15: PRO | AB15: POST | AC15: TOTAL | AD15: PRE | AE15: PRO | AF15: POST | AG15: Explicar
B16: 03.01.00.00. | D16: Dirección y realización | L16: =SUM(L17:L36) -> 0 | N16: =SUM(N17:N36) -> 0 | O16: 0 | P16: 0 | Q16: 0 | R16: 0 | S16: 0 | T16: 0 | U16: 0 | V16: 0 | W16: 0 | X16: 0 | Y16: 0 | Z16: 0 | AA16: 0 | AB16: 0 | AC16: 0 | AD16: 0 | AE16: 0 | AF16: 0 | AG16: 0 | AH16: =SUM(AH17:AH36) -> 0
B17: ='MODELO PPTO.'!B201 -> 03.01.01.00. | C17: ='MODELO PPTO.'!C201 -> 0 | D17: ='MODELO PPTO.'!D201 -> Director/es | E17: ='MODELO PPTO.'!G201 -> - | F17: =+'MODELO PPTO.'!E201 -> 0 | G17: ='MODELO PPTO.'!F201 -> 0 | H17: ='MODELO PPTO.'!H201 -> 0 | I17: ='MODELO PPTO.'!I201 -> 0 | J17: ='MODELO PPTO.'!J201 -> 0 | K17: =SUM(H17:J17) -> 0 | L17: =K17*G17*C17 -> 0 | N17: =IF(E17="C",IF(G17<$N$12,G17*$P$9,$N$12*$P$9),IF(E17="F",IF(G17<$N$12,G17*$O$9,$N$12*$O$9),IF(E17="FD",IF(G17<$N$12,G17*$O$9,$N$12*$O$9),IF(E17="M",0,IF(E17="CJ",IF(G17>$N$11,G17*$P$9,$N$11*$P$9),0))))) -> 0 | P17: =(N17+O17)*K17*C17 -> 0 | Q17: =+N17*H17*C17 -> 0 | R17: =+N17*I17*C17 -> 0 | S17: =+N17*J17*C17 -> 0 | T17: =IF(E17="C",(G17/30*(IF($T$12="NATURALES_2,5",2.5,2.61))*K17),IF(E17="FD",(G17/30*(IF($T$12="NATURALES_2,5",2.5,2.61))*K17),0)) -> 0 | U17: =SUM(V17:X17) -> 0 | V17: =IF(E17="C",(G17/30*(IF($T$12="NATURALES_2,5",2.5,2.61))*H17*C17),IF(E17="FD",(G17/30*(IF($T$12="NATURALES_2,5",2.5,2.61))*H17*C17),0)) -> 0 | W17: =IF(E17="C",(G17/30*(IF($T$12="NATURALES_2,5",2.5,2.61))*I17*C17),IF(E17="FD",(G17/30*(IF($T$12="NATURALES_2,5",2.5,2.61))*I17*C17),0)) -> 0 | X17: =IF(E17="C",(G17/30*(IF($T$12="NATURALES_2,5",2.5,2.61))*J17*C17),IF(E17="FD",(G17/30*(IF($T$12="NATURALES_2,5",2.5,2.61))*J17*C17),0)) -> 0 | Y17: =IF(E17="C",IF(T17<$N$12*(IF($T$12="NATURALES_2,5",2.5,2.61))*K17/30,T17*$P$9*C17,$N$12*(IF($T$12="NATURALES_2,5",2.5,2.61))*K17/30*$P$9*C17),IF(E17="FD",IF(T17<$N$12*(IF($T$12="NATURALES_2,5",2.5,2.61))*K17/30,T17*$O$9*C17,$N$12*(IF($T$12="NATURALES_2,5",2.5,2.61))*K17/30*$O$9*C17),0)) -> 0 | Z17: =IF(Y17=0,0,Y17*H17/K17) -> 0 | AA17: =IF(Y17=0,0,Y17*I17/K17) -> 0 | AB17: =IF(Y17=0,0,Y17*J17/K17) -> 0 | AC17: =SUM(AD17:AG17) -> 0 | AD17: =IF(E17="C",(G17/30*H17/12*$AF$12*C17),0) -> 0 | AE17: =IF(E17="C",(G17/30*I17/12*$AF$12*C17),0) -> 0 | AF17: =IF(E17="C",(G17/30*J17/12*$AF$12*C17),0) -> 0 | AH17: =+L17+P17+U17+Y17+AC17 -> 0
B18: ='MODELO PPTO.'!B202 -> 03.01.01.01. | C18: ='MODELO PPTO.'!C202 -> 0 | D18: ='MODELO PPTO.'!D202 -> Sub-Director | E18: ='MODELO PPTO.'!G202 -> - | F18: =+'MODELO PPTO.'!E202 -> 0 | G18: ='MODELO PPTO.'!F202 -> 0 | H18: ='MODELO PPTO.'!H202 -> 0 | I18: ='MODELO PPTO.'!I202 -> 0 | J18: ='MODELO PPTO.'!J202 -> 0 | K18: =SUM(H18:J18) -> 0 | L18: =K18*G18*C18 -> 0 | N18: 0 | P18: =(N18+O18)*K18*C18 -> 0 | Q18: =+N18*H18*C18 -> 0 | R18: =+N18*I18*C18 -> 0 | S18: =+N18*J18*C18 -> 0 | T18: =IF(E18="C",(G18/30*(IF($T$12="NATURALES_2,5",2.5,2.61))*K18),IF(E18="FD",(G18/30*(IF($T$12="NATURALES_2,5",2.5,2.61))*K18),0)) -> 0 | U18: =SUM(V18:X18) -> 0 | V18: =IF(E18="C",(G18/30*(IF($T$12="NATURALES_2,5",2.5,2.61))*H18*C18),IF(E18="FD",(G18/30*(IF($T$12="NATURALES_2,5",2.5,2.61))*H18*C18),0)) -> 0 | W18: =IF(E18="C",(G18/30*(IF($T$12="NATURALES_2,5",2.5,2.61))*I18*C18),IF(E18="FD",(G18/30*(IF($T$12="NATURALES_2,5",2.5,2.61))*I18*C18),0)) -> 0 | X18: =IF(E18="C",(G18/30*(IF($T$12="NATURALES_2,5",2.5,2.61))*J18*C18),IF(E18="FD",(G18/30*(IF($T$12="NATURALES_2,5",2.5,2.61))*J18*C18),0)) -> 0 | Y18: 0 | Z18: =IF(Y18=0,0,Y18*H18/K18) -> 0 | AA18: =IF(Y18=0,0,Y18*I18/K18) -> 0 | AB18: =IF(Y18=0,0,Y18*J18/K18) -> 0 | AC18: =SUM(AD18:AG18) -> 0 | AD18: =IF(E18="C",(G18/30*H18/12*$AF$12*C18),0) -> 0 | AE18: =IF(E18="C",(G18/30*I18/12*$AF$12*C18),0) -> 0 | AF18: =IF(E18="C",(G18/30*J18/12*$AF$12*C18),0) -> 0 | AH18: 0
B19: ='MODELO PPTO.'!B203 -> 03.01.02.00. | C19: ='MODELO PPTO.'!C203 -> 0 | D19: ='MODELO PPTO.'!D203 -> Primer Ayte. de dirección | E19: ='MODELO PPTO.'!G203 -> - | F19: =+'MODELO PPTO.'!E203 -> 0 | G19: ='MODELO PPTO.'!F203 -> 0 | H19: ='MODELO PPTO.'!H203 -> 0 | I19: ='MODELO PPTO.'!I203 -> 0 | J19: ='MODELO PPTO.'!J203 -> 0 | K19: 0 | L19: =K19*G19*C19 -> 0 | N19: 0 | P19: 0 | Q19: =+N19*H19*C19 -> 0 | R19: =+N19*I19*C19 -> 0 | S19: 0 | T19: 0 | U19: 0 | V19: 0 | W19: 0 | X19: 0 | Y19: 0 | Z19: 0 | AA19: 0 | AB19: 0 | AC19: 0 | AD19: 0 | AE19: 0 | AF19: 0 | AH19: 0
B20: ='MODELO PPTO.'!B204 -> 03.01.03.00. | C20: ='MODELO PPTO.'!C204 -> 0 | D20: ='MODELO PPTO.'!D204 -> Segundo Ayte dirección | E20: ='MODELO PPTO.'!G204 -> - | F20: =+'MODELO PPTO.'!E204 -> 0 | G20: ='MODELO PPTO.'!F204 -> 0 | H20: ='MODELO PPTO.'!H204 -> 0 | I20: ='MODELO PPTO.'!I204 -> 0 | J20: ='MODELO PPTO.'!J204 -> 0 | K20: 0 | L20: 0 | N20: 0 | P20: 0 | Q20: =+N20*H20*C20 -> 0 | R20: =+N20*I20*C20 -> 0 | S20: 0 | T20: 0 | U20: 0 | V20: 0 | W20: 0 | X20: 0 | Y20: 0 | Z20: 0 | AA20: 0 | AB20: 0 | AC20: 0 | AD20: 0 | AE20: 0 | AF20: 0 | AH20: 0
B21: ='MODELO PPTO.'!B205 -> 03.01.02.01. | C21: ='MODELO PPTO.'!C205 -> 0 | D21: ='MODELO PPTO.'!D205 -> Primer Ayte. Dccon papeles | E21: ='MODELO PPTO.'!G205 -> - | F21: =+'MODELO PPTO.'!E205 -> 0 | G21: ='MODELO PPTO.'!F205 -> 0 | H21: ='MODELO PPTO.'!H205 -> 0 | I21: ='MODELO PPTO.'!I205 -> 0 | J21: ='MODELO PPTO.'!J205 -> 0 | K21: 0 | L21: 0 | N21: 0 | P21: 0 | Q21: 0 | R21: 0 | S21: 0 | T21: 0 | U21: 0 | V21: 0 | W21: 0 | X21: 0 | Y21: 0 | Z21: 0 | AA21: 0 | AB21: 0 | AC21: 0 | AD21: 0 | AE21: 0 | AF21: 0 | AH21: 0
B22: ='MODELO PPTO.'!B206 -> 03.01.03.01. | C22: ='MODELO PPTO.'!C206 -> 0 | D22: ='MODELO PPTO.'!D206 -> Segundo Ayte. Dccon papeles | E22: ='MODELO PPTO.'!G206 -> - | F22: =+'MODELO PPTO.'!E206 -> 0 | G22: ='MODELO PPTO.'!F206 -> 0 | H22: ='MODELO PPTO.'!H206 -> 0 | I22: ='MODELO PPTO.'!I206 -> 0 | J22: ='MODELO PPTO.'!J206 -> 0 | K22: 0 | L22: 0 | N22: 0 | P22: 0 | Q22: 0 | R22: 0 | S22: 0 | T22: 0 | U22: 0 | V22: 0 | W22: 0 | X22: 0 | Y22: 0 | Z22: 0 | AA22: 0 | AB22: 0 | AC22: 0 | AD22: 0 | AE22: 0 | AF22: 0 | AH22: 0
B23: ='MODELO PPTO.'!B207 -> 03.01.04.00. | C23: ='MODELO PPTO.'!C207 -> 0 | D23: ='MODELO PPTO.'!D207 -> Auxiliar de dirección. | E23: ='MODELO PPTO.'!G207 -> - | F23: =+'MODELO PPTO.'!E207 -> 0 | G23: ='MODELO PPTO.'!F207 -> 0 | H23: ='MODELO PPTO.'!H207 -> 0 | I23: ='MODELO PPTO.'!I207 -> 0 | J23: ='MODELO PPTO.'!J207 -> 0 | K23: 0 | L23: 0 | N23: 0 | P23: 0 | Q23: 0 | R23: 0 | S23: 0 | T23: 0 | U23: 0 | V23: 0 | W23: 0 | X23: 0 | Y23: 0 | Z23: 0 | AA23: 0 | AB23: 0 | AC23: 0 | AD23: 0 | AE23: 0 | AF23: 0 | AH23: 0
B24: ='MODELO PPTO.'!B208 -> 03.01.05.00. | C24: ='MODELO PPTO.'!C208 -> 0 | D24: ='MODELO PPTO.'!D208 -> Secretario/a de rodaje, Script | E24: ='MODELO PPTO.'!G208 -> - | F24: =+'MODELO PPTO.'!E208 -> 0 | G24: ='MODELO PPTO.'!F208 -> 0 | H24: ='MODELO PPTO.'!H208 -> 0 | I24: ='MODELO PPTO.'!I208 -> 0 | J24: ='MODELO PPTO.'!J208 -> 0 | K24: 0 | L24: 0 | N24: 0 | P24: 0 | Q24: 0 | R24: 0 | S24: 0 | T24: 0 | U24: 0 | V24: 0 | W24: 0 | X24: 0 | Y24: 0 | Z24: 0 | AA24: 0 | AB24: 0 | AC24: 0 | AD24: 0 | AE24: 0 | AF24: 0 | AH24: 0
B25: ='MODELO PPTO.'!B209 -> 03.01.06.00. | C25: ='MODELO PPTO.'!C209 -> 0 | D25: ='MODELO PPTO.'!D209 -> Director de Casting. | E25: ='MODELO PPTO.'!G209 -> - | F25: =+'MODELO PPTO.'!E209 -> 0 | G25: ='MODELO PPTO.'!F209 -> 0 | H25: ='MODELO PPTO.'!H209 -> 0 | I25: ='MODELO PPTO.'!I209 -> 0 | J25: ='MODELO PPTO.'!J209 -> 0 | K25: 0 | L25: 0 | N25: 0 | P25: 0 | Q25: 0 | R25: 0 | S25: 0 | T25: 0 | U25: 0 | V25: 0 | W25: 0 | X25: 0 | Y25: 0 | Z25: 0 | AA25: 0 | AB25: 0 | AC25: 0 | AD25: 0 | AE25: 0 | AF25: 0 | AH25: 0
B26: ='MODELO PPTO.'!B210 -> 03.01.06.01. | C26: ='MODELO PPTO.'!C210 -> 0 | D26: ='MODELO PPTO.'!D210 -> Ayte. casting | E26: ='MODELO PPTO.'!G210 -> - | F26: =+'MODELO PPTO.'!E210 -> 0 | G26: ='MODELO PPTO.'!F210 -> 0 | H26: ='MODELO PPTO.'!H210 -> 0 | I26: ='MODELO PPTO.'!I210 -> 0 | J26: ='MODELO PPTO.'!J210 -> 0 | K26: 0 | L26: 0 | N26: 0 | P26: 0 | Q26: 0 | R26: 0 | S26: 0 | T26: 0 | U26: 0 | V26: 0 | W26: 0 | X26: 0 | Y26: 0 | Z26: 0 | AA26: 0 | AB26: 0 | AC26: 0 | AD26: 0 | AE26: 0 | AF26: 0 | AH26: 0
B27: ='MODELO PPTO.'!B211 -> 03.01.07.00. | C27: ='MODELO PPTO.'!C211 -> 0 | D27: ='MODELO PPTO.'!D211 -> Coach/Director de reparto. | E27: ='MODELO PPTO.'!G211 -> - | F27: =+'MODELO PPTO.'!E211 -> 0 | G27: ='MODELO PPTO.'!F211 -> 0 | H27: ='MODELO PPTO.'!H211 -> 0 | I27: ='MODELO PPTO.'!I211 -> 0 | J27: ='MODELO PPTO.'!J211 -> 0 | K27: 0 | L27: 0 | N27: 0 | P27: 0 | Q27: 0 | R27: 0 | S27: 0 | T27: 0 | U27: 0 | V27: 0 | W27: 0 | X27: 0 | Y27: 0 | Z27: 0 | AA27: 0 | AB27: 0 | AC27: 0 | AD27: 0 | AE27: 0 | AF27: 0 | AH27: 0
B28: ='MODELO PPTO.'!B212 -> 03.01.08.00. | C28: ='MODELO PPTO.'!C212 -> 0 | D28: ='MODELO PPTO.'!D212 -> Realizador | E28: ='MODELO PPTO.'!G212 -> - | F28: =+'MODELO PPTO.'!E212 -> 0 | G28: ='MODELO PPTO.'!F212 -> 0 | H28: ='MODELO PPTO.'!H212 -> 0 | I28: ='MODELO PPTO.'!I212 -> 0 | J28: ='MODELO PPTO.'!J212 -> 0 | K28: 0 | L28: 0 | N28: 0 | P28: 0 | Q28: 0 | R28: 0 | S28: 0 | T28: 0 | U28: 0 | V28: 0 | W28: 0 | X28: 0 | Y28: 0 | Z28: 0 | AA28: 0 | AB28: 0 | AC28: 0 | AD28: 0 | AE28: 0 | AF28: 0 | AH28: 0
B29: ='MODELO PPTO.'!B213 -> 03.01.08.01. | C29: ='MODELO PPTO.'!C213 -> 0 | D29: ='MODELO PPTO.'!D213 -> Realizador 2º unidad. | E29: ='MODELO PPTO.'!G213 -> - | F29: =+'MODELO PPTO.'!E213 -> 0 | G29: ='MODELO PPTO.'!F213 -> 0 | H29: ='MODELO PPTO.'!H213 -> 0 | I29: ='MODELO PPTO.'!I213 -> 0 | J29: ='MODELO PPTO.'!J213 -> 0 | K29: 0 | L29: 0 | N29: 0 | P29: 0 | Q29: 0 | R29: 0 | S29: 0 | T29: 0 | U29: 0 | V29: 0 | W29: 0 | X29: 0 | Y29: 0 | Z29: 0 | AA29: 0 | AB29: 0 | AC29: 0 | AD29: 0 | AE29: 0 | AF29: 0 | AH29: 0
B30: ='MODELO PPTO.'!B214 -> 03.01.09.00. | C30: ='MODELO PPTO.'!C214 -> 0 | D30: ='MODELO PPTO.'!D214 -> Ayte. realización TV. | E30: ='MODELO PPTO.'!G214 -> - | F30: =+'MODELO PPTO.'!E214 -> 0 | G30: ='MODELO PPTO.'!F214 -> 0 | H30: ='MODELO PPTO.'!H214 -> 0 | I30: ='MODELO PPTO.'!I214 -> 0 | J30: ='MODELO PPTO.'!J214 -> 0 | K30: 0 | L30: 0 | N30: 0 | P30: 0 | Q30: 0 | R30: 0 | S30: 0 | T30: 0 | U30: 0 | V30: 0 | W30: 0 | X30: 0 | Y30: 0 | Z30: 0 | AA30: 0 | AB30: 0 | AC30: 0 | AD30: 0 | AE30: 0 | AF30: 0 | AH30: 0
B31: ='MODELO PPTO.'!B215 -> 03.01.10.00. | C31: ='MODELO PPTO.'!C215 -> 0 | D31: ='MODELO PPTO.'!D215 -> Dibujante story-board. | E31: ='MODELO PPTO.'!G215 -> - | F31: =+'MODELO PPTO.'!E215 -> 0 | G31: ='MODELO PPTO.'!F215 -> 0 | H31: ='MODELO PPTO.'!H215 -> 0 | I31: ='MODELO PPTO.'!I215 -> 0 | J31: ='MODELO PPTO.'!J215 -> 0 | K31: 0 | L31: 0 | N31: 0 | P31: 0 | Q31: 0 | R31: 0 | S31: 0 | T31: 0 | U31: 0 | V31: 0 | W31: 0 | X31: 0 | Y31: 0 | Z31: 0 | AA31: 0 | AB31: 0 | AC31: 0 | AD31: 0 | AE31: 0 | AF31: 0 | AH31: 0
B32: ='MODELO PPTO.'!B216 -> 03.01.11.00. | C32: ='MODELO PPTO.'!C216 -> 0 | D32: ='MODELO PPTO.'!D216 -> Regidor plato TV. | E32: ='MODELO PPTO.'!G216 -> - | F32: =+'MODELO PPTO.'!E216 -> 0 | G32: ='MODELO PPTO.'!F216 -> 0 | H32: ='MODELO PPTO.'!H216 -> 0 | I32: ='MODELO PPTO.'!I216 -> 0 | J32: ='MODELO PPTO.'!J216 -> 0 | K32: 0 | L32: 0 | N32: 0 | P32: 0 | Q32: 0 | R32: 0 | S32: 0 | T32: 0 | U32: 0 | V32: 0 | W32: 0 | X32: 0 | Y32: 0 | Z32: 0 | AA32: 0 | AB32: 0 | AC32: 0 | AD32: 0 | AE32: 0 | AF32: 0 | AH32: 0
B33: ='MODELO PPTO.'!B217 -> 03.01.12.00. | C33: ='MODELO PPTO.'!C217 -> 0 | D33: ='MODELO PPTO.'!D217 -> Meritorios | E33: ='MODELO PPTO.'!G217 -> - | F33: =+'MODELO PPTO.'!E217 -> 0 | G33: ='MODELO PPTO.'!F217 -> 0 | H33: ='MODELO PPTO.'!H217 -> 0 | I33: ='MODELO PPTO.'!I217 -> 0 | J33: ='MODELO PPTO.'!J217 -> 0 | K33: 0 | L33: 0 | N33: 0 | P33: 0 | Q33: 0 | R33: 0 | S33: 0 | T33: 0 | U33: 0 | V33: 0 | W33: 0 | X33: 0 | Y33: 0 | Z33: 0 | AA33: 0 | AB33: 0 | AC33: 0 | AD33: 0 | AE33: 0 | AF33: 0 | AH33: 0
B34: ='MODELO PPTO.'!B218 -> 03.01.13.00. | C34: ='MODELO PPTO.'!C218 -> 0 | D34: ='MODELO PPTO.'!D218 -> Becarios | E34: ='MODELO PPTO.'!G218 -> - | F34: =+'MODELO PPTO.'!E218 -> 0 | G34: ='MODELO PPTO.'!F218 -> 0 | H34: ='MODELO PPTO.'!H218 -> 0 | I34: ='MODELO PPTO.'!I218 -> 0 | J34: ='MODELO PPTO.'!J218 -> 0 | K34: =SUM(H34:J34) -> 0 | L34: =K34*G34*C34 -> 0 | N34: 0 | P34: 0 | Q34: =+N34*H34*C34 -> 0 | R34: =+N34*I34*C34 -> 0 | S34: =+N34*J34*C34 -> 0 | T34: 0 | U34: =SUM(V34:X34) -> 0 | V34: 0 | W34: 0 | X34: 0 | Y34: 0 | Z34: =IF(Y34=0,0,Y34*H34/K34) -> 0 | AA34: =IF(Y34=0,0,Y34*I34/K34) -> 0 | AB34: =IF(Y34=0,0,Y34*J34/K34) -> 0 | AC34: =SUM(AD34:AG34) -> 0 | AD34: =IF(E34="C",(G34/30*H34/12*$AF$12*C34),0) -> 0 | AE34: =IF(E34="C",(G34/30*I34/12*$AF$12*C34),0) -> 0 | AF34: =IF(E34="C",(G34/30*J34/12*$AF$12*C34),0) -> 0 | AH34: =+L34+P34+U34+Y34+AC34 -> 0
B35: ='MODELO PPTO.'!B219 -> 03.01.14.00. | C35: ='MODELO PPTO.'!C219 -> 0 | D35: ='MODELO PPTO.'!D219 -> 0 | E35: ='MODELO PPTO.'!G219 -> - | F35: =+'MODELO PPTO.'!E219 -> 0 | G35: ='MODELO PPTO.'!F219 -> 0 | H35: ='MODELO PPTO.'!H219 -> 0 | I35: ='MODELO PPTO.'!I219 -> 0 | J35: ='MODELO PPTO.'!J219 -> 0 | K35: 0 | L35: 0 | N35: 0 | P35: 0 | Q35: 0 | R35: 0 | S35: 0 | T35: =IF(E35="C",(G35/30*(IF($T$12="NATURALES_2,5",2.5,2.61))*K35),IF(E35="FD",(G35/30*(IF($T$12="NATURALES_2,5",2.5,2.61))*K35),0)) -> 0 | U35: 0 | V35: =IF(E35="C",(G35/30*(IF($T$12="NATURALES_2,5",2.5,2.61))*H35*C35),IF(E35="FD",(G35/30*(IF($T$12="NATURALES_2,5",2.5,2.61))*H35*C35),0)) -> 0 | W35: =IF(E35="C",(G35/30*(IF($T$12="NATURALES_2,5",2.5,2.61))*I35*C35),IF(E35="FD",(G35/30*(IF($T$12="NATURALES_2,5",2.5,2.61))*I35*C35),0)) -> 0 | X35: =IF(E35="C",(G35/30*(IF($T$12="NATURALES_2,5",2.5,2.61))*J35*C35),IF(E35="FD",(G35/30*(IF($T$12="NATURALES_2,5",2.5,2.61))*J35*C35),0)) -> 0 | Y35: 0 | Z35: 0 | AA35: 0 | AB35: 0 | AC35: 0 | AD35: 0 | AE35: 0 | AF35: 0 | AH35: 0
B36: ='MODELO PPTO.'!B220 -> 0 | C36: ='MODELO PPTO.'!C220 -> 0 | D36: ='MODELO PPTO.'!D220 -> Para añadir nuevas partidas, insertadlas en ESTA fila y arrastrad formulas de la fila superior | E36: ='MODELO PPTO.'!G220 -> - | F36: =+'MODELO PPTO.'!E220 -> 0 | G36: ='MODELO PPTO.'!F220 -> 0 | H36: ='MODELO PPTO.'!H220 -> 0 | I36: ='MODELO PPTO.'!I220 -> 0 | J36: ='MODELO PPTO.'!J220 -> 0 | K36: 0 | L36: 0 | N36: 0 | P36: 0 | Q36: 0 | R36: 0 | S36: 0 | T36: =IF(E36="C",(G36/30*(IF($T$12="NATURALES_2,5",2.5,2.61))*K36),IF(E36="FD",(G36/30*(IF($T$12="NATURALES_2,5",2.5,2.61))*K36),0)) -> 0 | U36: 0 | V36: =IF(E36="C",(G36/30*(IF($T$12="NATURALES_2,5",2.5,2.61))*H36*C36),IF(E36="FD",(G36/30*(IF($T$12="NATURALES_2,5",2.5,2.61))*H36*C36),0)) -> 0 | W36: =IF(E36="C",(G36/30*(IF($T$12="NATURALES_2,5",2.5,2.61))*I36*C36),IF(E36="FD",(G36/30*(IF($T$12="NATURALES_2,5",2.5,2.61))*I36*C36),0)) -> 0 | X36: =IF(E36="C",(G36/30*(IF($T$12="NATURALES_2,5",2.5,2.61))*J36*C36),IF(E36="FD",(G36/30*(IF($T$12="NATURALES_2,5",2.5,2.61))*J36*C36),0)) -> 0 | Y36: 0 | Z36: 0 | AA36: 0 | AB36: 0 | AC36: 0 | AD36: 0 | AE36: 0 | AF36: 0 | AH36: 0
B37: 03.02.00.00. | D37: Producción//Redacción y Documentación | L37: =SUM(L38:L59) -> 0 | M37: 0 | N37: 0 | O37: 0 | P37: 0 | Q37: 0 | R37: 0 | S37: 0 | T37: 0 | U37: 0 | V37: 0 | W37: 0 | X37: 0 | Y37: 0 | Z37: 0 | AA37: 0 | AB37: 0 | AC37: 0 | AD37: 0 | AE37: 0 | AF37: 0 | AG37: 0 | AH37: =SUM(AH38:AH59) -> 0
B38: ='MODELO PPTO.'!B223 -> 03.02.01.00. | C38: ='MODELO PPTO.'!C223 -> 0 | D38: ='MODELO PPTO.'!D223 -> Productor Ejecutivo | E38: ='MODELO PPTO.'!G223 -> - | F38: =+'MODELO PPTO.'!E223 -> 0 | G38: ='MODELO PPTO.'!F223 -> 0 | H38: ='MODELO PPTO.'!H223 -> 0 | I38: ='MODELO PPTO.'!I223 -> 0 | J38: ='MODELO PPTO.'!J223 -> 0 | K38: =SUM(H38:J38) -> 0 | L38: =K38*G38*C38 -> 0 | N38: =IF(E38="C",IF(G38<$N$12,G38*$P$9,$N$12*$P$9),IF(E38="F",IF(G38<$N$12,G38*$O$9,$N$12*$O$9),IF(E38="FD",IF(G38<$N$12,G38*$O$9,$N$12*$O$9),IF(E38="M",0,IF(E38="CJ",IF(G38>$N$11,G38*$P$9,$N$11*$P$9),0))))) -> 0 | P38: =(N38+O38)*K38*C38 -> 0 | Q38: =+N38*H38*C38 -> 0 | R38: =+N38*I38*C38 -> 0 | S38: =+N38*J38*C38 -> 0 | T38: =IF(E38="C",(G38/30*(IF($T$12="NATURALES_2,5",2.5,2.61))*K38),IF(E38="FD",(G38/30*(IF($T$12="NATURALES_2,5",2.5,2.61))*K38),0)) -> 0 | U38: =SUM(V38:X38) -> 0 | V38: =IF(E38="C",(G38/30*(IF($T$12="NATURALES_2,5",2.5,2.61))*H38*C38),IF(E38="FD",(G38/30*(IF($T$12="NATURALES_2,5",2.5,2.61))*H38*C38),0)) -> 0 | W38: =IF(E38="C",(G38/30*(IF($T$12="NATURALES_2,5",2.5,2.61))*I38*C38),IF(E38="FD",(G38/30*(IF($T$12="NATURALES_2,5",2.5,2.61))*I38*C38),0)) -> 0 | X38: =IF(E38="C",(G38/30*(IF($T$12="NATURALES_2,5",2.5,2.61))*J38*C38),IF(E38="FD",(G38/30*(IF($T$12="NATURALES_2,5",2.5,2.61))*J38*C38),0)) -> 0 | Y38: =IF(E38="C",IF(T38<$N$12*(IF($T$12="NATURALES_2,5",2.5,2.61))*K38/30,T38*$P$9*C38,$N$12*(IF($T$12="NATURALES_2,5",2.5,2.61))*K38/30*$P$9*C38),IF(E38="FD",IF(T38<$N$12*(IF($T$12="NATURALES_2,5",2.5,2.61))*K38/30,T38*$O$9*C38,$N$12*(IF($T$12="NATURALES_2,5",2.5,2.61))*K38/30*$O$9*C38),0)) -> 0 | Z38: =IF(Y38=0,0,Y38*H38/K38) -> 0 | AA38: =IF(Y38=0,0,Y38*I38/K38) -> 0 | AB38: =IF(Y38=0,0,Y38*J38/K38) -> 0 | AC38: =IF(E38="C",(G38/30*K38/12*12*C38),0)+AG38 -> 0 | AD38: =IF(E38="C",(G38/30*H38/12*12*C38),0) -> 0 | AE38: =IF(E38="C",(G38/30*I38/12*12*C38),0) -> 0 | AF38: =IF(E38="C",(G38/30*J38/12*12*C38),0) -> 0 | AH38: =+L38+P38+U38+Y38+AC38 -> 0
B39: ='MODELO PPTO.'!B224 -> 03.02.02.00. | C39: ='MODELO PPTO.'!C224 -> 0 | D39: ='MODELO PPTO.'!D224 -> Director de producción | E39: ='MODELO PPTO.'!G224 -> - | F39: =+'MODELO PPTO.'!E224 -> 0 | G39: ='MODELO PPTO.'!F224 -> 0 | H39: ='MODELO PPTO.'!H224 -> 0 | I39: ='MODELO PPTO.'!I224 -> 0 | J39: ='MODELO PPTO.'!J224 -> 0 | K39: =SUM(H39:J39) -> 0 | L39: 0 | N39: 0 | P39: =(N39+O39)*K39*C39 -> 0 | Q39: 0 | R39: 0 | S39: 0 | T39: 0 | U39: 0 | V39: 0 | W39: 0 | X39: 0 | Y39: 0 | Z39: 0 | AA39: 0 | AB39: 0 | AC39: =IF(E39="C",(G39/30*K39/12*12*C39),0)+AG39 -> 0 | AD39: =IF(E39="C",(G39/30*H39/12*12*C39),0) -> 0 | AE39: =IF(E39="C",(G39/30*I39/12*12*C39),0) -> 0 | AF39: =IF(E39="C",(G39/30*J39/12*12*C39),0) -> 0 | AH39: 0
B40: ='MODELO PPTO.'!B225 -> 03.02.03.00. | C40: ='MODELO PPTO.'!C225 -> 0 | D40: ='MODELO PPTO.'!D225 -> Jefe de producción | E40: ='MODELO PPTO.'!G225 -> - | F40: =+'MODELO PPTO.'!E225 -> 0 | G40: ='MODELO PPTO.'!F225 -> 0 | H40: ='MODELO PPTO.'!H225 -> 0 | I40: ='MODELO PPTO.'!I225 -> 0 | J40: ='MODELO PPTO.'!J225 -> 0 | K40: 0 | L40: 0 | N40: 0 | P40: 0 | Q40: 0 | R40: 0 | S40: 0 | T40: 0 | U40: 0 | V40: 0 | W40: 0 | X40: 0 | Y40: 0 | Z40: 0 | AA40: 0 | AB40: 0 | AC40: =IF(E40="C",(G40/30*K40/12*12*C40),0)+AG40 -> 0 | AD40: =IF(E40="C",(G40/30*H40/12*12*C40),0) -> 0 | AE40: =IF(E40="C",(G40/30*I40/12*12*C40),0) -> 0 | AF40: =IF(E40="C",(G40/30*J40/12*12*C40),0) -> 0 | AH40: 0
B41: ='MODELO PPTO.'!B226 -> 03.02.04.00. | C41: ='MODELO PPTO.'!C226 -> 0 | D41: ='MODELO PPTO.'!D226 -> 1º Ayte. de producción | E41: ='MODELO PPTO.'!G226 -> - | F41: =+'MODELO PPTO.'!E226 -> 0 | G41: ='MODELO PPTO.'!F226 -> 0 | H41: ='MODELO PPTO.'!H226 -> 0 | I41: ='MODELO PPTO.'!I226 -> 0 | J41: ='MODELO PPTO.'!J226 -> 0 | K41: 0 | L41: 0 | N41: 0 | P41: 0 | Q41: 0 | R41: 0 | S41: 0 | T41: 0 | U41: 0 | V41: 0 | W41: 0 | X41: 0 | Y41: 0 | Z41: 0 | AA41: 0 | AB41: 0 | AC41: 0 | AD41: 0 | AE41: 0 | AF41: 0 | AH41: 0
B42: ='MODELO PPTO.'!B227 -> 03.02.05.00. | C42: ='MODELO PPTO.'!C227 -> 0 | D42: ='MODELO PPTO.'!D227 -> 2º Ayte. producción. | E42: ='MODELO PPTO.'!G227 -> - | F42: =+'MODELO PPTO.'!E227 -> 0 | G42: ='MODELO PPTO.'!F227 -> 0 | H42: ='MODELO PPTO.'!H227 -> 0 | I42: ='MODELO PPTO.'!I227 -> 0 | J42: ='MODELO PPTO.'!J227 -> 0 | K42: 0 | L42: 0 | N42: 0 | P42: 0 | Q42: 0 | R42: 0 | S42: 0 | T42: 0 | U42: 0 | V42: 0 | W42: 0 | X42: 0 | Y42: 0 | Z42: 0 | AA42: 0 | AB42: 0 | AC42: 0 | AD42: 0 | AE42: 0 | AF42: 0 | AH42: 0
B43: ='MODELO PPTO.'!B228 -> 03.02.06.00. | C43: ='MODELO PPTO.'!C228 -> 0 | D43: ='MODELO PPTO.'!D228 -> Auxiliar de producción. | E43: ='MODELO PPTO.'!G228 -> - | F43: =+'MODELO PPTO.'!E228 -> 0 | G43: ='MODELO PPTO.'!F228 -> 0 | H43: ='MODELO PPTO.'!H228 -> 0 | I43: ='MODELO PPTO.'!I228 -> 0 | J43: ='MODELO PPTO.'!J228 -> 0 | K43: 0 | L43: 0 | N43: 0 | P43: 0 | Q43: 0 | R43: 0 | S43: 0 | T43: 0 | U43: 0 | V43: 0 | W43: 0 | X43: 0 | Y43: 0 | Z43: 0 | AA43: 0 | AB43: 0 | AC43: 0 | AD43: 0 | AE43: 0 | AF43: 0 | AH43: 0
B44: ='MODELO PPTO.'!B229 -> 03.02.07.00. | C44: ='MODELO PPTO.'!C229 -> 0 | D44: ='MODELO PPTO.'!D229 -> Jefe localizaciones. | E44: ='MODELO PPTO.'!G229 -> - | F44: =+'MODELO PPTO.'!E229 -> 0 | G44: ='MODELO PPTO.'!F229 -> 0 | H44: ='MODELO PPTO.'!H229 -> 0 | I44: ='MODELO PPTO.'!I229 -> 0 | J44: ='MODELO PPTO.'!J229 -> 0 | K44: 0 | L44: 0 | N44: 0 | P44: 0 | Q44: 0 | R44: 0 | S44: 0 | T44: 0 | U44: 0 | V44: 0 | W44: 0 | X44: 0 | Y44: 0 | Z44: 0 | AA44: 0 | AB44: 0 | AC44: 0 | AD44: 0 | AE44: 0 | AF44: 0 | AH44: 0
B45: ='MODELO PPTO.'!B230 -> 03.02.08.00. | C45: ='MODELO PPTO.'!C230 -> 0 | D45: ='MODELO PPTO.'!D230 -> Coordinador de postproducción | E45: ='MODELO PPTO.'!G230 -> - | F45: =+'MODELO PPTO.'!E230 -> 0 | G45: ='MODELO PPTO.'!F230 -> 0 | H45: ='MODELO PPTO.'!H230 -> 0 | I45: ='MODELO PPTO.'!I230 -> 0 | J45: ='MODELO PPTO.'!J230 -> 0 | K45: 0 | L45: 0 | N45: 0 | P45: 0 | Q45: 0 | R45: 0 | S45: 0 | T45: 0 | U45: 0 | V45: 0 | W45: 0 | X45: 0 | Y45: 0 | Z45: 0 | AA45: 0 | AB45: 0 | AC45: 0 | AD45: 0 | AE45: 0 | AF45: 0 | AH45: 0
B46: ='MODELO PPTO.'!B231 -> 03.02.09.00. | C46: ='MODELO PPTO.'!C231 -> 0 | D46: ='MODELO PPTO.'!D231 -> Secretaría producción. | E46: ='MODELO PPTO.'!G231 -> - | F46: =+'MODELO PPTO.'!E231 -> 0 | G46: ='MODELO PPTO.'!F231 -> 0 | H46: ='MODELO PPTO.'!H231 -> 0 | I46: ='MODELO PPTO.'!I231 -> 0 | J46: ='MODELO PPTO.'!J231 -> 0 | K46: 0 | L46: 0 | N46: 0 | P46: 0 | Q46: 0 | R46: 0 | S46: 0 | T46: 0 | U46: 0 | V46: 0 | W46: 0 | X46: 0 | Y46: 0 | Z46: 0 | AA46: 0 | AB46: 0 | AC46: 0 | AD46: 0 | AE46: 0 | AF46: 0 | AH46: 0
B47: ='MODELO PPTO.'!B232 -> 03.02.10.00. | C47: ='MODELO PPTO.'!C232 -> 0 | D47: ='MODELO PPTO.'!D232 -> Cajero-pagador/Control económico de la producción | E47: ='MODELO PPTO.'!G232 -> - | F47: =+'MODELO PPTO.'!E232 -> 0 | G47: ='MODELO PPTO.'!F232 -> 0 | H47: ='MODELO PPTO.'!H232 -> 0 | I47: ='MODELO PPTO.'!I232 -> 0 | J47: ='MODELO PPTO.'!J232 -> 0 | K47: 0 | L47: 0 | N47: 0 | P47: 0 | Q47: 0 | R47: 0 | S47: 0 | T47: 0 | U47: 0 | V47: 0 | W47: 0 | X47: 0 | Y47: 0 | Z47: 0 | AA47: 0 | AB47: 0 | AC47: 0 | AD47: 0 | AE47: 0 | AF47: 0 | AH47: 0
B48: ='MODELO PPTO.'!B233 -> 03.02.11.00. | C48: ='MODELO PPTO.'!C233 -> 0 | D48: ='MODELO PPTO.'!D233 -> Documentalistas | E48: ='MODELO PPTO.'!G233 -> - | F48: =+'MODELO PPTO.'!E233 -> 0 | G48: ='MODELO PPTO.'!F233 -> 0 | H48: ='MODELO PPTO.'!H233 -> 0 | I48: ='MODELO PPTO.'!I233 -> 0 | J48: ='MODELO PPTO.'!J233 -> 0 | K48: =SUM(H48:J48) -> 0 | L48: =K48*G48*C48 -> 0 | N48: 0 | P48: 0 | Q48: =+N48*H48*C48 -> 0 | R48: =+N48*I48*C48 -> 0 | S48: =+N48*J48*C48 -> 0 | T48: 0 | U48: =SUM(V48:X48) -> 0 | V48: 0 | W48: 0 | X48: 0 | Y48: 0 | Z48: =IF(Y48=0,0,Y48*H48/K48) -> 0 | AA48: =IF(Y48=0,0,Y48*I48/K48) -> 0 | AB48: =IF(Y48=0,0,Y48*J48/K48) -> 0 | AC48: 0 | AD48: 0 | AE48: 0 | AF48: 0 | AH48: 0
B49: ='MODELO PPTO.'!B234 -> 03.02.12.00. | C49: ='MODELO PPTO.'!C234 -> 0 | D49: ='MODELO PPTO.'!D234 -> Guionistas (laborales) contrato | E49: ='MODELO PPTO.'!G234 -> - | F49: =+'MODELO PPTO.'!E234 -> 0 | G49: ='MODELO PPTO.'!F234 -> 0 | H49: ='MODELO PPTO.'!H234 -> 0 | I49: ='MODELO PPTO.'!I234 -> 0 | J49: ='MODELO PPTO.'!J234 -> 0 | K49: 0 | L49: 0 | N49: 0 | P49: 0 | Q49: 0 | R49: 0 | S49: 0 | T49: 0 | U49: 0 | V49: 0 | W49: 0 | X49: 0 | Y49: 0 | Z49: 0 | AA49: 0 | AB49: 0 | AC49: 0 | AD49: 0 | AE49: 0 | AF49: 0 | AH49: 0
B50: ='MODELO PPTO.'!B235 -> 03.02.13.00. | C50: ='MODELO PPTO.'!C235 -> 0 | D50: ='MODELO PPTO.'!D235 -> Redactores | E50: ='MODELO PPTO.'!G235 -> - | F50: =+'MODELO PPTO.'!E235 -> 0 | G50: ='MODELO PPTO.'!F235 -> 0 | H50: ='MODELO PPTO.'!H235 -> 0 | I50: ='MODELO PPTO.'!I235 -> 0 | J50: ='MODELO PPTO.'!J235 -> 0 | K50: 0 | L50: 0 | N50: 0 | P50: 0 | Q50: 0 | R50: 0 | S50: 0 | T50: 0 | U50: 0 | V50: 0 | W50: 0 | X50: 0 | Y50: 0 | Z50: 0 | AA50: 0 | AB50: 0 | AC50: 0 | AD50: 0 | AE50: 0 | AF50: 0 | AH50: 0
B51: ='MODELO PPTO.'!B236 -> 03.02.14.00. | C51: ='MODELO PPTO.'!C236 -> 0 | D51: ='MODELO PPTO.'!D236 -> Reporteros | E51: ='MODELO PPTO.'!G236 -> - | F51: =+'MODELO PPTO.'!E236 -> 0 | G51: ='MODELO PPTO.'!F236 -> 0 | H51: ='MODELO PPTO.'!H236 -> 0 | I51: ='MODELO PPTO.'!I236 -> 0 | J51: ='MODELO PPTO.'!J236 -> 0 | K51: 0 | L51: 0 | N51: 0 | P51: 0 | Q51: 0 | R51: 0 | S51: 0 | T51: 0 | U51: 0 | V51: 0 | W51: 0 | X51: 0 | Y51: 0 | Z51: 0 | AA51: 0 | AB51: 0 | AC51: 0 | AD51: 0 | AE51: 0 | AF51: 0 | AH51: 0
B52: ='MODELO PPTO.'!B237 -> 03.02.15.00. | C52: ='MODELO PPTO.'!C237 -> 0 | D52: ='MODELO PPTO.'!D237 -> Coordinador Digital - en Producción | E52: ='MODELO PPTO.'!G237 -> - | F52: =+'MODELO PPTO.'!E237 -> 0 | G52: ='MODELO PPTO.'!F237 -> 0 | H52: ='MODELO PPTO.'!H237 -> 0 | I52: ='MODELO PPTO.'!I237 -> 0 | J52: ='MODELO PPTO.'!J237 -> 0 | K52: 0 | L52: 0 | N52: 0 | P52: 0 | Q52: 0 | R52: 0 | S52: 0 | T52: 0 | U52: 0 | V52: 0 | W52: 0 | X52: 0 | Y52: 0 | Z52: 0 | AA52: 0 | AB52: 0 | AC52: 0 | AD52: 0 | AE52: 0 | AF52: 0 | AH52: 0
B53: ='MODELO PPTO.'!B238 -> 03.02.16.00. | C53: ='MODELO PPTO.'!C238 -> 0 | D53: ='MODELO PPTO.'!D238 -> Coordinador Digital - en Emisión fuera de Calendario | E53: ='MODELO PPTO.'!G238 -> - | F53: =+'MODELO PPTO.'!E238 -> 0 | G53: ='MODELO PPTO.'!F238 -> 0 | H53: ='MODELO PPTO.'!H238 -> 0 | I53: ='MODELO PPTO.'!I238 -> 0 | J53: ='MODELO PPTO.'!J238 -> 0 | K53: 0 | L53: 0 | N53: 0 | P53: 0 | Q53: 0 | R53: 0 | S53: 0 | T53: 0 | U53: 0 | V53: 0 | W53: 0 | X53: 0 | Y53: 0 | Z53: 0 | AA53: 0 | AB53: 0 | AC53: 0 | AD53: 0 | AE53: 0 | AF53: 0 | AH53: 0
B54: ='MODELO PPTO.'!B239 -> 03.02.17.00. | C54: ='MODELO PPTO.'!C239 -> 0 | D54: ='MODELO PPTO.'!D239 -> 0 | E54: ='MODELO PPTO.'!G239 -> - | F54: =+'MODELO PPTO.'!E239 -> 0 | G54: ='MODELO PPTO.'!F239 -> 0 | H54: ='MODELO PPTO.'!H239 -> 0 | I54: ='MODELO PPTO.'!I239 -> 0 | J54: ='MODELO PPTO.'!J239 -> 0 | K54: 0 | L54: 0 | N54: 0 | P54: 0 | Q54: 0 | R54: 0 | S54: 0 | T54: 0 | U54: 0 | V54: 0 | W54: 0 | X54: 0 | Y54: 0 | Z54: 0 | AA54: 0 | AB54: 0 | AC54: 0 | AD54: 0 | AE54: 0 | AF54: 0 | AH54: 0
B55: ='MODELO PPTO.'!B240 -> 03.02.18.00. | C55: ='MODELO PPTO.'!C240 -> 0 | D55: ='MODELO PPTO.'!D240 -> 0 | E55: ='MODELO PPTO.'!G240 -> - | F55: =+'MODELO PPTO.'!E240 -> 0 | G55: ='MODELO PPTO.'!F240 -> 0 | H55: ='MODELO PPTO.'!H240 -> 0 | I55: ='MODELO PPTO.'!I240 -> 0 | J55: ='MODELO PPTO.'!J240 -> 0 | K55: 0 | L55: 0 | N55: 0 | P55: 0 | Q55: 0 | R55: 0 | S55: 0 | T55: 0 | U55: 0 | V55: 0 | W55: 0 | X55: 0 | Y55: 0 | Z55: 0 | AA55: 0 | AB55: 0 | AC55: 0 | AD55: 0 | AE55: 0 | AF55: 0 | AH55: 0
B56: ='MODELO PPTO.'!B241 -> 03.02.19.00. | C56: ='MODELO PPTO.'!C241 -> 0 | D56: ='MODELO PPTO.'!D241 -> 0 | E56: ='MODELO PPTO.'!G241 -> - | F56: =+'MODELO PPTO.'!E241 -> 0 | G56: ='MODELO PPTO.'!F241 -> 0 | H56: ='MODELO PPTO.'!H241 -> 0 | I56: ='MODELO PPTO.'!I241 -> 0 | J56: ='MODELO PPTO.'!J241 -> 0 | K56: 0 | L56: 0 | N56: 0 | P56: 0 | Q56: 0 | R56: 0 | S56: 0 | T56: 0 | U56: 0 | V56: 0 | W56: 0 | X56: 0 | Y56: 0 | Z56: 0 | AA56: 0 | AB56: 0 | AC56: 0 | AD56: 0 | AE56: 0 | AF56: 0 | AH56: 0
B57: ='MODELO PPTO.'!B242 -> 03.02.20.00. | C57: ='MODELO PPTO.'!C242 -> 0 | D57: ='MODELO PPTO.'!D242 -> 0 | E57: ='MODELO PPTO.'!G242 -> - | F57: =+'MODELO PPTO.'!E242 -> 0 | G57: ='MODELO PPTO.'!F242 -> 0 | H57: ='MODELO PPTO.'!H242 -> 0 | I57: ='MODELO PPTO.'!I242 -> 0 | J57: ='MODELO PPTO.'!J242 -> 0 | K57: 0 | L57: 0 | N57: 0 | P57: 0 | Q57: 0 | R57: 0 | S57: 0 | T57: 0 | U57: 0 | V57: 0 | W57: 0 | X57: 0 | Y57: 0 | Z57: 0 | AA57: 0 | AB57: 0 | AC57: 0 | AD57: 0 | AE57: 0 | AF57: 0 | AH57: 0
B58: ='MODELO PPTO.'!B243 -> 03.02.21.00. | C58: ='MODELO PPTO.'!C243 -> 0 | D58: ='MODELO PPTO.'!D243 -> 0 | E58: ='MODELO PPTO.'!G243 -> - | F58: =+'MODELO PPTO.'!E243 -> 0 | G58: ='MODELO PPTO.'!F243 -> 0 | H58: ='MODELO PPTO.'!H243 -> 0 | I58: ='MODELO PPTO.'!I243 -> 0 | J58: ='MODELO PPTO.'!J243 -> 0 | K58: 0 | L58: 0 | N58: 0 | P58: 0 | Q58: 0 | R58: 0 | S58: 0 | T58: =IF(E58="C",(G58/30*(IF($T$12="NATURALES_2,5",2.5,2.61))*K58),IF(E58="FD",(G58/30*(IF($T$12="NATURALES_2,5",2.5,2.61))*K58),0)) -> 0 | U58: 0 | V58: =IF(E58="C",(G58/30*(IF($T$12="NATURALES_2,5",2.5,2.61))*H58*C58),IF(E58="FD",(G58/30*(IF($T$12="NATURALES_2,5",2.5,2.61))*H58*C58),0)) -> 0 | W58: =IF(E58="C",(G58/30*(IF($T$12="NATURALES_2,5",2.5,2.61))*I58*C58),IF(E58="FD",(G58/30*(IF($T$12="NATURALES_2,5",2.5,2.61))*I58*C58),0)) -> 0 | X58: =IF(E58="C",(G58/30*(IF($T$12="NATURALES_2,5",2.5,2.61))*J58*C58),IF(E58="FD",(G58/30*(IF($T$12="NATURALES_2,5",2.5,2.61))*J58*C58),0)) -> 0 | Y58: 0 | Z58: 0 | AA58: 0 | AB58: 0 | AC58: 0 | AD58: 0 | AE58: 0 | AF58: 0 | AH58: 0
B59: ='MODELO PPTO.'!B244 -> 0 | C59: ='MODELO PPTO.'!C244 -> 0 | D59: ='MODELO PPTO.'!D244 -> Para añadir nuevas partidas, insertadlas en ESTA fila y arrastrad formulas de la fila superior | E59: ='MODELO PPTO.'!G244 -> - | F59: =+'MODELO PPTO.'!E244 -> 0 | G59: ='MODELO PPTO.'!F244 -> 0 | H59: ='MODELO PPTO.'!H244 -> 0 | I59: ='MODELO PPTO.'!I244 -> 0 | J59: ='MODELO PPTO.'!J244 -> 0 | K59: 0 | L59: 0 | N59: 0 | P59: 0 | Q59: 0 | R59: 0 | S59: 0 | T59: =IF(E59="C",(G59/30*(IF($T$12="NATURALES_2,5",2.5,2.61))*K59),IF(E59="FD",(G59/30*(IF($T$12="NATURALES_2,5",2.5,2.61))*K59),0)) -> 0 | U59: 0 | V59: =IF(E59="C",(G59/30*(IF($T$12="NATURALES_2,5",2.5,2.61))*H59*C59),IF(E59="FD",(G59/30*(IF($T$12="NATURALES_2,5",2.5,2.61))*H59*C59),0)) -> 0 | W59: =IF(E59="C",(G59/30*(IF($T$12="NATURALES_2,5",2.5,2.61))*I59*C59),IF(E59="FD",(G59/30*(IF($T$12="NATURALES_2,5",2.5,2.61))*I59*C59),0)) -> 0 | X59: =IF(E59="C",(G59/30*(IF($T$12="NATURALES_2,5",2.5,2.61))*J59*C59),IF(E59="FD",(G59/30*(IF($T$12="NATURALES_2,5",2.5,2.61))*J59*C59),0)) -> 0 | Y59: 0 | Z59: 0 | AA59: 0 | AB59: 0 | AC59: 0 | AD59: 0 | AE59: 0 | AF59: 0 | AH59: 0
B60: 03.03.00.00. | D60: Fotografía | L60: =SUM(L61:L78) -> 0 | M60: 0 | N60: 0 | O60: 0 | P60: 0 | Q60: 0 | R60: 0 | S60: 0 | T60: 0 | U60: 0 | V60: 0 | W60: 0 | X60: 0 | Y60: 0 | Z60: 0 | AA60: 0 | AB60: 0 | AC60: 0 | AD60: 0 | AE60: 0 | AF60: 0 | AG60: 0 | AH60: =SUM(AH61:AH78) -> 0
B61: ='MODELO PPTO.'!B247 -> 03.03.01.00. | C61: ='MODELO PPTO.'!C247 -> 0 | D61: ='MODELO PPTO.'!D247 -> Director de fotografia. Iluminador | E61: ='MODELO PPTO.'!G247 -> - | F61: =+'MODELO PPTO.'!E247 -> 0 | G61: ='MODELO PPTO.'!F247 -> 0 | H61: ='MODELO PPTO.'!H247 -> 0 | I61: ='MODELO PPTO.'!I247 -> 0 | J61: ='MODELO PPTO.'!J247 -> 0 | K61: 0 | L61: 0 | N61: =IF(E61="C",IF(G61<$N$12,G61*$P$9,$N$12*$P$9),IF(E61="F",IF(G61<$N$12,G61*$O$9,$N$12*$O$9),IF(E61="FD",IF(G61<$N$12,G61*$O$9,$N$12*$O$9),IF(E61="M",0,IF(E61="CJ",IF(G61>$N$11,G61*$P$9,$N$11*$P$9),0))))) -> 0 | P61: =(N61+O61)*K61*C61 -> 0 | Q61: =+N61*H61*C61 -> 0 | R61: =+N61*I61*C61 -> 0 | S61: =+N61*J61*C61 -> 0 | T61: =IF(E61="C",(G61/30*(IF($T$12="NATURALES_2,5",2.5,2.61))*K61),IF(E61="FD",(G61/30*(IF($T$12="NATURALES_2,5",2.5,2.61))*K61),0)) -> 0 | U61: =SUM(V61:X61) -> 0 | V61: =IF(E61="C",(G61/30*(IF($T$12="NATURALES_2,5",2.5,2.61))*H61*C61),IF(E61="FD",(G61/30*(IF($T$12="NATURALES_2,5",2.5,2.61))*H61*C61),0)) -> 0 | W61: =IF(E61="C",(G61/30*(IF($T$12="NATURALES_2,5",2.5,2.61))*I61*C61),IF(E61="FD",(G61/30*(IF($T$12="NATURALES_2,5",2.5,2.61))*I61*C61),0)) -> 0 | X61: =IF(E61="C",(G61/30*(IF($T$12="NATURALES_2,5",2.5,2.61))*J61*C61),IF(E61="FD",(G61/30*(IF($T$12="NATURALES_2,5",2.5,2.61))*J61*C61),0)) -> 0 | Y61: =IF(E61="C",IF(T61<$N$12*(IF($T$12="NATURALES_2,5",2.5,2.61))*K61/30,T61*$P$9*C61,$N$12*(IF($T$12="NATURALES_2,5",2.5,2.61))*K61/30*$P$9*C61),IF(E61="FD",IF(T61<$N$12*(IF($T$12="NATURALES_2,5",2.5,2.61))*K61/30,T61*$O$9*C61,$N$12*(IF($T$12="NATURALES_2,5",2.5,2.61))*K61/30*$O$9*C61),0)) -> 0 | Z61: =IF(Y61=0,0,Y61*H61/K61) -> 0 | AA61: =IF(Y61=0,0,Y61*I61/K61) -> 0 | AB61: =IF(Y61=0,0,Y61*J61/K61) -> 0 | AC61: =IF(E61="C",(G61/30*K61/12*12*C61),0)+AG61 -> 0 | AD61: =IF(E61="C",(G61/30*H61/12*12*C61),0) -> 0 | AE61: =IF(E61="C",(G61/30*I61/12*12*C61),0) -> 0 | AF61: =IF(E61="C",(G61/30*J61/12*12*C61),0) -> 0 | AH61: =+L61+P61+U61+Y61+AC61 -> 0
B62: ='MODELO PPTO.'!B248 -> 03.03.01.01. | C62: ='MODELO PPTO.'!C248 -> 0 | D62: ='MODELO PPTO.'!D248 -> Director de fotografia, Iluminador 2º unidad. | E62: ='MODELO PPTO.'!G248 -> - | F62: =+'MODELO PPTO.'!E248 -> 0 | G62: ='MODELO PPTO.'!F248 -> 0 | H62: ='MODELO PPTO.'!H248 -> 0 | I62: ='MODELO PPTO.'!I248 -> 0 | J62: ='MODELO PPTO.'!J248 -> 0 | K62: 0 | L62: 0 | N62: 0 | P62: =(N62+O62)*K62*C62 -> 0 | Q62: 0 | R62: 0 | S62: 0 | T62: 0 | U62: 0 | V62: 0 | W62: 0 | X62: 0 | Y62: 0 | Z62: 0 | AA62: 0 | AB62: 0 | AC62: =IF(E62="C",(G62/30*K62/12*12*C62),0)+AG62 -> 0 | AD62: =IF(E62="C",(G62/30*H62/12*12*C62),0) -> 0 | AE62: =IF(E62="C",(G62/30*I62/12*12*C62),0) -> 0 | AF62: =IF(E62="C",(G62/30*J62/12*12*C62),0) -> 0 | AH62: 0
B63: ='MODELO PPTO.'!B249 -> 03.03.01.02. | C63: ='MODELO PPTO.'!C249 -> 0 | D63: ='MODELO PPTO.'!D249 -> Diseño luces | E63: ='MODELO PPTO.'!G249 -> - | F63: =+'MODELO PPTO.'!E249 -> 0 | G63: ='MODELO PPTO.'!F249 -> 0 | H63: ='MODELO PPTO.'!H249 -> 0 | I63: ='MODELO PPTO.'!I249 -> 0 | J63: ='MODELO PPTO.'!J249 -> 0 | K63: =SUM(H63:J63) -> 0 | L63: =K63*G63*C63 -> 0 | N63: 0 | P63: 0 | Q63: =+N63*H63*C63 -> 0 | R63: =+N63*I63*C63 -> 0 | S63: =+N63*J63*C63 -> 0 | T63: 0 | U63: =SUM(V63:X63) -> 0 | V63: 0 | W63: 0 | X63: 0 | Y63: 0 | Z63: =IF(Y63=0,0,Y63*H63/K63) -> 0 | AA63: =IF(Y63=0,0,Y63*I63/K63) -> 0 | AB63: =IF(Y63=0,0,Y63*J63/K63) -> 0 | AC63: =IF(E63="C",(G63/30*K63/12*12*C63),0)+AG63 -> 0 | AD63: =IF(E63="C",(G63/30*H63/12*12*C63),0) -> 0 | AE63: =IF(E63="C",(G63/30*I63/12*12*C63),0) -> 0 | AF63: =IF(E63="C",(G63/30*J63/12*12*C63),0) -> 0 | AH63: 0
B64: ='MODELO PPTO.'!B250 -> 03.03.02.00. | C64: ='MODELO PPTO.'!C250 -> 0 | D64: ='MODELO PPTO.'!D250 -> Operador cámara /Segundo Operador. | E64: ='MODELO PPTO.'!G250 -> - | F64: =+'MODELO PPTO.'!E250 -> 0 | G64: ='MODELO PPTO.'!F250 -> 0 | H64: ='MODELO PPTO.'!H250 -> 0 | I64: ='MODELO PPTO.'!I250 -> 0 | J64: ='MODELO PPTO.'!J250 -> 0 | K64: 0 | L64: 0 | N64: 0 | P64: 0 | Q64: 0 | R64: 0 | S64: 0 | T64: 0 | U64: 0 | V64: 0 | W64: 0 | X64: 0 | Y64: 0 | Z64: 0 | AA64: 0 | AB64: 0 | AC64: =IF(E64="C",(G64/30*K64/12*12*C64),0)+AG64 -> 0 | AD64: =IF(E64="C",(G64/30*H64/12*12*C64),0) -> 0 | AE64: =IF(E64="C",(G64/30*I64/12*12*C64),0) -> 0 | AF64: =IF(E64="C",(G64/30*J64/12*12*C64),0) -> 0 | AH64: 0
B65: ='MODELO PPTO.'!B251 -> 03.03.03.00. | C65: ='MODELO PPTO.'!C251 -> 0 | D65: ='MODELO PPTO.'!D251 -> Operadores cámara. | E65: ='MODELO PPTO.'!G251 -> - | F65: =+'MODELO PPTO.'!E251 -> 0 | G65: ='MODELO PPTO.'!F251 -> 0 | H65: ='MODELO PPTO.'!H251 -> 0 | I65: ='MODELO PPTO.'!I251 -> 0 | J65: ='MODELO PPTO.'!J251 -> 0 | K65: 0 | L65: 0 | N65: 0 | P65: 0 | Q65: 0 | R65: 0 | S65: 0 | T65: 0 | U65: 0 | V65: 0 | W65: 0 | X65: 0 | Y65: 0 | Z65: 0 | AA65: 0 | AB65: 0 | AC65: 0 | AD65: 0 | AE65: 0 | AF65: 0 | AH65: 0
B66: ='MODELO PPTO.'!B252 -> 03.03.04.00. | C66: ='MODELO PPTO.'!C252 -> 0 | D66: ='MODELO PPTO.'!D252 -> Aytes. Cámara. | E66: ='MODELO PPTO.'!G252 -> - | F66: =+'MODELO PPTO.'!E252 -> 0 | G66: ='MODELO PPTO.'!F252 -> 0 | H66: ='MODELO PPTO.'!H252 -> 0 | I66: ='MODELO PPTO.'!I252 -> 0 | J66: ='MODELO PPTO.'!J252 -> 0 | K66: 0 | L66: 0 | N66: 0 | P66: 0 | Q66: 0 | R66: 0 | S66: 0 | T66: 0 | U66: 0 | V66: 0 | W66: 0 | X66: 0 | Y66: 0 | Z66: 0 | AA66: 0 | AB66: 0 | AC66: 0 | AD66: 0 | AE66: 0 | AF66: 0 | AH66: 0
B67: ='MODELO PPTO.'!B253 -> 03.03.05.00. | C67: ='MODELO PPTO.'!C253 -> 0 | D67: ='MODELO PPTO.'!D253 -> Auxs. cámara | E67: ='MODELO PPTO.'!G253 -> - | F67: =+'MODELO PPTO.'!E253 -> 0 | G67: ='MODELO PPTO.'!F253 -> 0 | H67: ='MODELO PPTO.'!H253 -> 0 | I67: ='MODELO PPTO.'!I253 -> 0 | J67: ='MODELO PPTO.'!J253 -> 0 | K67: 0 | L67: 0 | N67: 0 | P67: 0 | Q67: 0 | R67: 0 | S67: 0 | T67: 0 | U67: 0 | V67: 0 | W67: 0 | X67: 0 | Y67: 0 | Z67: 0 | AA67: 0 | AB67: 0 | AC67: 0 | AD67: 0 | AE67: 0 | AF67: 0 | AH67: 0
B68: ='MODELO PPTO.'!B254 -> 03.03.06.00. | C68: ='MODELO PPTO.'!C254 -> 0 | D68: ='MODELO PPTO.'!D254 -> Foto-fija. | E68: ='MODELO PPTO.'!G254 -> - | F68: =+'MODELO PPTO.'!E254 -> 0 | G68: ='MODELO PPTO.'!F254 -> 0 | H68: ='MODELO PPTO.'!H254 -> 0 | I68: ='MODELO PPTO.'!I254 -> 0 | J68: ='MODELO PPTO.'!J254 -> 0 | K68: 0 | L68: 0 | N68: 0 | P68: 0 | Q68: 0 | R68: 0 | S68: 0 | T68: 0 | U68: 0 | V68: 0 | W68: 0 | X68: 0 | Y68: 0 | Z68: 0 | AA68: 0 | AB68: 0 | AC68: 0 | AD68: 0 | AE68: 0 | AF68: 0 | AH68: 0
B69: ='MODELO PPTO.'!B255 -> 03.03.07.00. | C69: ='MODELO PPTO.'!C255 -> 0 | D69: ='MODELO PPTO.'!D255 -> DIT | E69: ='MODELO PPTO.'!G255 -> - | F69: =+'MODELO PPTO.'!E255 -> 0 | G69: ='MODELO PPTO.'!F255 -> 0 | H69: ='MODELO PPTO.'!H255 -> 0 | I69: ='MODELO PPTO.'!I255 -> 0 | J69: ='MODELO PPTO.'!J255 -> 0 | K69: 0 | L69: 0 | N69: 0 | P69: 0 | Q69: 0 | R69: 0 | S69: 0 | T69: 0 | U69: 0 | V69: 0 | W69: 0 | X69: 0 | Y69: 0 | Z69: 0 | AA69: 0 | AB69: 0 | AC69: 0 | AD69: 0 | AE69: 0 | AF69: 0 | AH69: 0
B70: ='MODELO PPTO.'!B256 -> 03.03.08.00. | C70: ='MODELO PPTO.'!C256 -> 0 | D70: ='MODELO PPTO.'!D256 -> Personal Técnico UU.MM | E70: ='MODELO PPTO.'!G256 -> - | F70: =+'MODELO PPTO.'!E256 -> 0 | G70: ='MODELO PPTO.'!F256 -> 0 | H70: ='MODELO PPTO.'!H256 -> 0 | I70: ='MODELO PPTO.'!I256 -> 0 | J70: ='MODELO PPTO.'!J256 -> 0 | K70: 0 | L70: 0 | N70: 0 | P70: 0 | Q70: 0 | R70: 0 | S70: 0 | T70: 0 | U70: 0 | V70: 0 | W70: 0 | X70: 0 | Y70: 0 | Z70: 0 | AA70: 0 | AB70: 0 | AC70: 0 | AD70: 0 | AE70: 0 | AF70: 0 | AH70: 0
B71: ='MODELO PPTO.'!B257 -> 03.03.09.00. | C71: ='MODELO PPTO.'!C257 -> 0 | D71: ='MODELO PPTO.'!D257 -> Jefe tecnico estudio/Unidad movil TV. | E71: ='MODELO PPTO.'!G257 -> - | F71: =+'MODELO PPTO.'!E257 -> 0 | G71: ='MODELO PPTO.'!F257 -> 0 | H71: ='MODELO PPTO.'!H257 -> 0 | I71: ='MODELO PPTO.'!I257 -> 0 | J71: ='MODELO PPTO.'!J257 -> 0 | K71: 0 | L71: 0 | N71: 0 | P71: 0 | Q71: 0 | R71: 0 | S71: 0 | T71: 0 | U71: 0 | V71: 0 | W71: 0 | X71: 0 | Y71: 0 | Z71: 0 | AA71: 0 | AB71: 0 | AC71: 0 | AD71: 0 | AE71: 0 | AF71: 0 | AH71: 0
B72: ='MODELO PPTO.'!B258 -> 03.03.10.00. | C72: ='MODELO PPTO.'!C258 -> 0 | D72: ='MODELO PPTO.'!D258 -> Encargado/ Mezclador imagen. | E72: ='MODELO PPTO.'!G258 -> - | F72: =+'MODELO PPTO.'!E258 -> 0 | G72: ='MODELO PPTO.'!F258 -> 0 | H72: ='MODELO PPTO.'!H258 -> 0 | I72: ='MODELO PPTO.'!I258 -> 0 | J72: ='MODELO PPTO.'!J258 -> 0 | K72: 0 | L72: 0 | N72: 0 | P72: 0 | Q72: 0 | R72: 0 | S72: 0 | T72: 0 | U72: 0 | V72: 0 | W72: 0 | X72: 0 | Y72: 0 | Z72: 0 | AA72: 0 | AB72: 0 | AC72: 0 | AD72: 0 | AE72: 0 | AF72: 0 | AH72: 0
B73: ='MODELO PPTO.'!B259 -> 03.03.11.00. | C73: ='MODELO PPTO.'!C259 -> 0 | D73: ='MODELO PPTO.'!D259 -> Control de cámaras. | E73: ='MODELO PPTO.'!G259 -> - | F73: =+'MODELO PPTO.'!E259 -> 0 | G73: ='MODELO PPTO.'!F259 -> 0 | H73: ='MODELO PPTO.'!H259 -> 0 | I73: ='MODELO PPTO.'!I259 -> 0 | J73: ='MODELO PPTO.'!J259 -> 0 | K73: 0 | L73: 0 | N73: 0 | P73: 0 | Q73: 0 | R73: 0 | S73: 0 | T73: 0 | U73: 0 | V73: 0 | W73: 0 | X73: 0 | Y73: 0 | Z73: 0 | AA73: 0 | AB73: 0 | AC73: 0 | AD73: 0 | AE73: 0 | AF73: 0 | AH73: 0
B74: ='MODELO PPTO.'!B260 -> 03.03.12.00. | C74: ='MODELO PPTO.'!C260 -> 0 | D74: ='MODELO PPTO.'!D260 -> Tecnico electronico. | E74: ='MODELO PPTO.'!G260 -> - | F74: =+'MODELO PPTO.'!E260 -> 0 | G74: ='MODELO PPTO.'!F260 -> 0 | H74: ='MODELO PPTO.'!H260 -> 0 | I74: ='MODELO PPTO.'!I260 -> 0 | J74: ='MODELO PPTO.'!J260 -> 0 | K74: 0 | L74: 0 | N74: 0 | P74: 0 | Q74: 0 | R74: 0 | S74: 0 | T74: 0 | U74: 0 | V74: 0 | W74: 0 | X74: 0 | Y74: 0 | Z74: 0 | AA74: 0 | AB74: 0 | AC74: 0 | AD74: 0 | AE74: 0 | AF74: 0 | AH74: 0
B75: ='MODELO PPTO.'!B261 -> 03.03.13.00. | C75: ='MODELO PPTO.'!C261 -> 0 | D75: ='MODELO PPTO.'!D261 -> Operador VTR. | E75: ='MODELO PPTO.'!G261 -> - | F75: =+'MODELO PPTO.'!E261 -> 0 | G75: ='MODELO PPTO.'!F261 -> 0 | H75: ='MODELO PPTO.'!H261 -> 0 | I75: ='MODELO PPTO.'!I261 -> 0 | J75: ='MODELO PPTO.'!J261 -> 0 | K75: 0 | L75: 0 | N75: 0 | P75: 0 | Q75: 0 | R75: 0 | S75: 0 | T75: 0 | U75: 0 | V75: 0 | W75: 0 | X75: 0 | Y75: 0 | Z75: 0 | AA75: 0 | AB75: 0 | AC75: 0 | AD75: 0 | AE75: 0 | AF75: 0 | AH75: 0
B76: ='MODELO PPTO.'!B262 -> 03.03.14.00. | C76: ='MODELO PPTO.'!C262 -> 0 | D76: ='MODELO PPTO.'!D262 -> Especialista/ Oficial montaje. | E76: ='MODELO PPTO.'!G262 -> - | F76: =+'MODELO PPTO.'!E262 -> 0 | G76: ='MODELO PPTO.'!F262 -> 0 | H76: ='MODELO PPTO.'!H262 -> 0 | I76: ='MODELO PPTO.'!I262 -> 0 | J76: ='MODELO PPTO.'!J262 -> 0 | K76: =SUM(H76:J76) -> 0 | L76: =K76*G76*C76 -> 0 | N76: 0 | P76: 0 | Q76: =+N76*H76*C76 -> 0 | R76: =+N76*I76*C76 -> 0 | S76: =+N76*J76*C76 -> 0 | T76: 0 | U76: =SUM(V76:X76) -> 0 | V76: 0 | W76: 0 | X76: 0 | Y76: 0 | Z76: =IF(Y76=0,0,Y76*H76/K76) -> 0 | AA76: =IF(Y76=0,0,Y76*I76/K76) -> 0 | AB76: =IF(Y76=0,0,Y76*J76/K76) -> 0 | AC76: =IF(E76="C",(G76/30*K76/12*12*C76),0)+AG76 -> 0 | AD76: =IF(E76="C",(G76/30*H76/12*12*C76),0) -> 0 | AE76: =IF(E76="C",(G76/30*I76/12*12*C76),0) -> 0 | AF76: =IF(E76="C",(G76/30*J76/12*12*C76),0) -> 0 | AH76: =+L76+P76+U76+Y76+AC76 -> 0
B77: ='MODELO PPTO.'!B263 -> 03.03.15.00. | C77: ='MODELO PPTO.'!C263 -> 0 | D77: ='MODELO PPTO.'!D263 -> 0 | E77: ='MODELO PPTO.'!G263 -> - | F77: =+'MODELO PPTO.'!E263 -> 0 | G77: ='MODELO PPTO.'!F263 -> 0 | H77: ='MODELO PPTO.'!H263 -> 0 | I77: ='MODELO PPTO.'!I263 -> 0 | J77: ='MODELO PPTO.'!J263 -> 0 | K77: 0 | L77: 0 | N77: 0 | P77: 0 | Q77: 0 | R77: 0 | S77: 0 | T77: =IF(E77="C",(G77/30*(IF($T$12="NATURALES_2,5",2.5,2.61))*K77),IF(E77="FD",(G77/30*(IF($T$12="NATURALES_2,5",2.5,2.61))*K77),0)) -> 0 | U77: 0 | V77: =IF(E77="C",(G77/30*(IF($T$12="NATURALES_2,5",2.5,2.61))*H77*C77),IF(E77="FD",(G77/30*(IF($T$12="NATURALES_2,5",2.5,2.61))*H77*C77),0)) -> 0 | W77: =IF(E77="C",(G77/30*(IF($T$12="NATURALES_2,5",2.5,2.61))*I77*C77),IF(E77="FD",(G77/30*(IF($T$12="NATURALES_2,5",2.5,2.61))*I77*C77),0)) -> 0 | X77: =IF(E77="C",(G77/30*(IF($T$12="NATURALES_2,5",2.5,2.61))*J77*C77),IF(E77="FD",(G77/30*(IF($T$12="NATURALES_2,5",2.5,2.61))*J77*C77),0)) -> 0 | Y77: 0 | Z77: 0 | AA77: 0 | AB77: 0 | AC77: 0 | AD77: 0 | AE77: 0 | AF77: 0 | AH77: 0
B78: ='MODELO PPTO.'!B264 -> 0 | C78: ='MODELO PPTO.'!C264 -> 0 | D78: ='MODELO PPTO.'!D264 -> Para añadir nuevas partidas, insertadlas en ESTA fila y arrastrad formulas de la fila superior | E78: ='MODELO PPTO.'!G264 -> - | F78: =+'MODELO PPTO.'!E264 -> 0 | G78: ='MODELO PPTO.'!F264 -> 0 | H78: ='MODELO PPTO.'!H264 -> 0 | I78: ='MODELO PPTO.'!I264 -> 0 | J78: ='MODELO PPTO.'!J264 -> 0 | K78: 0 | L78: 0 | N78: 0 | P78: 0 | Q78: 0 | R78: 0 | S78: 0 | T78: =IF(E78="C",(G78/30*(IF($T$12="NATURALES_2,5",2.5,2.61))*K78),IF(E78="FD",(G78/30*(IF($T$12="NATURALES_2,5",2.5,2.61))*K78),0)) -> 0 | U78: 0 | V78: =IF(E78="C",(G78/30*(IF($T$12="NATURALES_2,5",2.5,2.61))*H78*C78),IF(E78="FD",(G78/30*(IF($T$12="NATURALES_2,5",2.5,2.61))*H78*C78),0)) -> 0 | W78: =IF(E78="C",(G78/30*(IF($T$12="NATURALES_2,5",2.5,2.61))*I78*C78),IF(E78="FD",(G78/30*(IF($T$12="NATURALES_2,5",2.5,2.61))*I78*C78),0)) -> 0 | X78: =IF(E78="C",(G78/30*(IF($T$12="NATURALES_2,5",2.5,2.61))*J78*C78),IF(E78="FD",(G78/30*(IF($T$12="NATURALES_2,5",2.5,2.61))*J78*C78),0)) -> 0 | Y78: 0 | Z78: 0 | AA78: 0 | AB78: 0 | AC78: 0 | AD78: 0 | AE78: 0 | AF78: 0 | AH78: 0
B79: ='MODELO PPTO.'!B266 -> 03.04.00.00. | C79: ='MODELO PPTO.'!C266 -> Nº | D79: ='MODELO PPTO.'!D266 -> Decoración. | L79: =SUM(L80:L91) -> 0 | M79: 0 | N79: 0 | O79: 0 | P79: 0 | Q79: 0 | R79: 0 | S79: 0 | T79: 0 | U79: 0 | V79: 0 | W79: 0 | X79: 0 | Y79: 0 | Z79: 0 | AA79: 0 | AB79: 0 | AC79: 0 | AD79: 0 | AE79: 0 | AF79: 0 | AG79: 0 | AH79: =SUM(AH80:AH91) -> 0
B80: ='MODELO PPTO.'!B267 -> 03.04.01.00. | C80: ='MODELO PPTO.'!C267 -> 0 | D80: ='MODELO PPTO.'!D267 -> Director Artistico | E80: ='MODELO PPTO.'!G267 -> - | F80: =+'MODELO PPTO.'!E267 -> 0 | G80: ='MODELO PPTO.'!F267 -> 0 | H80: ='MODELO PPTO.'!H267 -> 0 | I80: ='MODELO PPTO.'!I267 -> 0 | J80: ='MODELO PPTO.'!J267 -> 0 | K80: 0 | L80: 0 | N80: =IF(E80="C",IF(G80<$N$12,G80*$P$9,$N$12*$P$9),IF(E80="F",IF(G80<$N$12,G80*$O$9,$N$12*$O$9),IF(E80="FD",IF(G80<$N$12,G80*$O$9,$N$12*$O$9),IF(E80="M",0,IF(E80="CJ",IF(G80>$N$11,G80*$P$9,$N$11*$P$9),0))))) -> 0 | P80: =(N80+O80)*K80*C80 -> 0 | Q80: =+N80*H80*C80 -> 0 | R80: =+N80*I80*C80 -> 0 | S80: =+N80*J80*C80 -> 0 | T80: =IF(E80="C",(G80/30*(IF($T$12="NATURALES_2,5",2.5,2.61))*K80),IF(E80="FD",(G80/30*(IF($T$12="NATURALES_2,5",2.5,2.61))*K80),0)) -> 0 | U80: =SUM(V80:X80) -> 0 | V80: =IF(E80="C",(G80/30*(IF($T$12="NATURALES_2,5",2.5,2.61))*H80*C80),IF(E80="FD",(G80/30*(IF($T$12="NATURALES_2,5",2.5,2.61))*H80*C80),0)) -> 0 | W80: =IF(E80="C",(G80/30*(IF($T$12="NATURALES_2,5",2.5,2.61))*I80*C80),IF(E80="FD",(G80/30*(IF($T$12="NATURALES_2,5",2.5,2.61))*I80*C80),0)) -> 0 | X80: =IF(E80="C",(G80/30*(IF($T$12="NATURALES_2,5",2.5,2.61))*J80*C80),IF(E80="FD",(G80/30*(IF($T$12="NATURALES_2,5",2.5,2.61))*J80*C80),0)) -> 0 | Y80: =IF(E80="C",IF(T80<$N$12*(IF($T$12="NATURALES_2,5",2.5,2.61))*K80/30,T80*$P$9*C80,$N$12*(IF($T$12="NATURALES_2,5",2.5,2.61))*K80/30*$P$9*C80),IF(E80="FD",IF(T80<$N$12*(IF($T$12="NATURALES_2,5",2.5,2.61))*K80/30,T80*$O$9*C80,$N$12*(IF($T$12="NATURALES_2,5",2.5,2.61))*K80/30*$O$9*C80),0)) -> 0 | Z80: =IF(Y80=0,0,Y80*H80/K80) -> 0 | AA80: =IF(Y80=0,0,Y80*I80/K80) -> 0 | AB80: =IF(Y80=0,0,Y80*J80/K80) -> 0 | AC80: =IF(E80="C",(G80/30*K80/12*12*C80),0)+AG80 -> 0 | AD80: =IF(E80="C",(G80/30*H80/12*12*C80),0) -> 0 | AE80: =IF(E80="C",(G80/30*I80/12*12*C80),0) -> 0 | AF80: =IF(E80="C",(G80/30*J80/12*12*C80),0) -> 0 | AH80: =+L80+P80+U80+Y80+AC80 -> 0
B81: ='MODELO PPTO.'!B268 -> 03.04.02.00. | C81: ='MODELO PPTO.'!C268 -> 0 | D81: ='MODELO PPTO.'!D268 -> Decorador/Escenógrafo | E81: ='MODELO PPTO.'!G268 -> - | F81: =+'MODELO PPTO.'!E268 -> 0 | G81: ='MODELO PPTO.'!F268 -> 0 | H81: ='MODELO PPTO.'!H268 -> 0 | I81: ='MODELO PPTO.'!I268 -> 0 | J81: ='MODELO PPTO.'!J268 -> 0 | K81: 0 | L81: 0 | N81: 0 | P81: =(N81+O81)*K81*C81 -> 0 | Q81: 0 | R81: 0 | S81: 0 | T81: 0 | U81: 0 | V81: 0 | W81: 0 | X81: 0 | Y81: 0 | Z81: 0 | AA81: 0 | AB81: 0 | AC81: =IF(E81="C",(G81/30*K81/12*12*C81),0)+AG81 -> 0 | AD81: =IF(E81="C",(G81/30*H81/12*12*C81),0) -> 0 | AE81: =IF(E81="C",(G81/30*I81/12*12*C81),0) -> 0 | AF81: =IF(E81="C",(G81/30*J81/12*12*C81),0) -> 0 | AH81: 0
B82: ='MODELO PPTO.'!B269 -> 03.04.03.00. | C82: ='MODELO PPTO.'!C269 -> 0 | D82: ='MODELO PPTO.'!D269 -> Ayudante decoración | E82: ='MODELO PPTO.'!G269 -> - | F82: =+'MODELO PPTO.'!E269 -> 0 | G82: ='MODELO PPTO.'!F269 -> 0 | H82: ='MODELO PPTO.'!H269 -> 0 | I82: ='MODELO PPTO.'!I269 -> 0 | J82: ='MODELO PPTO.'!J269 -> 0 | K82: 0 | L82: 0 | N82: 0 | P82: 0 | Q82: 0 | R82: 0 | S82: 0 | T82: 0 | U82: 0 | V82: 0 | W82: 0 | X82: 0 | Y82: 0 | Z82: 0 | AA82: 0 | AB82: 0 | AC82: =IF(E82="C",(G82/30*K82/12*12*C82),0)+AG82 -> 0 | AD82: =IF(E82="C",(G82/30*H82/12*12*C82),0) -> 0 | AE82: =IF(E82="C",(G82/30*I82/12*12*C82),0) -> 0 | AF82: =IF(E82="C",(G82/30*J82/12*12*C82),0) -> 0 | AH82: 0
B83: ='MODELO PPTO.'!B270 -> 03.04.04.00. | C83: ='MODELO PPTO.'!C270 -> 0 | D83: ='MODELO PPTO.'!D270 -> Ambientador/Jefe de atrezzo | E83: ='MODELO PPTO.'!G270 -> - | F83: =+'MODELO PPTO.'!E270 -> 0 | G83: ='MODELO PPTO.'!F270 -> 0 | H83: ='MODELO PPTO.'!H270 -> 0 | I83: ='MODELO PPTO.'!I270 -> 0 | J83: ='MODELO PPTO.'!J270 -> 0 | K83: 0 | L83: 0 | N83: 0 | P83: 0 | Q83: 0 | R83: 0 | S83: 0 | T83: 0 | U83: 0 | V83: 0 | W83: 0 | X83: 0 | Y83: 0 | Z83: 0 | AA83: 0 | AB83: 0 | AC83: =IF(E83="C",(G83/30*K83/12*12*C83),0)+AG83 -> 0 | AD83: =IF(E83="C",(G83/30*H83/12*12*C83),0) -> 0 | AE83: =IF(E83="C",(G83/30*I83/12*12*C83),0) -> 0 | AF83: =IF(E83="C",(G83/30*J83/12*12*C83),0) -> 0 | AH83: 0
B84: ='MODELO PPTO.'!B271 -> 03.04.05.00. | C84: ='MODELO PPTO.'!C271 -> 0 | D84: ='MODELO PPTO.'!D271 -> Atrecistas | E84: ='MODELO PPTO.'!G271 -> - | F84: =+'MODELO PPTO.'!E271 -> 0 | G84: ='MODELO PPTO.'!F271 -> 0 | H84: ='MODELO PPTO.'!H271 -> 0 | I84: ='MODELO PPTO.'!I271 -> 0 | J84: ='MODELO PPTO.'!J271 -> 0 | K84: 0 | L84: 0 | N84: 0 | P84: 0 | Q84: 0 | R84: 0 | S84: 0 | T84: 0 | U84: 0 | V84: 0 | W84: 0 | X84: 0 | Y84: 0 | Z84: 0 | AA84: 0 | AB84: 0 | AC84: 0 | AD84: 0 | AE84: 0 | AF84: 0 | AH84: 0
B85: ='MODELO PPTO.'!B272 -> 03.04.06.00. | C85: ='MODELO PPTO.'!C272 -> 0 | D85: ='MODELO PPTO.'!D272 -> Carpintor | E85: ='MODELO PPTO.'!G272 -> - | F85: =+'MODELO PPTO.'!E272 -> 0 | G85: ='MODELO PPTO.'!F272 -> 0 | H85: ='MODELO PPTO.'!H272 -> 0 | I85: ='MODELO PPTO.'!I272 -> 0 | J85: ='MODELO PPTO.'!J272 -> 0 | K85: 0 | L85: 0 | N85: 0 | P85: 0 | Q85: 0 | R85: 0 | S85: 0 | T85: 0 | U85: 0 | V85: 0 | W85: 0 | X85: 0 | Y85: 0 | Z85: 0 | AA85: 0 | AB85: 0 | AC85: 0 | AD85: 0 | AE85: 0 | AF85: 0 | AH85: 0
B86: ='MODELO PPTO.'!B273 -> 03.04.07.00. | C86: ='MODELO PPTO.'!C273 -> 0 | D86: ='MODELO PPTO.'!D273 -> Escayolista. Modelador | E86: ='MODELO PPTO.'!G273 -> - | F86: =+'MODELO PPTO.'!E273 -> 0 | G86: ='MODELO PPTO.'!F273 -> 0 | H86: ='MODELO PPTO.'!H273 -> 0 | I86: ='MODELO PPTO.'!I273 -> 0 | J86: ='MODELO PPTO.'!J273 -> 0 | K86: 0 | L86: 0 | N86: 0 | P86: 0 | Q86: 0 | R86: 0 | S86: 0 | T86: 0 | U86: 0 | V86: 0 | W86: 0 | X86: 0 | Y86: 0 | Z86: 0 | AA86: 0 | AB86: 0 | AC86: 0 | AD86: 0 | AE86: 0 | AF86: 0 | AH86: 0
B87: ='MODELO PPTO.'!B274 -> 03.04.08.00. | C87: ='MODELO PPTO.'!C274 -> 0 | D87: ='MODELO PPTO.'!D274 -> Regidor de medios | E87: ='MODELO PPTO.'!G274 -> - | F87: =+'MODELO PPTO.'!E274 -> 0 | G87: ='MODELO PPTO.'!F274 -> 0 | H87: ='MODELO PPTO.'!H274 -> 0 | I87: ='MODELO PPTO.'!I274 -> 0 | J87: ='MODELO PPTO.'!J274 -> 0 | K87: 0 | L87: 0 | N87: 0 | P87: 0 | Q87: 0 | R87: 0 | S87: 0 | T87: 0 | U87: 0 | V87: 0 | W87: 0 | X87: 0 | Y87: 0 | Z87: 0 | AA87: 0 | AB87: 0 | AC87: 0 | AD87: 0 | AE87: 0 | AF87: 0 | AH87: 0
B88: ='MODELO PPTO.'!B275 -> 03.04.09.00. | C88: ='MODELO PPTO.'!C275 -> 0 | D88: ='MODELO PPTO.'!D275 -> Maquetista. | E88: ='MODELO PPTO.'!G275 -> - | F88: =+'MODELO PPTO.'!E275 -> 0 | G88: ='MODELO PPTO.'!F275 -> 0 | H88: ='MODELO PPTO.'!H275 -> 0 | I88: ='MODELO PPTO.'!I275 -> 0 | J88: ='MODELO PPTO.'!J275 -> 0 | K88: 0 | L88: 0 | N88: 0 | P88: 0 | Q88: 0 | R88: 0 | S88: 0 | T88: 0 | U88: 0 | V88: 0 | W88: 0 | X88: 0 | Y88: 0 | Z88: 0 | AA88: 0 | AB88: 0 | AC88: 0 | AD88: 0 | AE88: 0 | AF88: 0 | AH88: 0
B89: ='MODELO PPTO.'!B276 -> 03.04.10.00. | C89: ='MODELO PPTO.'!C276 -> 0 | D89: ='MODELO PPTO.'!D276 -> Diseñador/Grafista por ordenador. | E89: ='MODELO PPTO.'!G276 -> - | F89: =+'MODELO PPTO.'!E276 -> 0 | G89: ='MODELO PPTO.'!F276 -> 0 | H89: ='MODELO PPTO.'!H276 -> 0 | I89: ='MODELO PPTO.'!I276 -> 0 | J89: ='MODELO PPTO.'!J276 -> 0 | K89: 0 | L89: 0 | N89: 0 | P89: 0 | Q89: 0 | R89: 0 | S89: 0 | T89: 0 | U89: 0 | V89: 0 | W89: 0 | X89: 0 | Y89: 0 | Z89: 0 | AA89: 0 | AB89: 0 | AC89: 0 | AD89: 0 | AE89: 0 | AF89: 0 | AH89: 0
B90: ='MODELO PPTO.'!B277 -> 03.04.11.00. | C90: ='MODELO PPTO.'!C277 -> 0 | D90: ='MODELO PPTO.'!D277 -> 0 | E90: ='MODELO PPTO.'!G277 -> - | F90: =+'MODELO PPTO.'!E277 -> 0 | G90: ='MODELO PPTO.'!F277 -> 0 | H90: ='MODELO PPTO.'!H277 -> 0 | I90: ='MODELO PPTO.'!I277 -> 0 | J90: ='MODELO PPTO.'!J277 -> 0 | K90: =SUM(H90:J90) -> 0 | L90: =K90*G90*C90 -> 0 | N90: 0 | P90: 0 | Q90: =+N90*H90*C90 -> 0 | R90: =+N90*I90*C90 -> 0 | S90: =+N90*J90*C90 -> 0 | T90: =IF(E90="C",(G90/30*(IF($T$12="NATURALES_2,5",2.5,2.61))*K90),IF(E90="FD",(G90/30*(IF($T$12="NATURALES_2,5",2.5,2.61))*K90),0)) -> 0 | U90: =SUM(V90:X90) -> 0 | V90: =IF(E90="C",(G90/30*(IF($T$12="NATURALES_2,5",2.5,2.61))*H90*C90),IF(E90="FD",(G90/30*(IF($T$12="NATURALES_2,5",2.5,2.61))*H90*C90),0)) -> 0 | W90: =IF(E90="C",(G90/30*(IF($T$12="NATURALES_2,5",2.5,2.61))*I90*C90),IF(E90="FD",(G90/30*(IF($T$12="NATURALES_2,5",2.5,2.61))*I90*C90),0)) -> 0 | X90: =IF(E90="C",(G90/30*(IF($T$12="NATURALES_2,5",2.5,2.61))*J90*C90),IF(E90="FD",(G90/30*(IF($T$12="NATURALES_2,5",2.5,2.61))*J90*C90),0)) -> 0 | Y90: 0 | Z90: =IF(Y90=0,0,Y90*H90/K90) -> 0 | AA90: =IF(Y90=0,0,Y90*I90/K90) -> 0 | AB90: =IF(Y90=0,0,Y90*J90/K90) -> 0 | AC90: =IF(E90="C",(G90/30*K90/12*12*C90),0)+AG90 -> 0 | AD90: =IF(E90="C",(G90/30*H90/12*12*C90),0) -> 0 | AE90: =IF(E90="C",(G90/30*I90/12*12*C90),0) -> 0 | AF90: =IF(E90="C",(G90/30*J90/12*12*C90),0) -> 0 | AH90: =+L90+P90+U90+Y90+AC90 -> 0
B91: ='MODELO PPTO.'!B278 -> 0 | C91: ='MODELO PPTO.'!C278 -> 0 | D91: ='MODELO PPTO.'!D278 -> Para añadir nuevas partidas, insertadlas en ESTA fila y arrastrad formulas de la fila superior | E91: ='MODELO PPTO.'!G278 -> - | F91: =+'MODELO PPTO.'!E278 -> 0 | G91: ='MODELO PPTO.'!F278 -> 0 | H91: ='MODELO PPTO.'!H278 -> 0 | I91: ='MODELO PPTO.'!I278 -> 0 | J91: ='MODELO PPTO.'!J278 -> 0 | K91: 0 | L91: 0 | N91: 0 | P91: 0 | Q91: 0 | R91: 0 | S91: 0 | T91: =IF(E91="C",(G91/30*(IF($T$12="NATURALES_2,5",2.5,2.61))*K91),IF(E91="FD",(G91/30*(IF($T$12="NATURALES_2,5",2.5,2.61))*K91),0)) -> 0 | U91: 0 | V91: =IF(E91="C",(G91/30*(IF($T$12="NATURALES_2,5",2.5,2.61))*H91*C91),IF(E91="FD",(G91/30*(IF($T$12="NATURALES_2,5",2.5,2.61))*H91*C91),0)) -> 0 | W91: =IF(E91="C",(G91/30*(IF($T$12="NATURALES_2,5",2.5,2.61))*I91*C91),IF(E91="FD",(G91/30*(IF($T$12="NATURALES_2,5",2.5,2.61))*I91*C91),0)) -> 0 | X91: =IF(E91="C",(G91/30*(IF($T$12="NATURALES_2,5",2.5,2.61))*J91*C91),IF(E91="FD",(G91/30*(IF($T$12="NATURALES_2,5",2.5,2.61))*J91*C91),0)) -> 0 | Y91: 0 | Z91: 0 | AA91: 0 | AB91: 0 | AC91: 0 | AD91: 0 | AE91: 0 | AF91: 0 | AH91: 0
B92: ='MODELO PPTO.'!B280 -> 03.05.00.00. | C92: ='MODELO PPTO.'!C280 -> Nº | D92: ='MODELO PPTO.'!D280 -> Sastrería | L92: =SUM(L93:L98) -> 0 | M92: =SUM(M93:M98) -> 0 | N92: 0 | O92: 0 | P92: 0 | Q92: 0 | R92: 0 | S92: 0 | T92: 0 | U92: 0 | V92: 0 | W92: 0 | X92: 0 | Y92: 0 | Z92: 0 | AA92: 0 | AB92: 0 | AC92: 0 | AD92: 0 | AE92: 0 | AF92: 0 | AG92: 0 | AH92: =SUM(AH93:AH98) -> 0
B93: ='MODELO PPTO.'!B281 -> 03.05.01.00. | C93: ='MODELO PPTO.'!C281 -> 0 | D93: ='MODELO PPTO.'!D281 -> Estilista. | E93: ='MODELO PPTO.'!G281 -> - | F93: =+'MODELO PPTO.'!E281 -> 0 | G93: ='MODELO PPTO.'!F281 -> 0 | H93: ='MODELO PPTO.'!H281 -> 0 | I93: ='MODELO PPTO.'!I281 -> 0 | J93: ='MODELO PPTO.'!J281 -> 0 | K93: 0 | L93: 0 | N93: =IF(E93="C",IF(G93<$N$12,G93*$P$9,$N$12*$P$9),IF(E93="F",IF(G93<$N$12,G93*$O$9,$N$12*$O$9),IF(E93="FD",IF(G93<$N$12,G93*$O$9,$N$12*$O$9),IF(E93="M",0,IF(E93="CJ",IF(G93>$N$11,G93*$P$9,$N$11*$P$9),0))))) -> 0 | P93: =(N93+O93)*K93*C93 -> 0 | Q93: =+N93*H93*C93 -> 0 | R93: =+N93*I93*C93 -> 0 | S93: =+N93*J93*C93 -> 0 | T93: =IF(E93="C",(G93/30*(IF($T$12="NATURALES_2,5",2.5,2.61))*K93),IF(E93="FD",(G93/30*(IF($T$12="NATURALES_2,5",2.5,2.61))*K93),0)) -> 0 | U93: =SUM(V93:X93) -> 0 | V93: =IF(E93="C",(G93/30*(IF($T$12="NATURALES_2,5",2.5,2.61))*H93*C93),IF(E93="FD",(G93/30*(IF($T$12="NATURALES_2,5",2.5,2.61))*H93*C93),0)) -> 0 | W93: =IF(E93="C",(G93/30*(IF($T$12="NATURALES_2,5",2.5,2.61))*I93*C93),IF(E93="FD",(G93/30*(IF($T$12="NATURALES_2,5",2.5,2.61))*I93*C93),0)) -> 0 | X93: =IF(E93="C",(G93/30*(IF($T$12="NATURALES_2,5",2.5,2.61))*J93*C93),IF(E93="FD",(G93/30*(IF($T$12="NATURALES_2,5",2.5,2.61))*J93*C93),0)) -> 0 | Y93: =IF(E93="C",IF(T93<$N$12*(IF($T$12="NATURALES_2,5",2.5,2.61))*K93/30,T93*$P$9*C93,$N$12*(IF($T$12="NATURALES_2,5",2.5,2.61))*K93/30*$P$9*C93),IF(E93="FD",IF(T93<$N$12*(IF($T$12="NATURALES_2,5",2.5,2.61))*K93/30,T93*$O$9*C93,$N$12*(IF($T$12="NATURALES_2,5",2.5,2.61))*K93/30*$O$9*C93),0)) -> 0 | Z93: =IF(Y93=0,0,Y93*H93/K93) -> 0 | AA93: =IF(Y93=0,0,Y93*I93/K93) -> 0 | AB93: =IF(Y93=0,0,Y93*J93/K93) -> 0 | AC93: =IF(E93="C",(G93/30*K93/12*12*C93),0)+AG93 -> 0 | AD93: =IF(E93="C",(G93/30*H93/12*12*C93),0) -> 0 | AE93: =IF(E93="C",(G93/30*I93/12*12*C93),0) -> 0 | AF93: =IF(E93="C",(G93/30*J93/12*12*C93),0) -> 0 | AH93: =+L93+P93+U93+Y93+AC93 -> 0
B94: ='MODELO PPTO.'!B282 -> 03.05.02.00. | C94: ='MODELO PPTO.'!C282 -> 0 | D94: ='MODELO PPTO.'!D282 -> Figurinista. | E94: ='MODELO PPTO.'!G282 -> - | F94: =+'MODELO PPTO.'!E282 -> 0 | G94: ='MODELO PPTO.'!F282 -> 0 | H94: ='MODELO PPTO.'!H282 -> 0 | I94: ='MODELO PPTO.'!I282 -> 0 | J94: ='MODELO PPTO.'!J282 -> 0 | K94: 0 | L94: 0 | N94: 0 | P94: =(N94+O94)*K94*C94 -> 0 | Q94: 0 | R94: 0 | S94: 0 | T94: 0 | U94: 0 | V94: 0 | W94: 0 | X94: 0 | Y94: 0 | Z94: 0 | AA94: 0 | AB94: 0 | AC94: =IF(E94="C",(G94/30*K94/12*12*C94),0)+AG94 -> 0 | AD94: =IF(E94="C",(G94/30*H94/12*12*C94),0) -> 0 | AE94: =IF(E94="C",(G94/30*I94/12*12*C94),0) -> 0 | AF94: =IF(E94="C",(G94/30*J94/12*12*C94),0) -> 0 | AH94: 0
B95: ='MODELO PPTO.'!B283 -> 03.05.03.00. | C95: ='MODELO PPTO.'!C283 -> 0 | D95: ='MODELO PPTO.'!D283 -> Ayte. vestuario. | E95: ='MODELO PPTO.'!G283 -> - | F95: =+'MODELO PPTO.'!E283 -> 0 | G95: ='MODELO PPTO.'!F283 -> 0 | H95: ='MODELO PPTO.'!H283 -> 0 | I95: ='MODELO PPTO.'!I283 -> 0 | J95: ='MODELO PPTO.'!J283 -> 0 | K95: 0 | L95: 0 | N95: 0 | P95: 0 | Q95: 0 | R95: 0 | S95: 0 | T95: 0 | U95: 0 | V95: 0 | W95: 0 | X95: 0 | Y95: 0 | Z95: 0 | AA95: 0 | AB95: 0 | AC95: =IF(E95="C",(G95/30*K95/12*12*C95),0)+AG95 -> 0 | AD95: =IF(E95="C",(G95/30*H95/12*12*C95),0) -> 0 | AE95: =IF(E95="C",(G95/30*I95/12*12*C95),0) -> 0 | AF95: =IF(E95="C",(G95/30*J95/12*12*C95),0) -> 0 | AH95: 0
B96: ='MODELO PPTO.'!B284 -> 03.05.04.00. | C96: ='MODELO PPTO.'!C284 -> 0 | D96: ='MODELO PPTO.'!D284 -> Sastra. | E96: ='MODELO PPTO.'!G284 -> - | F96: =+'MODELO PPTO.'!E284 -> 0 | G96: ='MODELO PPTO.'!F284 -> 0 | H96: ='MODELO PPTO.'!H284 -> 0 | I96: ='MODELO PPTO.'!I284 -> 0 | J96: ='MODELO PPTO.'!J284 -> 0 | K96: 0 | L96: 0 | N96: 0 | P96: 0 | Q96: 0 | R96: 0 | S96: 0 | T96: 0 | U96: 0 | V96: 0 | W96: 0 | X96: 0 | Y96: 0 | Z96: 0 | AA96: 0 | AB96: 0 | AC96: 0 | AD96: 0 | AE96: 0 | AF96: 0 | AH96: 0
B97: ='MODELO PPTO.'!B285 -> 03.05.05.00. | C97: ='MODELO PPTO.'!C285 -> 0 | D97: ='MODELO PPTO.'!D285 -> 0 | E97: ='MODELO PPTO.'!G285 -> - | F97: =+'MODELO PPTO.'!E285 -> 0 | G97: ='MODELO PPTO.'!F285 -> 0 | H97: ='MODELO PPTO.'!H285 -> 0 | I97: ='MODELO PPTO.'!I285 -> 0 | J97: ='MODELO PPTO.'!J285 -> 0 | K97: =SUM(H97:J97) -> 0 | L97: =K97*G97*C97 -> 0 | N97: 0 | P97: 0 | Q97: =+N97*H97*C97 -> 0 | R97: =+N97*I97*C97 -> 0 | S97: =+N97*J97*C97 -> 0 | T97: =IF(E97="C",(G97/30*(IF($T$12="NATURALES_2,5",2.5,2.61))*K97),IF(E97="FD",(G97/30*(IF($T$12="NATURALES_2,5",2.5,2.61))*K97),0)) -> 0 | U97: =SUM(V97:X97) -> 0 | V97: =IF(E97="C",(G97/30*(IF($T$12="NATURALES_2,5",2.5,2.61))*H97*C97),IF(E97="FD",(G97/30*(IF($T$12="NATURALES_2,5",2.5,2.61))*H97*C97),0)) -> 0 | W97: =IF(E97="C",(G97/30*(IF($T$12="NATURALES_2,5",2.5,2.61))*I97*C97),IF(E97="FD",(G97/30*(IF($T$12="NATURALES_2,5",2.5,2.61))*I97*C97),0)) -> 0 | X97: =IF(E97="C",(G97/30*(IF($T$12="NATURALES_2,5",2.5,2.61))*J97*C97),IF(E97="FD",(G97/30*(IF($T$12="NATURALES_2,5",2.5,2.61))*J97*C97),0)) -> 0 | Y97: 0 | Z97: =IF(Y97=0,0,Y97*H97/K97) -> 0 | AA97: =IF(Y97=0,0,Y97*I97/K97) -> 0 | AB97: =IF(Y97=0,0,Y97*J97/K97) -> 0 | AC97: =IF(E97="C",(G97/30*K97/12*12*C97),0)+AG97 -> 0 | AD97: =IF(E97="C",(G97/30*H97/12*12*C97),0) -> 0 | AE97: =IF(E97="C",(G97/30*I97/12*12*C97),0) -> 0 | AF97: =IF(E97="C",(G97/30*J97/12*12*C97),0) -> 0 | AH97: 0
B98: ='MODELO PPTO.'!B286 -> 0 | C98: ='MODELO PPTO.'!C286 -> 0 | D98: ='MODELO PPTO.'!D286 -> Para añadir nuevas partidas, insertadlas en ESTA fila y arrastrad formulas de la fila superior | E98: ='MODELO PPTO.'!G286 -> - | F98: =+'MODELO PPTO.'!E286 -> 0 | G98: ='MODELO PPTO.'!F286 -> 0 | H98: ='MODELO PPTO.'!H286 -> 0 | I98: ='MODELO PPTO.'!I286 -> 0 | J98: ='MODELO PPTO.'!J286 -> 0 | K98: 0 | L98: 0 | N98: 0 | P98: 0 | Q98: 0 | R98: 0 | S98: 0 | T98: =IF(E98="C",(G98/30*(IF($T$12="NATURALES_2,5",2.5,2.61))*K98),IF(E98="FD",(G98/30*(IF($T$12="NATURALES_2,5",2.5,2.61))*K98),0)) -> 0 | U98: 0 | V98: =IF(E98="C",(G98/30*(IF($T$12="NATURALES_2,5",2.5,2.61))*H98*C98),IF(E98="FD",(G98/30*(IF($T$12="NATURALES_2,5",2.5,2.61))*H98*C98),0)) -> 0 | W98: =IF(E98="C",(G98/30*(IF($T$12="NATURALES_2,5",2.5,2.61))*I98*C98),IF(E98="FD",(G98/30*(IF($T$12="NATURALES_2,5",2.5,2.61))*I98*C98),0)) -> 0 | X98: =IF(E98="C",(G98/30*(IF($T$12="NATURALES_2,5",2.5,2.61))*J98*C98),IF(E98="FD",(G98/30*(IF($T$12="NATURALES_2,5",2.5,2.61))*J98*C98),0)) -> 0 | Y98: 0 | Z98: 0 | AA98: 0 | AB98: 0 | AC98: 0 | AD98: 0 | AE98: 0 | AF98: 0 | AH98: 0
B99: ='MODELO PPTO.'!B288 -> 03.06.00.00. | C99: ='MODELO PPTO.'!C288 -> Nº | D99: ='MODELO PPTO.'!D288 -> Maquilladores. Caracterizadores | L99: =SUM(L100:L105) -> 0 | M99: =SUM(M100:M104) -> 0 | N99: =SUM(N100:N105) -> 0 | O99: =SUM(O100:O105) -> 0 | P99: =SUM(P100:P105) -> 0 | Q99: =SUM(Q100:Q105) -> 0 | R99: =SUM(R100:R105) -> 0 | S99: =SUM(S100:S105) -> 0 | T99: =SUM(T100:T105) -> 0 | U99: =SUM(U100:U105) -> 0 | V99: =SUM(V100:V105) -> 0 | W99: =SUM(W100:W105) -> 0 | X99: =SUM(X100:X105) -> 0 | Y99: =SUM(Y100:Y105) -> 0 | Z99: =SUM(Z100:Z105) -> 0 | AA99: =SUM(AA100:AA105) -> 0 | AB99: =SUM(AB100:AB105) -> 0 | AC99: =SUM(AC100:AC105) -> 0 | AD99: =SUM(AD100:AD105) -> 0 | AE99: =SUM(AE100:AE105) -> 0 | AF99: =SUM(AF100:AF105) -> 0 | AG99: =SUM(AG100:AG105) -> 0 | AH99: =SUM(AH100:AH105) -> 0
B100: ='MODELO PPTO.'!B289 -> 03.06.01.00. | C100: ='MODELO PPTO.'!C289 -> 0 | D100: ='MODELO PPTO.'!D289 -> Caracterizador. Maquillador efectos. | E100: ='MODELO PPTO.'!G289 -> - | F100: =+'MODELO PPTO.'!E289 -> 0 | G100: ='MODELO PPTO.'!F289 -> 0 | H100: ='MODELO PPTO.'!H289 -> 0 | I100: ='MODELO PPTO.'!I289 -> 0 | J100: ='MODELO PPTO.'!J289 -> 0 | K100: 0 | L100: 0 | N100: =IF(E100="C",IF(G100<$N$12,G100*$P$9,$N$12*$P$9),IF(E100="F",IF(G100<$N$12,G100*$O$9,$N$12*$O$9),IF(E100="FD",IF(G100<$N$12,G100*$O$9,$N$12*$O$9),IF(E100="M",0,IF(E100="CJ",IF(G100>$N$11,G100*$P$9,$N$11*$P$9),0))))) -> 0 | P100: =(N100+O100)*K100*C100 -> 0 | Q100: =+N100*H100*C100 -> 0 | R100: =+N100*I100*C100 -> 0 | S100: =+N100*J100*C100 -> 0 | T100: =IF(E100="C",(G100/30*(IF($T$12="NATURALES_2,5",2.5,2.61))*K100),IF(E100="FD",(G100/30*(IF($T$12="NATURALES_2,5",2.5,2.61))*K100),0)) -> 0 | U100: =SUM(V100:X100) -> 0 | V100: =IF(E100="C",(G100/30*(IF($T$12="NATURALES_2,5",2.5,2.61))*H100*C100),IF(E100="FD",(G100/30*(IF($T$12="NATURALES_2,5",2.5,2.61))*H100*C100),0)) -> 0 | W100: =IF(E100="C",(G100/30*(IF($T$12="NATURALES_2,5",2.5,2.61))*I100*C100),IF(E100="FD",(G100/30*(IF($T$12="NATURALES_2,5",2.5,2.61))*I100*C100),0)) -> 0 | X100: =IF(E100="C",(G100/30*(IF($T$12="NATURALES_2,5",2.5,2.61))*J100*C100),IF(E100="FD",(G100/30*(IF($T$12="NATURALES_2,5",2.5,2.61))*J100*C100),0)) -> 0 | Y100: =IF(E100="C",IF(T100<$N$12*(IF($T$12="NATURALES_2,5",2.5,2.61))*K100/30,T100*$P$9*C100,$N$12*(IF($T$12="NATURALES_2,5",2.5,2.61))*K100/30*$P$9*C100),IF(E100="FD",IF(T100<$N$12*(IF($T$12="NATURALES_2,5",2.5,2.61))*K100/30,T100*$O$9*C100,$N$12*(IF($T$12="NATURALES_2,5",2.5,2.61))*K100/30*$O$9*C100),0)) -> 0 | Z100: =IF(Y100=0,0,Y100*H100/K100) -> 0 | AA100: =IF(Y100=0,0,Y100*I100/K100) -> 0 | AB100: =IF(Y100=0,0,Y100*J100/K100) -> 0 | AC100: =IF(E100="C",(G100/30*K100/12*12*C100),0)+AG100 -> 0 | AD100: =IF(E100="C",(G100/30*H100/12*12*C100),0) -> 0 | AE100: =IF(E100="C",(G100/30*I100/12*12*C100),0) -> 0 | AF100: =IF(E100="C",(G100/30*J100/12*12*C100),0) -> 0 | AH100: =+L100+P100+U100+Y100+AC100 -> 0
B101: ='MODELO PPTO.'!B290 -> 03.06.02.00. | C101: ='MODELO PPTO.'!C290 -> 0 | D101: ='MODELO PPTO.'!D290 -> Maquillador. | E101: ='MODELO PPTO.'!G290 -> - | F101: =+'MODELO PPTO.'!E290 -> 0 | G101: ='MODELO PPTO.'!F290 -> 0 | H101: ='MODELO PPTO.'!H290 -> 0 | I101: ='MODELO PPTO.'!I290 -> 0 | J101: ='MODELO PPTO.'!J290 -> 0 | K101: 0 | L101: 0 | N101: 0 | P101: =(N101+O101)*K101*C101 -> 0 | Q101: 0 | R101: 0 | S101: 0 | T101: 0 | U101: 0 | V101: 0 | W101: 0 | X101: 0 | Y101: 0 | Z101: 0 | AA101: 0 | AB101: 0 | AC101: =IF(E101="C",(G101/30*K101/12*12*C101),0)+AG101 -> 0 | AD101: =IF(E101="C",(G101/30*H101/12*12*C101),0) -> 0 | AE101: =IF(E101="C",(G101/30*I101/12*12*C101),0) -> 0 | AF101: =IF(E101="C",(G101/30*J101/12*12*C101),0) -> 0 | AH101: =+L101+P101+U101+Y101+AC101 -> 0
B102: ='MODELO PPTO.'!B291 -> 03.06.03.00. | C102: ='MODELO PPTO.'!C291 -> 0 | D102: ='MODELO PPTO.'!D291 -> Ayudante maquillaje. | E102: ='MODELO PPTO.'!G291 -> - | F102: =+'MODELO PPTO.'!E291 -> 0 | G102: ='MODELO PPTO.'!F291 -> 0 | H102: ='MODELO PPTO.'!H291 -> 0 | I102: ='MODELO PPTO.'!I291 -> 0 | J102: ='MODELO PPTO.'!J291 -> 0 | K102: 0 | L102: 0 | N102: 0 | P102: 0 | Q102: 0 | R102: 0 | S102: 0 | T102: 0 | U102: 0 | V102: 0 | W102: 0 | X102: 0 | Y102: 0 | Z102: 0 | AA102: 0 | AB102: 0 | AC102: =IF(E102="C",(G102/30*K102/12*12*C102),0)+AG102 -> 0 | AD102: =IF(E102="C",(G102/30*H102/12*12*C102),0) -> 0 | AE102: =IF(E102="C",(G102/30*I102/12*12*C102),0) -> 0 | AF102: =IF(E102="C",(G102/30*J102/12*12*C102),0) -> 0 | AH102: =+L102+P102+U102+Y102+AC102 -> 0
B103: ='MODELO PPTO.'!B292 -> 03.06.04.00. | C103: ='MODELO PPTO.'!C292 -> 0 | D103: ='MODELO PPTO.'!D292 -> Refuerzos maquillaje | E103: ='MODELO PPTO.'!G292 -> - | F103: =+'MODELO PPTO.'!E292 -> 0 | G103: ='MODELO PPTO.'!F292 -> 0 | H103: ='MODELO PPTO.'!H292 -> 0 | I103: ='MODELO PPTO.'!I292 -> 0 | J103: ='MODELO PPTO.'!J292 -> 0 | K103: =SUM(H103:J103) -> 0 | L103: =K103*G103*C103 -> 0 | N103: 0 | P103: 0 | Q103: =+N103*H103*C103 -> 0 | R103: =+N103*I103*C103 -> 0 | S103: =+N103*J103*C103 -> 0 | T103: 0 | U103: =SUM(V103:X103) -> 0 | V103: 0 | W103: 0 | X103: 0 | Y103: 0 | Z103: =IF(Y103=0,0,Y103*H103/K103) -> 0 | AA103: =IF(Y103=0,0,Y103*I103/K103) -> 0 | AB103: =IF(Y103=0,0,Y103*J103/K103) -> 0 | AC103: =IF(E103="C",(G103/30*K103/12*12*C103),0)+AG103 -> 0 | AD103: =IF(E103="C",(G103/30*H103/12*12*C103),0) -> 0 | AE103: =IF(E103="C",(G103/30*I103/12*12*C103),0) -> 0 | AF103: =IF(E103="C",(G103/30*J103/12*12*C103),0) -> 0 | AH103: =+L103+P103+U103+Y103+AC103 -> 0
B104: ='MODELO PPTO.'!B293 -> 03.06.05.00. | C104: ='MODELO PPTO.'!C293 -> 0 | D104: ='MODELO PPTO.'!D293 -> 0 | E104: ='MODELO PPTO.'!G293 -> - | F104: =+'MODELO PPTO.'!E293 -> 0 | G104: ='MODELO PPTO.'!F293 -> 0 | H104: ='MODELO PPTO.'!H293 -> 0 | I104: ='MODELO PPTO.'!I293 -> 0 | J104: ='MODELO PPTO.'!J293 -> 0 | K104: 0 | L104: 0 | N104: 0 | P104: 0 | Q104: 0 | R104: 0 | S104: 0 | T104: =IF(E104="C",(G104/30*(IF($T$12="NATURALES_2,5",2.5,2.61))*K104),IF(E104="FD",(G104/30*(IF($T$12="NATURALES_2,5",2.5,2.61))*K104),0)) -> 0 | U104: 0 | V104: =IF(E104="C",(G104/30*(IF($T$12="NATURALES_2,5",2.5,2.61))*H104*C104),IF(E104="FD",(G104/30*(IF($T$12="NATURALES_2,5",2.5,2.61))*H104*C104),0)) -> 0 | W104: =IF(E104="C",(G104/30*(IF($T$12="NATURALES_2,5",2.5,2.61))*I104*C104),IF(E104="FD",(G104/30*(IF($T$12="NATURALES_2,5",2.5,2.61))*I104*C104),0)) -> 0 | X104: =IF(E104="C",(G104/30*(IF($T$12="NATURALES_2,5",2.5,2.61))*J104*C104),IF(E104="FD",(G104/30*(IF($T$12="NATURALES_2,5",2.5,2.61))*J104*C104),0)) -> 0 | Y104: 0 | Z104: 0 | AA104: 0 | AB104: 0 | AC104: 0 | AD104: 0 | AE104: 0 | AF104: 0 | AH104: 0
B105: ='MODELO PPTO.'!B294 -> 0 | C105: ='MODELO PPTO.'!C294 -> 0 | D105: ='MODELO PPTO.'!D294 -> Para añadir nuevas partidas, insertadlas en ESTA fila y arrastrad formulas de la fila superior | E105: ='MODELO PPTO.'!G294 -> - | F105: =+'MODELO PPTO.'!E294 -> 0 | G105: ='MODELO PPTO.'!F294 -> 0 | H105: ='MODELO PPTO.'!H294 -> 0 | I105: ='MODELO PPTO.'!I294 -> 0 | J105: ='MODELO PPTO.'!J294 -> 0 | K105: =SUM(H105:J105) -> 0 | L105: =K105*G105*C105 -> 0 | N105: 0 | P105: 0 | Q105: =+N105*H105*C105 -> 0 | R105: =+N105*I105*C105 -> 0 | S105: =+N105*J105*C105 -> 0 | T105: =IF(E105="C",(G105/30*(IF($T$12="NATURALES_2,5",2.5,2.61))*K105),IF(E105="FD",(G105/30*(IF($T$12="NATURALES_2,5",2.5,2.61))*K105),0)) -> 0 | U105: =SUM(V105:X105) -> 0 | V105: =IF(E105="C",(G105/30*(IF($T$12="NATURALES_2,5",2.5,2.61))*H105*C105),IF(E105="FD",(G105/30*(IF($T$12="NATURALES_2,5",2.5,2.61))*H105*C105),0)) -> 0 | W105: =IF(E105="C",(G105/30*(IF($T$12="NATURALES_2,5",2.5,2.61))*I105*C105),IF(E105="FD",(G105/30*(IF($T$12="NATURALES_2,5",2.5,2.61))*I105*C105),0)) -> 0 | X105: =IF(E105="C",(G105/30*(IF($T$12="NATURALES_2,5",2.5,2.61))*J105*C105),IF(E105="FD",(G105/30*(IF($T$12="NATURALES_2,5",2.5,2.61))*J105*C105),0)) -> 0 | Y105: 0 | Z105: =IF(Y105=0,0,Y105*H105/K105) -> 0 | AA105: =IF(Y105=0,0,Y105*I105/K105) -> 0 | AB105: =IF(Y105=0,0,Y105*J105/K105) -> 0 | AC105: =IF(E105="C",(G105/30*K105/12*12*C105),0)+AG105 -> 0 | AD105: =IF(E105="C",(G105/30*H105/12*12*C105),0) -> 0 | AE105: =IF(E105="C",(G105/30*I105/12*12*C105),0) -> 0 | AF105: =IF(E105="C",(G105/30*J105/12*12*C105),0) -> 0 | AH105: =+L105+P105+U105+Y105+AC105 -> 0
B106: ='MODELO PPTO.'!B296 -> 03.07.00.00. | C106: ='MODELO PPTO.'!C296 -> Nº | D106: ='MODELO PPTO.'!D296 -> Peluqueria. | L106: =SUM(L107:L111) -> 0 | M106: 0 | N106: 0 | O106: 0 | P106: 0 | Q106: 0 | R106: 0 | S106: 0 | T106: 0 | U106: 0 | V106: 0 | W106: 0 | X106: 0 | Y106: 0 | Z106: 0 | AA106: 0 | AB106: 0 | AC106: 0 | AD106: 0 | AE106: 0 | AF106: 0 | AG106: 0 | AH106: =SUM(AH107:AH111) -> 0
B107: ='MODELO PPTO.'!B297 -> 03.07.01.00. | C107: ='MODELO PPTO.'!C297 -> 0 | D107: ='MODELO PPTO.'!D297 -> Peluquero. | E107: ='MODELO PPTO.'!G297 -> - | F107: =+'MODELO PPTO.'!E297 -> 0 | G107: ='MODELO PPTO.'!F297 -> 0 | H107: ='MODELO PPTO.'!H297 -> 0 | I107: ='MODELO PPTO.'!I297 -> 0 | J107: ='MODELO PPTO.'!J297 -> 0 | K107: 0 | L107: 0 | N107: =IF(E107="C",IF(G107<$N$12,G107*$P$9,$N$12*$P$9),IF(E107="F",IF(G107<$N$12,G107*$O$9,$N$12*$O$9),IF(E107="FD",IF(G107<$N$12,G107*$O$9,$N$12*$O$9),IF(E107="M",0,IF(E107="CJ",IF(G107>$N$11,G107*$P$9,$N$11*$P$9),0))))) -> 0 | P107: =(N107+O107)*K107*C107 -> 0 | Q107: =+N107*H107*C107 -> 0 | R107: =+N107*I107*C107 -> 0 | S107: =+N107*J107*C107 -> 0 | T107: =IF(E107="C",(G107/30*(IF($T$12="NATURALES_2,5",2.5,2.61))*K107),IF(E107="FD",(G107/30*(IF($T$12="NATURALES_2,5",2.5,2.61))*K107),0)) -> 0 | U107: =SUM(V107:X107) -> 0 | V107: =IF(E107="C",(G107/30*(IF($T$12="NATURALES_2,5",2.5,2.61))*H107*C107),IF(E107="FD",(G107/30*(IF($T$12="NATURALES_2,5",2.5,2.61))*H107*C107),0)) -> 0 | W107: =IF(E107="C",(G107/30*(IF($T$12="NATURALES_2,5",2.5,2.61))*I107*C107),IF(E107="FD",(G107/30*(IF($T$12="NATURALES_2,5",2.5,2.61))*I107*C107),0)) -> 0 | X107: =IF(E107="C",(G107/30*(IF($T$12="NATURALES_2,5",2.5,2.61))*J107*C107),IF(E107="FD",(G107/30*(IF($T$12="NATURALES_2,5",2.5,2.61))*J107*C107),0)) -> 0 | Y107: =IF(E107="C",IF(T107<$N$12*(IF($T$12="NATURALES_2,5",2.5,2.61))*K107/30,T107*$P$9*C107,$N$12*(IF($T$12="NATURALES_2,5",2.5,2.61))*K107/30*$P$9*C107),IF(E107="FD",IF(T107<$N$12*(IF($T$12="NATURALES_2,5",2.5,2.61))*K107/30,T107*$O$9*C107,$N$12*(IF($T$12="NATURALES_2,5",2.5,2.61))*K107/30*$O$9*C107),0)) -> 0 | Z107: =IF(Y107=0,0,Y107*H107/K107) -> 0 | AA107: =IF(Y107=0,0,Y107*I107/K107) -> 0 | AB107: =IF(Y107=0,0,Y107*J107/K107) -> 0 | AC107: =IF(E107="C",(G107/30*K107/12*12*C107),0)+AG107 -> 0 | AD107: =IF(E107="C",(G107/30*H107/12*12*C107),0) -> 0 | AE107: =IF(E107="C",(G107/30*I107/12*12*C107),0) -> 0 | AF107: =IF(E107="C",(G107/30*J107/12*12*C107),0) -> 0 | AH107: =+L107+P107+U107+Y107+AC107 -> 0
B108: ='MODELO PPTO.'!B298 -> 03.07.02.00. | C108: ='MODELO PPTO.'!C298 -> 0 | D108: ='MODELO PPTO.'!D298 -> Ayudante peluquería. | E108: ='MODELO PPTO.'!G298 -> - | F108: =+'MODELO PPTO.'!E298 -> 0 | G108: ='MODELO PPTO.'!F298 -> 0 | H108: ='MODELO PPTO.'!H298 -> 0 | I108: ='MODELO PPTO.'!I298 -> 0 | J108: ='MODELO PPTO.'!J298 -> 0 | K108: 0 | L108: 0 | N108: =IF(E108="C",IF(G108<$N$12,G108*$P$9,$N$12*$P$9),IF(E108="F",IF(G108<$N$12,G108*$O$9,$N$12*$O$9),IF(E108="FD",IF(G108<$N$12,G108*$O$9,$N$12*$O$9),IF(E108="M",0,IF(E108="CJ",IF(G108>$N$11,G108*$P$9,$N$11*$P$9),0))))) -> 0 | P108: =(N108+O108)*K108*C108 -> 0 | Q108: 0 | R108: 0 | S108: 0 | T108: 0 | U108: 0 | V108: 0 | W108: 0 | X108: 0 | Y108: =IF(E108="C",IF(T108<$N$12*(IF($T$12="NATURALES_2,5",2.5,2.61))*K108/30,T108*$P$9*C108,$N$12*(IF($T$12="NATURALES_2,5",2.5,2.61))*K108/30*$P$9*C108),IF(E108="FD",IF(T108<$N$12*(IF($T$12="NATURALES_2,5",2.5,2.61))*K108/30,T108*$O$9*C108,$N$12*(IF($T$12="NATURALES_2,5",2.5,2.61))*K108/30*$O$9*C108),0)) -> 0 | Z108: 0 | AA108: 0 | AB108: 0 | AC108: =IF(E108="C",(G108/30*K108/12*12*C108),0)+AG108 -> 0 | AD108: =IF(E108="C",(G108/30*H108/12*12*C108),0) -> 0 | AE108: =IF(E108="C",(G108/30*I108/12*12*C108),0) -> 0 | AF108: =IF(E108="C",(G108/30*J108/12*12*C108),0) -> 0 | AH108: =+L108+P108+U108+Y108+AC108 -> 0
B109: ='MODELO PPTO.'!B299 -> 03.07.03.00. | C109: ='MODELO PPTO.'!C299 -> 0 | D109: ='MODELO PPTO.'!D299 -> Refuerzo peluquería. | E109: ='MODELO PPTO.'!G299 -> 0 | F109: =+'MODELO PPTO.'!E299 -> 0 | G109: ='MODELO PPTO.'!F299 -> 0 | H109: ='MODELO PPTO.'!H299 -> 0 | I109: ='MODELO PPTO.'!I299 -> 0 | J109: ='MODELO PPTO.'!J299 -> 0 | K109: =SUM(H109:J109) -> 0 | L109: =K109*G109*C109 -> 0 | N109: =IF(E109="C",IF(G109<$N$12,G109*$P$9,$N$12*$P$9),IF(E109="F",IF(G109<$N$12,G109*$O$9,$N$12*$O$9),IF(E109="FD",IF(G109<$N$12,G109*$O$9,$N$12*$O$9),IF(E109="M",0,IF(E109="CJ",IF(G109>$N$11,G109*$P$9,$N$11*$P$9),0))))) -> 0 | P109: 0 | Q109: =+N109*H109*C109 -> 0 | R109: =+N109*I109*C109 -> 0 | S109: =+N109*J109*C109 -> 0 | T109: 0 | U109: =SUM(V109:X109) -> 0 | V109: 0 | W109: 0 | X109: 0 | Y109: =IF(E109="C",IF(T109<$N$12*(IF($T$12="NATURALES_2,5",2.5,2.61))*K109/30,T109*$P$9*C109,$N$12*(IF($T$12="NATURALES_2,5",2.5,2.61))*K109/30*$P$9*C109),IF(E109="FD",IF(T109<$N$12*(IF($T$12="NATURALES_2,5",2.5,2.61))*K109/30,T109*$O$9*C109,$N$12*(IF($T$12="NATURALES_2,5",2.5,2.61))*K109/30*$O$9*C109),0)) -> 0 | Z109: =IF(Y109=0,0,Y109*H109/K109) -> 0 | AA109: =IF(Y109=0,0,Y109*I109/K109) -> 0 | AB109: =IF(Y109=0,0,Y109*J109/K109) -> 0 | AC109: =IF(E109="C",(G109/30*K109/12*12*C109),0)+AG109 -> 0 | AD109: =IF(E109="C",(G109/30*H109/12*12*C109),0) -> 0 | AE109: =IF(E109="C",(G109/30*I109/12*12*C109),0) -> 0 | AF109: =IF(E109="C",(G109/30*J109/12*12*C109),0) -> 0 | AH109: =+L109+P109+U109+Y109+AC109 -> 0
B110: ='MODELO PPTO.'!B300 -> 03.07.04.00. | C110: ='MODELO PPTO.'!C300 -> 0 | D110: ='MODELO PPTO.'!D300 -> 0 | E110: ='MODELO PPTO.'!G300 -> 0 | F110: =+'MODELO PPTO.'!E300 -> 0 | G110: ='MODELO PPTO.'!F300 -> 0 | H110: ='MODELO PPTO.'!H300 -> 0 | I110: ='MODELO PPTO.'!I300 -> 0 | J110: ='MODELO PPTO.'!J300 -> 0 | K110: 0 | L110: 0 | N110: =IF(E110="C",IF(G110<$N$12,G110*$P$9,$N$12*$P$9),IF(E110="F",IF(G110<$N$12,G110*$O$9,$N$12*$O$9),IF(E110="FD",IF(G110<$N$12,G110*$O$9,$N$12*$O$9),IF(E110="M",0,IF(E110="CJ",IF(G110>$N$11,G110*$P$9,$N$11*$P$9),0))))) -> 0 | P110: 0 | Q110: 0 | R110: 0 | S110: 0 | T110: =IF(E110="C",(G110/30*(IF($T$12="NATURALES_2,5",2.5,2.61))*K110),IF(E110="FD",(G110/30*(IF($T$12="NATURALES_2,5",2.5,2.61))*K110),0)) -> 0 | U110: 0 | V110: =IF(E110="C",(G110/30*(IF($T$12="NATURALES_2,5",2.5,2.61))*H110*C110),IF(E110="FD",(G110/30*(IF($T$12="NATURALES_2,5",2.5,2.61))*H110*C110),0)) -> 0 | W110: =IF(E110="C",(G110/30*(IF($T$12="NATURALES_2,5",2.5,2.61))*I110*C110),IF(E110="FD",(G110/30*(IF($T$12="NATURALES_2,5",2.5,2.61))*I110*C110),0)) -> 0 | X110: =IF(E110="C",(G110/30*(IF($T$12="NATURALES_2,5",2.5,2.61))*J110*C110),IF(E110="FD",(G110/30*(IF($T$12="NATURALES_2,5",2.5,2.61))*J110*C110),0)) -> 0 | Y110: =IF(E110="C",IF(T110<$N$12*(IF($T$12="NATURALES_2,5",2.5,2.61))*K110/30,T110*$P$9*C110,$N$12*(IF($T$12="NATURALES_2,5",2.5,2.61))*K110/30*$P$9*C110),IF(E110="FD",IF(T110<$N$12*(IF($T$12="NATURALES_2,5",2.5,2.61))*K110/30,T110*$O$9*C110,$N$12*(IF($T$12="NATURALES_2,5",2.5,2.61))*K110/30*$O$9*C110),0)) -> 0 | Z110: 0 | AA110: 0 | AB110: 0 | AC110: 0 | AD110: 0 | AE110: 0 | AF110: 0 | AH110: 0
B111: ='MODELO PPTO.'!B301 -> 0 | C111: ='MODELO PPTO.'!C301 -> 0 | D111: ='MODELO PPTO.'!D301 -> Para añadir nuevas partidas, insertadlas en ESTA fila y arrastrad formulas de la fila superior | E111: ='MODELO PPTO.'!G301 -> - | F111: =+'MODELO PPTO.'!E301 -> 0 | G111: ='MODELO PPTO.'!F301 -> 0 | H111: ='MODELO PPTO.'!H301 -> 0 | I111: ='MODELO PPTO.'!I301 -> 0 | J111: ='MODELO PPTO.'!J301 -> 0 | K111: 0 | L111: 0 | N111: =IF(E111="C",IF(G111<$N$12,G111*$P$9,$N$12*$P$9),IF(E111="F",IF(G111<$N$12,G111*$O$9,$N$12*$O$9),IF(E111="FD",IF(G111<$N$12,G111*$O$9,$N$12*$O$9),IF(E111="M",0,IF(E111="CJ",IF(G111>$N$11,G111*$P$9,$N$11*$P$9),0))))) -> 0 | P111: 0 | Q111: 0 | R111: 0 | S111: 0 | T111: =IF(E111="C",(G111/30*(IF($T$12="NATURALES_2,5",2.5,2.61))*K111),IF(E111="FD",(G111/30*(IF($T$12="NATURALES_2,5",2.5,2.61))*K111),0)) -> 0 | U111: 0 | V111: =IF(E111="C",(G111/30*(IF($T$12="NATURALES_2,5",2.5,2.61))*H111*C111),IF(E111="FD",(G111/30*(IF($T$12="NATURALES_2,5",2.5,2.61))*H111*C111),0)) -> 0 | W111: =IF(E111="C",(G111/30*(IF($T$12="NATURALES_2,5",2.5,2.61))*I111*C111),IF(E111="FD",(G111/30*(IF($T$12="NATURALES_2,5",2.5,2.61))*I111*C111),0)) -> 0 | X111: =IF(E111="C",(G111/30*(IF($T$12="NATURALES_2,5",2.5,2.61))*J111*C111),IF(E111="FD",(G111/30*(IF($T$12="NATURALES_2,5",2.5,2.61))*J111*C111),0)) -> 0 | Y111: =IF(E111="C",IF(T111<$N$12*(IF($T$12="NATURALES_2,5",2.5,2.61))*K111/30,T111*$P$9*C111,$N$12*(IF($T$12="NATURALES_2,5",2.5,2.61))*K111/30*$P$9*C111),IF(E111="FD",IF(T111<$N$12*(IF($T$12="NATURALES_2,5",2.5,2.61))*K111/30,T111*$O$9*C111,$N$12*(IF($T$12="NATURALES_2,5",2.5,2.61))*K111/30*$O$9*C111),0)) -> 0 | Z111: 0 | AA111: 0 | AB111: 0 | AC111: =IF(E111="C",(G111/30*K111/12*12*C111),0)+AG111 -> 0 | AD111: =IF(E111="C",(G111/30*H111/12*12*C111),0) -> 0 | AE111: =IF(E111="C",(G111/30*I111/12*12*C111),0) -> 0 | AF111: =IF(E111="C",(G111/30*J111/12*12*C111),0) -> 0 | AH111: =+L111+P111+U111+Y111+AC111 -> 0
B112: ='MODELO PPTO.'!B303 -> 03.08.00.00. | C112: ='MODELO PPTO.'!C303 -> Nº | D112: ='MODELO PPTO.'!D303 -> Tecnicos rodaje efectos especiales. | L112: =SUM(L113:L117) -> 0 | M112: 0 | N112: 0 | O112: 0 | P112: 0 | Q112: 0 | R112: 0 | S112: 0 | T112: 0 | U112: 0 | V112: 0 | W112: 0 | X112: 0 | Y112: 0 | Z112: 0 | AA112: 0 | AB112: 0 | AC112: 0 | AD112: 0 | AE112: 0 | AF112: 0 | AG112: 0 | AH112: =SUM(AH113:AH117) -> 0
B113: ='MODELO PPTO.'!B304 -> 03.08.01.00. | C113: ='MODELO PPTO.'!C304 -> 0 | D113: ='MODELO PPTO.'!D304 -> Jefe/Director efectos especiales rodaje. | E113: ='MODELO PPTO.'!G304 -> - | F113: =+'MODELO PPTO.'!E304 -> 0 | G113: ='MODELO PPTO.'!F304 -> 0 | H113: ='MODELO PPTO.'!H304 -> 0 | I113: ='MODELO PPTO.'!I304 -> 0 | J113: ='MODELO PPTO.'!J304 -> 0 | K113: 0 | L113: 0 | N113: =IF(E113="C",IF(G113<$N$12,G113*$P$9,$N$12*$P$9),IF(E113="F",IF(G113<$N$12,G113*$O$9,$N$12*$O$9),IF(E113="FD",IF(G113<$N$12,G113*$O$9,$N$12*$O$9),IF(E113="M",0,IF(E113="CJ",IF(G113>$N$11,G113*$P$9,$N$11*$P$9),0))))) -> 0 | P113: =(N113+O113)*K113*C113 -> 0 | Q113: =+N113*H113*C113 -> 0 | R113: =+N113*I113*C113 -> 0 | S113: =+N113*J113*C113 -> 0 | T113: =IF(E113="C",(G113/30*(IF($T$12="NATURALES_2,5",2.5,2.61))*K113),IF(E113="FD",(G113/30*(IF($T$12="NATURALES_2,5",2.5,2.61))*K113),0)) -> 0 | U113: =SUM(V113:X113) -> 0 | V113: =IF(E113="C",(G113/30*(IF($T$12="NATURALES_2,5",2.5,2.61))*H113*C113),IF(E113="FD",(G113/30*(IF($T$12="NATURALES_2,5",2.5,2.61))*H113*C113),0)) -> 0 | W113: =IF(E113="C",(G113/30*(IF($T$12="NATURALES_2,5",2.5,2.61))*I113*C113),IF(E113="FD",(G113/30*(IF($T$12="NATURALES_2,5",2.5,2.61))*I113*C113),0)) -> 0 | X113: =IF(E113="C",(G113/30*(IF($T$12="NATURALES_2,5",2.5,2.61))*J113*C113),IF(E113="FD",(G113/30*(IF($T$12="NATURALES_2,5",2.5,2.61))*J113*C113),0)) -> 0 | Y113: =IF(E113="C",IF(T113<$N$12*(IF($T$12="NATURALES_2,5",2.5,2.61))*K113/30,T113*$P$9*C113,$N$12*(IF($T$12="NATURALES_2,5",2.5,2.61))*K113/30*$P$9*C113),IF(E113="FD",IF(T113<$N$12*(IF($T$12="NATURALES_2,5",2.5,2.61))*K113/30,T113*$O$9*C113,$N$12*(IF($T$12="NATURALES_2,5",2.5,2.61))*K113/30*$O$9*C113),0)) -> 0 | Z113: =IF(Y113=0,0,Y113*H113/K113) -> 0 | AA113: =IF(Y113=0,0,Y113*I113/K113) -> 0 | AB113: =IF(Y113=0,0,Y113*J113/K113) -> 0 | AC113: =IF(E113="C",(G113/30*K113/12*12*C113),0)+AG113 -> 0 | AD113: =IF(E113="C",(G113/30*H113/12*12*C113),0) -> 0 | AE113: =IF(E113="C",(G113/30*I113/12*12*C113),0) -> 0 | AF113: =IF(E113="C",(G113/30*J113/12*12*C113),0) -> 0 | AH113: =+L113+P113+U113+Y113+AC113 -> 0
B114: ='MODELO PPTO.'!B305 -> 03.08.02.00. | C114: ='MODELO PPTO.'!C305 -> 0 | D114: ='MODELO PPTO.'!D305 -> Ayudante efectos especiales rodaje. | E114: ='MODELO PPTO.'!G305 -> - | F114: =+'MODELO PPTO.'!E305 -> 0 | G114: ='MODELO PPTO.'!F305 -> 0 | H114: ='MODELO PPTO.'!H305 -> 0 | I114: ='MODELO PPTO.'!I305 -> 0 | J114: ='MODELO PPTO.'!J305 -> 0 | K114: 0 | L114: 0 | N114: =IF(E114="C",IF(G114<$N$12,G114*$P$9,$N$12*$P$9),IF(E114="F",IF(G114<$N$12,G114*$O$9,$N$12*$O$9),IF(E114="FD",IF(G114<$N$12,G114*$O$9,$N$12*$O$9),IF(E114="M",0,IF(E114="CJ",IF(G114>$N$11,G114*$P$9,$N$11*$P$9),0))))) -> 0 | P114: =(N114+O114)*K114*C114 -> 0 | Q114: 0 | R114: 0 | S114: 0 | T114: 0 | U114: 0 | V114: 0 | W114: 0 | X114: 0 | Y114: =IF(E114="C",IF(T114<$N$12*(IF($T$12="NATURALES_2,5",2.5,2.61))*K114/30,T114*$P$9*C114,$N$12*(IF($T$12="NATURALES_2,5",2.5,2.61))*K114/30*$P$9*C114),IF(E114="FD",IF(T114<$N$12*(IF($T$12="NATURALES_2,5",2.5,2.61))*K114/30,T114*$O$9*C114,$N$12*(IF($T$12="NATURALES_2,5",2.5,2.61))*K114/30*$O$9*C114),0)) -> 0 | Z114: 0 | AA114: 0 | AB114: 0 | AC114: =IF(E114="C",(G114/30*K114/12*12*C114),0)+AG114 -> 0 | AD114: =IF(E114="C",(G114/30*H114/12*12*C114),0) -> 0 | AE114: =IF(E114="C",(G114/30*I114/12*12*C114),0) -> 0 | AF114: =IF(E114="C",(G114/30*J114/12*12*C114),0) -> 0 | AH114: =+L114+P114+U114+Y114+AC114 -> 0
B115: ='MODELO PPTO.'!B306 -> 03.08.03.00. | C115: ='MODELO PPTO.'!C306 -> 0 | D115: ='MODELO PPTO.'!D306 -> Armero. | E115: ='MODELO PPTO.'!G306 -> - | F115: =+'MODELO PPTO.'!E306 -> 0 | G115: ='MODELO PPTO.'!F306 -> 0 | H115: ='MODELO PPTO.'!H306 -> 0 | I115: ='MODELO PPTO.'!I306 -> 0 | J115: ='MODELO PPTO.'!J306 -> 0 | K115: 0 | L115: 0 | N115: =IF(E115="C",IF(G115<$N$12,G115*$P$9,$N$12*$P$9),IF(E115="F",IF(G115<$N$12,G115*$O$9,$N$12*$O$9),IF(E115="FD",IF(G115<$N$12,G115*$O$9,$N$12*$O$9),IF(E115="M",0,IF(E115="CJ",IF(G115>$N$11,G115*$P$9,$N$11*$P$9),0))))) -> 0 | P115: 0 | Q115: 0 | R115: 0 | S115: 0 | T115: 0 | U115: 0 | V115: 0 | W115: 0 | X115: 0 | Y115: =IF(E115="C",IF(T115<$N$12*(IF($T$12="NATURALES_2,5",2.5,2.61))*K115/30,T115*$P$9*C115,$N$12*(IF($T$12="NATURALES_2,5",2.5,2.61))*K115/30*$P$9*C115),IF(E115="FD",IF(T115<$N$12*(IF($T$12="NATURALES_2,5",2.5,2.61))*K115/30,T115*$O$9*C115,$N$12*(IF($T$12="NATURALES_2,5",2.5,2.61))*K115/30*$O$9*C115),0)) -> 0 | Z115: 0 | AA115: 0 | AB115: 0 | AC115: =IF(E115="C",(G115/30*K115/12*12*C115),0)+AG115 -> 0 | AD115: =IF(E115="C",(G115/30*H115/12*12*C115),0) -> 0 | AE115: =IF(E115="C",(G115/30*I115/12*12*C115),0) -> 0 | AF115: =IF(E115="C",(G115/30*J115/12*12*C115),0) -> 0 | AH115: =+L115+P115+U115+Y115+AC115 -> 0
B116: ='MODELO PPTO.'!B307 -> 03.08.04.00. | C116: ='MODELO PPTO.'!C307 -> 0 | D116: ='MODELO PPTO.'!D307 -> 0 | E116: ='MODELO PPTO.'!G307 -> - | F116: =+'MODELO PPTO.'!E307 -> 0 | G116: ='MODELO PPTO.'!F307 -> 0 | H116: ='MODELO PPTO.'!H307 -> 0 | I116: ='MODELO PPTO.'!I307 -> 0 | J116: ='MODELO PPTO.'!J307 -> 0 | K116: 0 | L116: 0 | N116: =IF(E116="C",IF(G116<$N$12,G116*$P$9,$N$12*$P$9),IF(E116="F",IF(G116<$N$12,G116*$O$9,$N$12*$O$9),IF(E116="FD",IF(G116<$N$12,G116*$O$9,$N$12*$O$9),IF(E116="M",0,IF(E116="CJ",IF(G116>$N$11,G116*$P$9,$N$11*$P$9),0))))) -> 0 | P116: 0 | Q116: 0 | R116: 0 | S116: 0 | T116: =IF(E116="C",(G116/30*(IF($T$12="NATURALES_2,5",2.5,2.61))*K116),IF(E116="FD",(G116/30*(IF($T$12="NATURALES_2,5",2.5,2.61))*K116),0)) -> 0 | U116: 0 | V116: =IF(E116="C",(G116/30*(IF($T$12="NATURALES_2,5",2.5,2.61))*H116*C116),IF(E116="FD",(G116/30*(IF($T$12="NATURALES_2,5",2.5,2.61))*H116*C116),0)) -> 0 | W116: =IF(E116="C",(G116/30*(IF($T$12="NATURALES_2,5",2.5,2.61))*I116*C116),IF(E116="FD",(G116/30*(IF($T$12="NATURALES_2,5",2.5,2.61))*I116*C116),0)) -> 0 | X116: =IF(E116="C",(G116/30*(IF($T$12="NATURALES_2,5",2.5,2.61))*J116*C116),IF(E116="FD",(G116/30*(IF($T$12="NATURALES_2,5",2.5,2.61))*J116*C116),0)) -> 0 | Y116: =IF(E116="C",IF(T116<$N$12*(IF($T$12="NATURALES_2,5",2.5,2.61))*K116/30,T116*$P$9*C116,$N$12*(IF($T$12="NATURALES_2,5",2.5,2.61))*K116/30*$P$9*C116),IF(E116="FD",IF(T116<$N$12*(IF($T$12="NATURALES_2,5",2.5,2.61))*K116/30,T116*$O$9*C116,$N$12*(IF($T$12="NATURALES_2,5",2.5,2.61))*K116/30*$O$9*C116),0)) -> 0 | Z116: 0 | AA116: 0 | AB116: 0 | AC116: 0 | AD116: 0 | AE116: 0 | AF116: 0 | AH116: =+L116+P116+U116+Y116+AC116 -> 0
B117: ='MODELO PPTO.'!B308 -> 0 | C117: ='MODELO PPTO.'!C308 -> 0 | D117: ='MODELO PPTO.'!D308 -> Para añadir nuevas partidas, insertadlas en ESTA fila y arrastrad formulas de la fila superior | E117: ='MODELO PPTO.'!G308 -> - | F117: =+'MODELO PPTO.'!E308 -> 0 | G117: ='MODELO PPTO.'!F308 -> 0 | H117: ='MODELO PPTO.'!H308 -> 0 | I117: ='MODELO PPTO.'!I308 -> 0 | J117: ='MODELO PPTO.'!J308 -> 0 | K117: =SUM(H117:J117) -> 0 | L117: =K117*G117*C117 -> 0 | N117: =IF(E117="C",IF(G117<$N$12,G117*$P$9,$N$12*$P$9),IF(E117="F",IF(G117<$N$12,G117*$O$9,$N$12*$O$9),IF(E117="FD",IF(G117<$N$12,G117*$O$9,$N$12*$O$9),IF(E117="M",0,IF(E117="CJ",IF(G117>$N$11,G117*$P$9,$N$11*$P$9),0))))) -> 0 | P117: 0 | Q117: 0 | R117: 0 | S117: 0 | T117: =IF(E117="C",(G117/30*(IF($T$12="NATURALES_2,5",2.5,2.61))*K117),IF(E117="FD",(G117/30*(IF($T$12="NATURALES_2,5",2.5,2.61))*K117),0)) -> 0 | U117: 0 | V117: =IF(E117="C",(G117/30*(IF($T$12="NATURALES_2,5",2.5,2.61))*H117*C117),IF(E117="FD",(G117/30*(IF($T$12="NATURALES_2,5",2.5,2.61))*H117*C117),0)) -> 0 | W117: =IF(E117="C",(G117/30*(IF($T$12="NATURALES_2,5",2.5,2.61))*I117*C117),IF(E117="FD",(G117/30*(IF($T$12="NATURALES_2,5",2.5,2.61))*I117*C117),0)) -> 0 | X117: =IF(E117="C",(G117/30*(IF($T$12="NATURALES_2,5",2.5,2.61))*J117*C117),IF(E117="FD",(G117/30*(IF($T$12="NATURALES_2,5",2.5,2.61))*J117*C117),0)) -> 0 | Y117: =IF(E117="C",IF(T117<$N$12*(IF($T$12="NATURALES_2,5",2.5,2.61))*K117/30,T117*$P$9*C117,$N$12*(IF($T$12="NATURALES_2,5",2.5,2.61))*K117/30*$P$9*C117),IF(E117="FD",IF(T117<$N$12*(IF($T$12="NATURALES_2,5",2.5,2.61))*K117/30,T117*$O$9*C117,$N$12*(IF($T$12="NATURALES_2,5",2.5,2.61))*K117/30*$O$9*C117),0)) -> 0 | Z117: 0 | AA117: 0 | AB117: 0 | AC117: 0 | AD117: 0 | AE117: 0 | AF117: 0 | AH117: =+L117+P117+U117+Y117+AC117 -> 0
B118: ='MODELO PPTO.'!B310 -> 03.09.00.00. | C118: ='MODELO PPTO.'!C310 -> Nº | D118: ='MODELO PPTO.'!D310 -> Sonido | L118: =SUM(L119:L125) -> 0 | M118: 0 | N118: 0 | O118: 0 | P118: 0 | Q118: 0 | R118: 0 | S118: 0 | T118: 0 | U118: 0 | V118: 0 | W118: 0 | X118: 0 | Y118: 0 | Z118: 0 | AA118: 0 | AB118: 0 | AC118: 0 | AD118: 0 | AE118: 0 | AF118: 0 | AG118: 0 | AH118: =SUM(AH119:AH125) -> 0
B119: ='MODELO PPTO.'!B311 -> 03.09.01.00. | C119: ='MODELO PPTO.'!C311 -> 0 | D119: ='MODELO PPTO.'!D311 -> Jefe/ Ingeniero sonido. | E119: ='MODELO PPTO.'!G311 -> - | F119: =+'MODELO PPTO.'!E311 -> 0 | G119: ='MODELO PPTO.'!F311 -> 0 | H119: ='MODELO PPTO.'!H311 -> 0 | I119: ='MODELO PPTO.'!I311 -> 0 | J119: ='MODELO PPTO.'!J311 -> 0 | K119: 0 | L119: 0 | N119: =IF(E119="C",IF(G119<$N$12,G119*$P$9,$N$12*$P$9),IF(E119="F",IF(G119<$N$12,G119*$O$9,$N$12*$O$9),IF(E119="FD",IF(G119<$N$12,G119*$O$9,$N$12*$O$9),IF(E119="M",0,IF(E119="CJ",IF(G119>$N$11,G119*$P$9,$N$11*$P$9),0))))) -> 0 | P119: =(N119+O119)*K119*C119 -> 0 | Q119: =+N119*H119*C119 -> 0 | R119: =+N119*I119*C119 -> 0 | S119: =+N119*J119*C119 -> 0 | T119: =IF(E119="C",(G119/30*(IF($T$12="NATURALES_2,5",2.5,2.61))*K119),IF(E119="FD",(G119/30*(IF($T$12="NATURALES_2,5",2.5,2.61))*K119),0)) -> 0 | U119: =SUM(V119:X119) -> 0 | V119: =IF(E119="C",(G119/30*(IF($T$12="NATURALES_2,5",2.5,2.61))*H119*C119),IF(E119="FD",(G119/30*(IF($T$12="NATURALES_2,5",2.5,2.61))*H119*C119),0)) -> 0 | W119: =IF(E119="C",(G119/30*(IF($T$12="NATURALES_2,5",2.5,2.61))*I119*C119),IF(E119="FD",(G119/30*(IF($T$12="NATURALES_2,5",2.5,2.61))*I119*C119),0)) -> 0 | X119: =IF(E119="C",(G119/30*(IF($T$12="NATURALES_2,5",2.5,2.61))*J119*C119),IF(E119="FD",(G119/30*(IF($T$12="NATURALES_2,5",2.5,2.61))*J119*C119),0)) -> 0 | Y119: =IF(E119="C",IF(T119<$N$12*(IF($T$12="NATURALES_2,5",2.5,2.61))*K119/30,T119*$P$9*C119,$N$12*(IF($T$12="NATURALES_2,5",2.5,2.61))*K119/30*$P$9*C119),IF(E119="FD",IF(T119<$N$12*(IF($T$12="NATURALES_2,5",2.5,2.61))*K119/30,T119*$O$9*C119,$N$12*(IF($T$12="NATURALES_2,5",2.5,2.61))*K119/30*$O$9*C119),0)) -> 0 | Z119: =IF(Y119=0,0,Y119*H119/K119) -> 0 | AA119: =IF(Y119=0,0,Y119*I119/K119) -> 0 | AB119: =IF(Y119=0,0,Y119*J119/K119) -> 0 | AC119: =IF(E119="C",(G119/30*K119/12*12*C119),0)+AG119 -> 0 | AD119: =IF(E119="C",(G119/30*H119/12*12*C119),0) -> 0 | AE119: =IF(E119="C",(G119/30*I119/12*12*C119),0) -> 0 | AF119: =IF(E119="C",(G119/30*J119/12*12*C119),0) -> 0 | AH119: =+L119+P119+U119+Y119+AC119 -> 0
B120: ='MODELO PPTO.'!B312 -> 03.09.02.00. | C120: ='MODELO PPTO.'!C312 -> 0 | D120: ='MODELO PPTO.'!D312 -> Ayudante/ Operador sonido. | E120: ='MODELO PPTO.'!G312 -> - | F120: =+'MODELO PPTO.'!E312 -> 0 | G120: ='MODELO PPTO.'!F312 -> 0 | H120: ='MODELO PPTO.'!H312 -> 0 | I120: ='MODELO PPTO.'!I312 -> 0 | J120: ='MODELO PPTO.'!J312 -> 0 | K120: 0 | L120: 0 | N120: 0 | P120: =(N120+O120)*K120*C120 -> 0 | Q120: 0 | R120: 0 | S120: 0 | T120: 0 | U120: 0 | V120: 0 | W120: 0 | X120: 0 | Y120: 0 | Z120: 0 | AA120: 0 | AB120: 0 | AC120: =IF(E120="C",(G120/30*K120/12*12*C120),0)+AG120 -> 0 | AD120: =IF(E120="C",(G120/30*H120/12*12*C120),0) -> 0 | AE120: =IF(E120="C",(G120/30*I120/12*12*C120),0) -> 0 | AF120: =IF(E120="C",(G120/30*J120/12*12*C120),0) -> 0 | AH120: 0
B121: ='MODELO PPTO.'!B313 -> 03.09.02.01. | C121: ='MODELO PPTO.'!C313 -> 0 | D121: ='MODELO PPTO.'!D313 -> Microfonista. Jirafista. | E121: ='MODELO PPTO.'!G313 -> - | F121: =+'MODELO PPTO.'!E313 -> 0 | G121: ='MODELO PPTO.'!F313 -> 0 | H121: ='MODELO PPTO.'!H313 -> 0 | I121: ='MODELO PPTO.'!I313 -> 0 | J121: ='MODELO PPTO.'!J313 -> 0 | K121: 0 | L121: 0 | N121: 0 | P121: 0 | Q121: 0 | R121: 0 | S121: 0 | T121: 0 | U121: 0 | V121: 0 | W121: 0 | X121: 0 | Y121: 0 | Z121: 0 | AA121: 0 | AB121: 0 | AC121: =IF(E121="C",(G121/30*K121/12*12*C121),0)+AG121 -> 0 | AD121: =IF(E121="C",(G121/30*H121/12*12*C121),0) -> 0 | AE121: =IF(E121="C",(G121/30*I121/12*12*C121),0) -> 0 | AF121: =IF(E121="C",(G121/30*J121/12*12*C121),0) -> 0 | AH121: 0
B122: ='MODELO PPTO.'!B314 -> 03.09.03.00. | C122: ='MODELO PPTO.'!C314 -> 0 | D122: ='MODELO PPTO.'!D314 -> Personal grabación sonido estudio TV. | E122: ='MODELO PPTO.'!G314 -> - | F122: =+'MODELO PPTO.'!E314 -> 0 | G122: ='MODELO PPTO.'!F314 -> 0 | H122: ='MODELO PPTO.'!H314 -> 0 | I122: ='MODELO PPTO.'!I314 -> 0 | J122: ='MODELO PPTO.'!J314 -> 0 | K122: 0 | L122: 0 | N122: 0 | P122: 0 | Q122: 0 | R122: 0 | S122: 0 | T122: 0 | U122: 0 | V122: 0 | W122: 0 | X122: 0 | Y122: 0 | Z122: 0 | AA122: 0 | AB122: 0 | AC122: 0 | AD122: 0 | AE122: 0 | AF122: 0 | AH122: 0
B123: ='MODELO PPTO.'!B315 -> 03.09.04.00. | C123: ='MODELO PPTO.'!C315 -> 0 | D123: ='MODELO PPTO.'!D315 -> Personal grabación unidad movil sonido | E123: ='MODELO PPTO.'!G315 -> - | F123: =+'MODELO PPTO.'!E315 -> 0 | G123: ='MODELO PPTO.'!F315 -> 0 | H123: ='MODELO PPTO.'!H315 -> 0 | I123: ='MODELO PPTO.'!I315 -> 0 | J123: ='MODELO PPTO.'!J315 -> 0 | K123: 0 | L123: 0 | N123: 0 | P123: 0 | Q123: 0 | R123: 0 | S123: 0 | T123: 0 | U123: 0 | V123: 0 | W123: 0 | X123: 0 | Y123: 0 | Z123: 0 | AA123: 0 | AB123: 0 | AC123: 0 | AD123: 0 | AE123: 0 | AF123: 0 | AH123: 0
B124: ='MODELO PPTO.'!B316 -> 03.09.05.00. | C124: ='MODELO PPTO.'!C316 -> 0 | D124: ='MODELO PPTO.'!D316 -> 0 | E124: ='MODELO PPTO.'!G316 -> - | F124: =+'MODELO PPTO.'!E316 -> 0 | G124: ='MODELO PPTO.'!F316 -> 0 | H124: ='MODELO PPTO.'!H316 -> 0 | I124: ='MODELO PPTO.'!I316 -> 0 | J124: ='MODELO PPTO.'!J316 -> 0 | K124: =SUM(H124:J124) -> 0 | L124: =K124*G124*C124 -> 0 | N124: 0 | P124: 0 | Q124: =+N124*H124*C124 -> 0 | R124: =+N124*I124*C124 -> 0 | S124: =+N124*J124*C124 -> 0 | T124: =IF(E124="C",(G124/30*(IF($T$12="NATURALES_2,5",2.5,2.61))*K124),IF(E124="FD",(G124/30*(IF($T$12="NATURALES_2,5",2.5,2.61))*K124),0)) -> 0 | U124: =SUM(V124:X124) -> 0 | V124: =IF(E124="C",(G124/30*(IF($T$12="NATURALES_2,5",2.5,2.61))*H124*C124),IF(E124="FD",(G124/30*(IF($T$12="NATURALES_2,5",2.5,2.61))*H124*C124),0)) -> 0 | W124: =IF(E124="C",(G124/30*(IF($T$12="NATURALES_2,5",2.5,2.61))*I124*C124),IF(E124="FD",(G124/30*(IF($T$12="NATURALES_2,5",2.5,2.61))*I124*C124),0)) -> 0 | X124: =IF(E124="C",(G124/30*(IF($T$12="NATURALES_2,5",2.5,2.61))*J124*C124),IF(E124="FD",(G124/30*(IF($T$12="NATURALES_2,5",2.5,2.61))*J124*C124),0)) -> 0 | Y124: 0 | Z124: =IF(Y124=0,0,Y124*H124/K124) -> 0 | AA124: =IF(Y124=0,0,Y124*I124/K124) -> 0 | AB124: =IF(Y124=0,0,Y124*J124/K124) -> 0 | AC124: =IF(E124="C",(G124/30*K124/12*12*C124),0)+AG124 -> 0 | AD124: =IF(E124="C",(G124/30*H124/12*12*C124),0) -> 0 | AE124: =IF(E124="C",(G124/30*I124/12*12*C124),0) -> 0 | AF124: =IF(E124="C",(G124/30*J124/12*12*C124),0) -> 0 | AH124: =+L124+P124+U124+Y124+AC124 -> 0
B125: ='MODELO PPTO.'!B317 -> 0 | C125: ='MODELO PPTO.'!C317 -> 0 | D125: ='MODELO PPTO.'!D317 -> Para añadir nuevas partidas, insertadlas en ESTA fila y arrastrad formulas de la fila superior | E125: ='MODELO PPTO.'!G317 -> - | F125: =+'MODELO PPTO.'!E317 -> 0 | G125: ='MODELO PPTO.'!F317 -> 0 | H125: ='MODELO PPTO.'!H317 -> 0 | I125: ='MODELO PPTO.'!I317 -> 0 | J125: ='MODELO PPTO.'!J317 -> 0 | K125: 0 | L125: 0 | N125: 0 | P125: 0 | Q125: 0 | R125: 0 | S125: 0 | T125: =IF(E125="C",(G125/30*(IF($T$12="NATURALES_2,5",2.5,2.61))*K125),IF(E125="FD",(G125/30*(IF($T$12="NATURALES_2,5",2.5,2.61))*K125),0)) -> 0 | U125: 0 | V125: =IF(E125="C",(G125/30*(IF($T$12="NATURALES_2,5",2.5,2.61))*H125*C125),IF(E125="FD",(G125/30*(IF($T$12="NATURALES_2,5",2.5,2.61))*H125*C125),0)) -> 0 | W125: =IF(E125="C",(G125/30*(IF($T$12="NATURALES_2,5",2.5,2.61))*I125*C125),IF(E125="FD",(G125/30*(IF($T$12="NATURALES_2,5",2.5,2.61))*I125*C125),0)) -> 0 | X125: =IF(E125="C",(G125/30*(IF($T$12="NATURALES_2,5",2.5,2.61))*J125*C125),IF(E125="FD",(G125/30*(IF($T$12="NATURALES_2,5",2.5,2.61))*J125*C125),0)) -> 0 | Y125: 0 | Z125: 0 | AA125: 0 | AB125: 0 | AC125: 0 | AD125: 0 | AE125: 0 | AF125: 0 | AH125: 0
B126: ='MODELO PPTO.'!B319 -> 03.10.00.00. | C126: ='MODELO PPTO.'!C319 -> Nº | D126: ='MODELO PPTO.'!D319 -> Montadores. Editores. Grafistas. | L126: =SUM(L127:L138) -> 0 | M126: 0 | N126: 0 | O126: 0 | P126: 0 | Q126: 0 | R126: 0 | S126: 0 | T126: 0 | U126: 0 | V126: 0 | W126: 0 | X126: 0 | Y126: 0 | Z126: 0 | AA126: 0 | AB126: 0 | AC126: 0 | AD126: 0 | AE126: 0 | AF126: 0 | AG126: 0 | AH126: 0
B127: ='MODELO PPTO.'!B320 -> 03.10.01.00. | C127: ='MODELO PPTO.'!C320 -> 0 | D127: ='MODELO PPTO.'!D320 -> Editor/Montador | E127: ='MODELO PPTO.'!G320 -> - | F127: =+'MODELO PPTO.'!E320 -> 0 | G127: ='MODELO PPTO.'!F320 -> 0 | H127: ='MODELO PPTO.'!H320 -> 0 | I127: ='MODELO PPTO.'!I320 -> 0 | J127: ='MODELO PPTO.'!J320 -> 0 | K127: 0 | L127: 0 | N127: =IF(E127="C",IF(G127<$N$12,G127*$P$9,$N$12*$P$9),IF(E127="F",IF(G127<$N$12,G127*$O$9,$N$12*$O$9),IF(E127="FD",IF(G127<$N$12,G127*$O$9,$N$12*$O$9),IF(E127="M",0,IF(E127="CJ",IF(G127>$N$11,G127*$P$9,$N$11*$P$9),0))))) -> 0 | P127: =(N127+O127)*K127*C127 -> 0 | Q127: =+N127*H127*C127 -> 0 | R127: =+N127*I127*C127 -> 0 | S127: =+N127*J127*C127 -> 0 | T127: =IF(E127="C",(G127/30*(IF($T$12="NATURALES_2,5",2.5,2.61))*K127),IF(E127="FD",(G127/30*(IF($T$12="NATURALES_2,5",2.5,2.61))*K127),0)) -> 0 | U127: =SUM(V127:X127) -> 0 | V127: =IF(E127="C",(G127/30*(IF($T$12="NATURALES_2,5",2.5,2.61))*H127*C127),IF(E127="FD",(G127/30*(IF($T$12="NATURALES_2,5",2.5,2.61))*H127*C127),0)) -> 0 | W127: =IF(E127="C",(G127/30*(IF($T$12="NATURALES_2,5",2.5,2.61))*I127*C127),IF(E127="FD",(G127/30*(IF($T$12="NATURALES_2,5",2.5,2.61))*I127*C127),0)) -> 0 | X127: =IF(E127="C",(G127/30*(IF($T$12="NATURALES_2,5",2.5,2.61))*J127*C127),IF(E127="FD",(G127/30*(IF($T$12="NATURALES_2,5",2.5,2.61))*J127*C127),0)) -> 0 | Y127: =IF(E127="C",IF(T127<$N$12*(IF($T$12="NATURALES_2,5",2.5,2.61))*K127/30,T127*$P$9*C127,$N$12*(IF($T$12="NATURALES_2,5",2.5,2.61))*K127/30*$P$9*C127),IF(E127="FD",IF(T127<$N$12*(IF($T$12="NATURALES_2,5",2.5,2.61))*K127/30,T127*$O$9*C127,$N$12*(IF($T$12="NATURALES_2,5",2.5,2.61))*K127/30*$O$9*C127),0)) -> 0 | Z127: =IF(Y127=0,0,Y127*H127/K127) -> 0 | AA127: =IF(Y127=0,0,Y127*I127/K127) -> 0 | AB127: =IF(Y127=0,0,Y127*J127/K127) -> 0 | AC127: =IF(E127="C",(G127/30*K127/12*12*C127),0)+AG127 -> 0 | AD127: =IF(E127="C",(G127/30*H127/12*12*C127),0) -> 0 | AE127: =IF(E127="C",(G127/30*I127/12*12*C127),0) -> 0 | AF127: =IF(E127="C",(G127/30*J127/12*12*C127),0) -> 0 | AH127: =+L127+P127+U127+Y127+AC127 -> 0
B128: ='MODELO PPTO.'!B321 -> 03.10.01.01. | C128: ='MODELO PPTO.'!C321 -> 0 | D128: ='MODELO PPTO.'!D321 -> Editor/Montador | E128: ='MODELO PPTO.'!G321 -> - | F128: =+'MODELO PPTO.'!E321 -> 0 | G128: ='MODELO PPTO.'!F321 -> 0 | H128: ='MODELO PPTO.'!H321 -> 0 | I128: ='MODELO PPTO.'!I321 -> 0 | J128: ='MODELO PPTO.'!J321 -> 0 | K128: 0 | L128: 0 | N128: 0 | P128: =(N128+O128)*K128*C128 -> 0 | Q128: 0 | R128: 0 | S128: 0 | T128: 0 | U128: 0 | V128: 0 | W128: 0 | X128: 0 | Y128: 0 | Z128: 0 | AA128: 0 | AB128: 0 | AC128: =IF(E128="C",(G128/30*K128/12*12*C128),0)+AG128 -> 0 | AD128: =IF(E128="C",(G128/30*H128/12*12*C128),0) -> 0 | AE128: =IF(E128="C",(G128/30*I128/12*12*C128),0) -> 0 | AF128: =IF(E128="C",(G128/30*J128/12*12*C128),0) -> 0 | AH128: 0
B129: ='MODELO PPTO.'!B322 -> 03.10.02.00. | C129: ='MODELO PPTO.'!C322 -> 0 | D129: ='MODELO PPTO.'!D322 -> Ayudante montaje. | E129: ='MODELO PPTO.'!G322 -> - | F129: =+'MODELO PPTO.'!E322 -> 0 | G129: ='MODELO PPTO.'!F322 -> 0 | H129: ='MODELO PPTO.'!H322 -> 0 | I129: ='MODELO PPTO.'!I322 -> 0 | J129: ='MODELO PPTO.'!J322 -> 0 | K129: 0 | L129: 0 | N129: 0 | P129: 0 | Q129: 0 | R129: 0 | S129: 0 | T129: 0 | U129: 0 | V129: 0 | W129: 0 | X129: 0 | Y129: 0 | Z129: 0 | AA129: 0 | AB129: 0 | AC129: =IF(E129="C",(G129/30*K129/12*12*C129),0)+AG129 -> 0 | AD129: =IF(E129="C",(G129/30*H129/12*12*C129),0) -> 0 | AE129: =IF(E129="C",(G129/30*I129/12*12*C129),0) -> 0 | AF129: =IF(E129="C",(G129/30*J129/12*12*C129),0) -> 0 | AH129: 0
B130: ='MODELO PPTO.'!B323 -> 03.10.03.00. | C130: ='MODELO PPTO.'!C323 -> 0 | D130: ='MODELO PPTO.'!D323 -> Digitalizador. | E130: ='MODELO PPTO.'!G323 -> - | F130: =+'MODELO PPTO.'!E323 -> 0 | G130: ='MODELO PPTO.'!F323 -> 0 | H130: ='MODELO PPTO.'!H323 -> 0 | I130: ='MODELO PPTO.'!I323 -> 0 | J130: ='MODELO PPTO.'!J323 -> 0 | K130: 0 | L130: 0 | N130: 0 | P130: 0 | Q130: 0 | R130: 0 | S130: 0 | T130: 0 | U130: 0 | V130: 0 | W130: 0 | X130: 0 | Y130: 0 | Z130: 0 | AA130: 0 | AB130: 0 | AC130: 0 | AD130: 0 | AE130: 0 | AF130: 0 | AH130: 0
B131: ='MODELO PPTO.'!B324 -> 03.10.04.00. | C131: ='MODELO PPTO.'!C324 -> 0 | D131: ='MODELO PPTO.'!D324 -> Grafista. | E131: ='MODELO PPTO.'!G324 -> - | F131: =+'MODELO PPTO.'!E324 -> 0 | G131: ='MODELO PPTO.'!F324 -> 0 | H131: ='MODELO PPTO.'!H324 -> 0 | I131: ='MODELO PPTO.'!I324 -> 0 | J131: ='MODELO PPTO.'!J324 -> 0 | K131: 0 | L131: 0 | N131: 0 | P131: 0 | Q131: 0 | R131: 0 | S131: 0 | T131: 0 | U131: 0 | V131: 0 | W131: 0 | X131: 0 | Y131: 0 | Z131: 0 | AA131: 0 | AB131: 0 | AC131: 0 | AD131: 0 | AE131: 0 | AF131: 0 | AH131: 0
B132: ='MODELO PPTO.'!B325 -> 03.10.05.00. | C132: ='MODELO PPTO.'!C325 -> 0 | D132: ='MODELO PPTO.'!D325 -> Ayte de Grafismo | E132: ='MODELO PPTO.'!G325 -> - | F132: =+'MODELO PPTO.'!E325 -> 0 | G132: ='MODELO PPTO.'!F325 -> 0 | H132: ='MODELO PPTO.'!H325 -> 0 | I132: ='MODELO PPTO.'!I325 -> 0 | J132: ='MODELO PPTO.'!J325 -> 0 | K132: 0 | L132: 0 | N132: 0 | P132: 0 | Q132: 0 | R132: 0 | S132: 0 | T132: 0 | U132: 0 | V132: 0 | W132: 0 | X132: 0 | Y132: 0 | Z132: 0 | AA132: 0 | AB132: 0 | AC132: 0 | AD132: 0 | AE132: 0 | AF132: 0 | AH132: 0
B133: ='MODELO PPTO.'!B326 -> 03.10.06.00. | C133: ='MODELO PPTO.'!C326 -> 0 | D133: ='MODELO PPTO.'!D326 -> Tecnico en animación | E133: ='MODELO PPTO.'!G326 -> - | F133: =+'MODELO PPTO.'!E326 -> 0 | G133: ='MODELO PPTO.'!F326 -> 0 | H133: ='MODELO PPTO.'!H326 -> 0 | I133: ='MODELO PPTO.'!I326 -> 0 | J133: ='MODELO PPTO.'!J326 -> 0 | K133: 0 | L133: 0 | N133: 0 | P133: 0 | Q133: 0 | R133: 0 | S133: 0 | T133: 0 | U133: 0 | V133: 0 | W133: 0 | X133: 0 | Y133: 0 | Z133: 0 | AA133: 0 | AB133: 0 | AC133: 0 | AD133: 0 | AE133: 0 | AF133: 0 | AH133: 0
B134: ='MODELO PPTO.'!B327 -> 03.10.07.00. | C134: ='MODELO PPTO.'!C327 -> 0 | D134: ='MODELO PPTO.'!D327 -> Subtitulador. | E134: ='MODELO PPTO.'!G327 -> - | F134: =+'MODELO PPTO.'!E327 -> 0 | G134: ='MODELO PPTO.'!F327 -> 0 | H134: ='MODELO PPTO.'!H327 -> 0 | I134: ='MODELO PPTO.'!I327 -> 0 | J134: ='MODELO PPTO.'!J327 -> 0 | K134: 0 | L134: 0 | N134: 0 | P134: 0 | Q134: 0 | R134: 0 | S134: 0 | T134: 0 | U134: 0 | V134: 0 | W134: 0 | X134: 0 | Y134: 0 | Z134: 0 | AA134: 0 | AB134: 0 | AC134: 0 | AD134: 0 | AE134: 0 | AF134: 0 | AH134: 0
B135: ='MODELO PPTO.'!B328 -> 03.10.08.00. | C135: ='MODELO PPTO.'!C328 -> 0 | D135: ='MODELO PPTO.'!D328 -> Montador sonido | E135: ='MODELO PPTO.'!G328 -> - | F135: =+'MODELO PPTO.'!E328 -> 0 | G135: ='MODELO PPTO.'!F328 -> 0 | H135: ='MODELO PPTO.'!H328 -> 0 | I135: ='MODELO PPTO.'!I328 -> 0 | J135: ='MODELO PPTO.'!J328 -> 0 | K135: 0 | L135: 0 | N135: 0 | P135: 0 | Q135: 0 | R135: 0 | S135: 0 | T135: 0 | U135: 0 | V135: 0 | W135: 0 | X135: 0 | Y135: 0 | Z135: 0 | AA135: 0 | AB135: 0 | AC135: 0 | AD135: 0 | AE135: 0 | AF135: 0 | AH135: 0
B136: ='MODELO PPTO.'!B329 -> 03.10.09.00. | C136: ='MODELO PPTO.'!C329 -> 0 | D136: ='MODELO PPTO.'!D329 -> Ayte. Montaje de sonido | E136: ='MODELO PPTO.'!G329 -> - | F136: =+'MODELO PPTO.'!E329 -> 0 | G136: ='MODELO PPTO.'!F329 -> 0 | H136: ='MODELO PPTO.'!H329 -> 0 | I136: ='MODELO PPTO.'!I329 -> 0 | J136: ='MODELO PPTO.'!J329 -> 0 | K136: 0 | L136: 0 | N136: 0 | P136: 0 | Q136: 0 | R136: 0 | S136: 0 | T136: 0 | U136: 0 | V136: 0 | W136: 0 | X136: 0 | Y136: 0 | Z136: 0 | AA136: 0 | AB136: 0 | AC136: 0 | AD136: 0 | AE136: 0 | AF136: 0 | AH136: 0
B137: ='MODELO PPTO.'!B330 -> 03.10.10.00. | C137: ='MODELO PPTO.'!C330 -> 0 | D137: ='MODELO PPTO.'!D330 -> Otros efectos sonoros | E137: ='MODELO PPTO.'!G330 -> - | F137: =+'MODELO PPTO.'!E330 -> 0 | G137: ='MODELO PPTO.'!F330 -> 0 | H137: ='MODELO PPTO.'!H330 -> 0 | I137: ='MODELO PPTO.'!I330 -> 0 | J137: ='MODELO PPTO.'!J330 -> 0 | K137: =SUM(H137:J137) -> 0 | L137: =K137*G137*C137 -> 0 | N137: 0 | P137: 0 | Q137: =+N137*H137*C137 -> 0 | R137: =+N137*I137*C137 -> 0 | S137: =+N137*J137*C137 -> 0 | T137: =IF(E137="C",(G137/30*(IF($T$12="NATURALES_2,5",2.5,2.61))*K137),IF(E137="FD",(G137/30*(IF($T$12="NATURALES_2,5",2.5,2.61))*K137),0)) -> 0 | U137: =SUM(V137:X137) -> 0 | V137: =IF(E137="C",(G137/30*(IF($T$12="NATURALES_2,5",2.5,2.61))*H137*C137),IF(E137="FD",(G137/30*(IF($T$12="NATURALES_2,5",2.5,2.61))*H137*C137),0)) -> 0 | W137: =IF(E137="C",(G137/30*(IF($T$12="NATURALES_2,5",2.5,2.61))*I137*C137),IF(E137="FD",(G137/30*(IF($T$12="NATURALES_2,5",2.5,2.61))*I137*C137),0)) -> 0 | X137: =IF(E137="C",(G137/30*(IF($T$12="NATURALES_2,5",2.5,2.61))*J137*C137),IF(E137="FD",(G137/30*(IF($T$12="NATURALES_2,5",2.5,2.61))*J137*C137),0)) -> 0 | Y137: 0 | Z137: =IF(Y137=0,0,Y137*H137/K137) -> 0 | AA137: =IF(Y137=0,0,Y137*I137/K137) -> 0 | AB137: =IF(Y137=0,0,Y137*J137/K137) -> 0 | AC137: =IF(E137="C",(G137/30*K137/12*12*C137),0)+AG137 -> 0 | AD137: =IF(E137="C",(G137/30*H137/12*12*C137),0) -> 0 | AE137: =IF(E137="C",(G137/30*I137/12*12*C137),0) -> 0 | AF137: =IF(E137="C",(G137/30*J137/12*12*C137),0) -> 0 | AH137: =+L137+P137+U137+Y137+AC137 -> 0
B138: ='MODELO PPTO.'!B332 -> 0 | C138: ='MODELO PPTO.'!C332 -> 0 | D138: ='MODELO PPTO.'!D332 -> Para añadir nuevas partidas, insertadlas en ESTA fila y arrastrad formulas de la fila superior | E138: ='MODELO PPTO.'!G332 -> - | F138: =+'MODELO PPTO.'!E332 -> 0 | G138: ='MODELO PPTO.'!F332 -> 0 | H138: ='MODELO PPTO.'!H332 -> 0 | I138: ='MODELO PPTO.'!I332 -> 0 | J138: ='MODELO PPTO.'!J332 -> 0 | K138: 0 | L138: 0 | N138: 0 | P138: 0 | Q138: 0 | R138: 0 | S138: 0 | T138: =IF(E138="C",(G138/30*(IF($T$12="NATURALES_2,5",2.5,2.61))*K138),IF(E138="FD",(G138/30*(IF($T$12="NATURALES_2,5",2.5,2.61))*K138),0)) -> 0 | U138: 0 | V138: =IF(E138="C",(G138/30*(IF($T$12="NATURALES_2,5",2.5,2.61))*H138*C138),IF(E138="FD",(G138/30*(IF($T$12="NATURALES_2,5",2.5,2.61))*H138*C138),0)) -> 0 | W138: =IF(E138="C",(G138/30*(IF($T$12="NATURALES_2,5",2.5,2.61))*I138*C138),IF(E138="FD",(G138/30*(IF($T$12="NATURALES_2,5",2.5,2.61))*I138*C138),0)) -> 0 | X138: =IF(E138="C",(G138/30*(IF($T$12="NATURALES_2,5",2.5,2.61))*J138*C138),IF(E138="FD",(G138/30*(IF($T$12="NATURALES_2,5",2.5,2.61))*J138*C138),0)) -> 0 | Y138: 0 | Z138: 0 | AA138: 0 | AB138: 0 | AC138: 0 | AD138: 0 | AE138: 0 | AF138: 0 | AH138: 0
B139: ='MODELO PPTO.'!B334 -> 03.11.00.00. | C139: ='MODELO PPTO.'!C334 -> Nº | D139: ='MODELO PPTO.'!D334 -> Electricos. Maquinistas. | L139: =SUM(L140:L148) -> 0 | M139: 0 | N139: 0 | O139: 0 | P139: 0 | Q139: 0 | R139: 0 | S139: 0 | T139: 0 | U139: 0 | V139: 0 | W139: 0 | X139: 0 | Y139: 0 | Z139: 0 | AA139: 0 | AB139: 0 | AC139: 0 | AD139: 0 | AE139: 0 | AF139: 0 | AG139: 0 | AH139: 0
B140: ='MODELO PPTO.'!B335 -> 03.11.01.00. | C140: ='MODELO PPTO.'!C335 -> 0 | D140: ='MODELO PPTO.'!D335 -> Jefe electricos. | E140: ='MODELO PPTO.'!G335 -> - | F140: =+'MODELO PPTO.'!E335 -> 0 | G140: ='MODELO PPTO.'!F335 -> 0 | H140: ='MODELO PPTO.'!H335 -> 0 | I140: ='MODELO PPTO.'!I335 -> 0 | J140: ='MODELO PPTO.'!J335 -> 0 | K140: 0 | L140: 0 | N140: =IF(E140="C",IF(G140<$N$12,G140*$P$9,$N$12*$P$9),IF(E140="F",IF(G140<$N$12,G140*$O$9,$N$12*$O$9),IF(E140="FD",IF(G140<$N$12,G140*$O$9,$N$12*$O$9),IF(E140="M",0,IF(E140="CJ",IF(G140>$N$11,G140*$P$9,$N$11*$P$9),0))))) -> 0 | P140: =(N140+O140)*K140*C140 -> 0 | Q140: =+N140*H140*C140 -> 0 | R140: =+N140*I140*C140 -> 0 | S140: =+N140*J140*C140 -> 0 | T140: =IF(E140="C",(G140/30*(IF($T$12="NATURALES_2,5",2.5,2.61))*K140),IF(E140="FD",(G140/30*(IF($T$12="NATURALES_2,5",2.5,2.61))*K140),0)) -> 0 | U140: =SUM(V140:X140) -> 0 | V140: =IF(E140="C",(G140/30*(IF($T$12="NATURALES_2,5",2.5,2.61))*H140*C140),IF(E140="FD",(G140/30*(IF($T$12="NATURALES_2,5",2.5,2.61))*H140*C140),0)) -> 0 | W140: =IF(E140="C",(G140/30*(IF($T$12="NATURALES_2,5",2.5,2.61))*I140*C140),IF(E140="FD",(G140/30*(IF($T$12="NATURALES_2,5",2.5,2.61))*I140*C140),0)) -> 0 | X140: =IF(E140="C",(G140/30*(IF($T$12="NATURALES_2,5",2.5,2.61))*J140*C140),IF(E140="FD",(G140/30*(IF($T$12="NATURALES_2,5",2.5,2.61))*J140*C140),0)) -> 0 | Y140: =IF(E140="C",IF(T140<$N$12*(IF($T$12="NATURALES_2,5",2.5,2.61))*K140/30,T140*$P$9*C140,$N$12*(IF($T$12="NATURALES_2,5",2.5,2.61))*K140/30*$P$9*C140),IF(E140="FD",IF(T140<$N$12*(IF($T$12="NATURALES_2,5",2.5,2.61))*K140/30,T140*$O$9*C140,$N$12*(IF($T$12="NATURALES_2,5",2.5,2.61))*K140/30*$O$9*C140),0)) -> 0 | Z140: =IF(Y140=0,0,Y140*H140/K140) -> 0 | AA140: =IF(Y140=0,0,Y140*I140/K140) -> 0 | AB140: =IF(Y140=0,0,Y140*J140/K140) -> 0 | AC140: =IF(E140="C",(G140/30*K140/12*12*C140),0)+AG140 -> 0 | AD140: =IF(E140="C",(G140/30*H140/12*12*C140),0) -> 0 | AE140: =IF(E140="C",(G140/30*I140/12*12*C140),0) -> 0 | AF140: =IF(E140="C",(G140/30*J140/12*12*C140),0) -> 0 | AH140: =+L140+P140+U140+Y140+AC140 -> 0
B141: ='MODELO PPTO.'!B336 -> 03.11.02.00. | C141: ='MODELO PPTO.'!C336 -> 0 | D141: ='MODELO PPTO.'!D336 -> Electricos | E141: ='MODELO PPTO.'!G336 -> - | F141: =+'MODELO PPTO.'!E336 -> 0 | G141: ='MODELO PPTO.'!F336 -> 0 | H141: ='MODELO PPTO.'!H336 -> 0 | I141: ='MODELO PPTO.'!I336 -> 0 | J141: ='MODELO PPTO.'!J336 -> 0 | K141: 0 | L141: 0 | N141: 0 | P141: =(N141+O141)*K141*C141 -> 0 | Q141: 0 | R141: 0 | S141: 0 | T141: 0 | U141: 0 | V141: 0 | W141: 0 | X141: 0 | Y141: 0 | Z141: 0 | AA141: 0 | AB141: 0 | AC141: =IF(E141="C",(G141/30*K141/12*12*C141),0)+AG141 -> 0 | AD141: =IF(E141="C",(G141/30*H141/12*12*C141),0) -> 0 | AE141: =IF(E141="C",(G141/30*I141/12*12*C141),0) -> 0 | AF141: =IF(E141="C",(G141/30*J141/12*12*C141),0) -> 0 | AH141: 0
B142: ='MODELO PPTO.'!B337 -> 03.11.03.00. | C142: ='MODELO PPTO.'!C337 -> 0 | D142: ='MODELO PPTO.'!D337 -> Conductor grupo. | E142: ='MODELO PPTO.'!G337 -> - | F142: =+'MODELO PPTO.'!E337 -> 0 | G142: ='MODELO PPTO.'!F337 -> 0 | H142: ='MODELO PPTO.'!H337 -> 0 | I142: ='MODELO PPTO.'!I337 -> 0 | J142: ='MODELO PPTO.'!J337 -> 0 | K142: 0 | L142: 0 | N142: 0 | P142: 0 | Q142: 0 | R142: 0 | S142: 0 | T142: 0 | U142: 0 | V142: 0 | W142: 0 | X142: 0 | Y142: 0 | Z142: 0 | AA142: 0 | AB142: 0 | AC142: =IF(E142="C",(G142/30*K142/12*12*C142),0)+AG142 -> 0 | AD142: =IF(E142="C",(G142/30*H142/12*12*C142),0) -> 0 | AE142: =IF(E142="C",(G142/30*I142/12*12*C142),0) -> 0 | AF142: =IF(E142="C",(G142/30*J142/12*12*C142),0) -> 0 | AH142: 0
B143: ='MODELO PPTO.'!B338 -> 03.11.04.00. | C143: ='MODELO PPTO.'!C338 -> 0 | D143: ='MODELO PPTO.'!D338 -> Refuerzo electricos | E143: ='MODELO PPTO.'!G338 -> - | F143: =+'MODELO PPTO.'!E338 -> 0 | G143: ='MODELO PPTO.'!F338 -> 0 | H143: ='MODELO PPTO.'!H338 -> 0 | I143: ='MODELO PPTO.'!I338 -> 0 | J143: ='MODELO PPTO.'!J338 -> 0 | K143: 0 | L143: 0 | N143: 0 | P143: 0 | Q143: 0 | R143: 0 | S143: 0 | T143: 0 | U143: 0 | V143: 0 | W143: 0 | X143: 0 | Y143: 0 | Z143: 0 | AA143: 0 | AB143: 0 | AC143: 0 | AD143: 0 | AE143: 0 | AF143: 0 | AH143: 0
B144: ='MODELO PPTO.'!B339 -> 03.11.05.00. | C144: ='MODELO PPTO.'!C339 -> 0 | D144: ='MODELO PPTO.'!D339 -> Jefe maquinistas | E144: ='MODELO PPTO.'!G339 -> - | F144: =+'MODELO PPTO.'!E339 -> 0 | G144: ='MODELO PPTO.'!F339 -> 0 | H144: ='MODELO PPTO.'!H339 -> 0 | I144: ='MODELO PPTO.'!I339 -> 0 | J144: ='MODELO PPTO.'!J339 -> 0 | K144: 0 | L144: 0 | N144: 0 | P144: 0 | Q144: 0 | R144: 0 | S144: 0 | T144: 0 | U144: 0 | V144: 0 | W144: 0 | X144: 0 | Y144: 0 | Z144: 0 | AA144: 0 | AB144: 0 | AC144: 0 | AD144: 0 | AE144: 0 | AF144: 0 | AH144: 0
B145: ='MODELO PPTO.'!B340 -> 03.11.06.00. | C145: ='MODELO PPTO.'!C340 -> 0 | D145: ='MODELO PPTO.'!D340 -> Maquinista | E145: ='MODELO PPTO.'!G340 -> - | F145: =+'MODELO PPTO.'!E340 -> 0 | G145: ='MODELO PPTO.'!F340 -> 0 | H145: ='MODELO PPTO.'!H340 -> 0 | I145: ='MODELO PPTO.'!I340 -> 0 | J145: ='MODELO PPTO.'!J340 -> 0 | K145: 0 | L145: 0 | N145: 0 | P145: 0 | Q145: 0 | R145: 0 | S145: 0 | T145: 0 | U145: 0 | V145: 0 | W145: 0 | X145: 0 | Y145: 0 | Z145: 0 | AA145: 0 | AB145: 0 | AC145: 0 | AD145: 0 | AE145: 0 | AF145: 0 | AH145: 0
B146: ='MODELO PPTO.'!B341 -> 03.11.07.00. | C146: ='MODELO PPTO.'!C341 -> 0 | D146: ='MODELO PPTO.'!D341 -> Ayte. Maquinista | E146: ='MODELO PPTO.'!G341 -> - | F146: =+'MODELO PPTO.'!E341 -> 0 | G146: ='MODELO PPTO.'!F341 -> 0 | H146: ='MODELO PPTO.'!H341 -> 0 | I146: ='MODELO PPTO.'!I341 -> 0 | J146: ='MODELO PPTO.'!J341 -> 0 | K146: 0 | L146: 0 | N146: 0 | P146: 0 | Q146: 0 | R146: 0 | S146: 0 | T146: 0 | U146: 0 | V146: 0 | W146: 0 | X146: 0 | Y146: 0 | Z146: 0 | AA146: 0 | AB146: 0 | AC146: 0 | AD146: 0 | AE146: 0 | AF146: 0 | AH146: 0
B147: ='MODELO PPTO.'!B342 -> 03.11.08.00. | C147: ='MODELO PPTO.'!C342 -> 0 | D147: ='MODELO PPTO.'!D342 -> Operador grua cabeza caliente | E147: ='MODELO PPTO.'!G342 -> - | F147: =+'MODELO PPTO.'!E342 -> 0 | G147: ='MODELO PPTO.'!F342 -> 0 | H147: ='MODELO PPTO.'!H342 -> 0 | I147: ='MODELO PPTO.'!I342 -> 0 | J147: ='MODELO PPTO.'!J342 -> 0 | K147: =SUM(H147:J147) -> 0 | L147: =K147*G147*C147 -> 0 | N147: 0 | P147: 0 | Q147: =+N147*H147*C147 -> 0 | R147: =+N147*I147*C147 -> 0 | S147: =+N147*J147*C147 -> 0 | T147: =IF(E147="C",(G147/30*(IF($T$12="NATURALES_2,5",2.5,2.61))*K147),IF(E147="FD",(G147/30*(IF($T$12="NATURALES_2,5",2.5,2.61))*K147),0)) -> 0 | U147: =SUM(V147:X147) -> 0 | V147: =IF(E147="C",(G147/30*(IF($T$12="NATURALES_2,5",2.5,2.61))*H147*C147),IF(E147="FD",(G147/30*(IF($T$12="NATURALES_2,5",2.5,2.61))*H147*C147),0)) -> 0 | W147: =IF(E147="C",(G147/30*(IF($T$12="NATURALES_2,5",2.5,2.61))*I147*C147),IF(E147="FD",(G147/30*(IF($T$12="NATURALES_2,5",2.5,2.61))*I147*C147),0)) -> 0 | X147: =IF(E147="C",(G147/30*(IF($T$12="NATURALES_2,5",2.5,2.61))*J147*C147),IF(E147="FD",(G147/30*(IF($T$12="NATURALES_2,5",2.5,2.61))*J147*C147),0)) -> 0 | Y147: 0 | Z147: =IF(Y147=0,0,Y147*H147/K147) -> 0 | AA147: =IF(Y147=0,0,Y147*I147/K147) -> 0 | AB147: =IF(Y147=0,0,Y147*J147/K147) -> 0 | AC147: =IF(E147="C",(G147/30*K147/12*12*C147),0)+AG147 -> 0 | AD147: =IF(E147="C",(G147/30*H147/12*12*C147),0) -> 0 | AE147: =IF(E147="C",(G147/30*I147/12*12*C147),0) -> 0 | AF147: =IF(E147="C",(G147/30*J147/12*12*C147),0) -> 0 | AH147: =+L147+P147+U147+Y147+AC147 -> 0
B148: ='MODELO PPTO.'!B344 -> 0 | C148: ='MODELO PPTO.'!C344 -> 0 | D148: ='MODELO PPTO.'!D344 -> Para añadir nuevas partidas, insertadlas en ESTA fila y arrastrad formulas de la fila superior | E148: ='MODELO PPTO.'!G344 -> - | F148: =+'MODELO PPTO.'!E344 -> 0 | G148: ='MODELO PPTO.'!F344 -> 0 | H148: ='MODELO PPTO.'!H344 -> 0 | I148: ='MODELO PPTO.'!I344 -> 0 | J148: ='MODELO PPTO.'!J344 -> 0 | K148: 0 | L148: 0 | N148: 0 | P148: 0 | Q148: 0 | R148: 0 | S148: 0 | T148: =IF(E148="C",(G148/30*(IF($T$12="NATURALES_2,5",2.5,2.61))*K148),IF(E148="FD",(G148/30*(IF($T$12="NATURALES_2,5",2.5,2.61))*K148),0)) -> 0 | U148: 0 | V148: =IF(E148="C",(G148/30*(IF($T$12="NATURALES_2,5",2.5,2.61))*H148*C148),IF(E148="FD",(G148/30*(IF($T$12="NATURALES_2,5",2.5,2.61))*H148*C148),0)) -> 0 | W148: =IF(E148="C",(G148/30*(IF($T$12="NATURALES_2,5",2.5,2.61))*I148*C148),IF(E148="FD",(G148/30*(IF($T$12="NATURALES_2,5",2.5,2.61))*I148*C148),0)) -> 0 | X148: =IF(E148="C",(G148/30*(IF($T$12="NATURALES_2,5",2.5,2.61))*J148*C148),IF(E148="FD",(G148/30*(IF($T$12="NATURALES_2,5",2.5,2.61))*J148*C148),0)) -> 0 | Y148: 0 | Z148: 0 | AA148: 0 | AB148: 0 | AC148: 0 | AD148: 0 | AE148: 0 | AF148: 0 | AH148: 0
B149: ='MODELO PPTO.'!B346 -> 03.12.00.00. | C149: ='MODELO PPTO.'!C346 -> Nº | D149: ='MODELO PPTO.'!D346 -> Personal complementario y otros | L149: =SUM(L150:L167) -> 0 | M149: 0 | N149: 0 | O149: 0 | P149: 0 | Q149: 0 | R149: 0 | S149: 0 | T149: 0 | U149: 0 | V149: 0 | W149: 0 | X149: 0 | Y149: 0 | Z149: 0 | AA149: 0 | AB149: 0 | AC149: 0 | AD149: 0 | AE149: 0 | AF149: 0 | AG149: 0 | AH149: 0
B150: ='MODELO PPTO.'!B347 -> 03.12.01.00. | C150: ='MODELO PPTO.'!C347 -> 0 | D150: ='MODELO PPTO.'!D347 -> Seguridad, vigilantes (plato, campamentos rodaje y U.M.) | E150: ='MODELO PPTO.'!G347 -> - | F150: =+'MODELO PPTO.'!E347 -> 0 | G150: ='MODELO PPTO.'!F347 -> 0 | H150: ='MODELO PPTO.'!H347 -> 0 | I150: ='MODELO PPTO.'!I347 -> 0 | J150: ='MODELO PPTO.'!J347 -> 0 | K150: 0 | L150: 0 | N150: =IF(E150="C",IF(G150<$N$12,G150*$P$9,$N$12*$P$9),IF(E150="F",IF(G150<$N$12,G150*$O$9,$N$12*$O$9),IF(E150="FD",IF(G150<$N$12,G150*$O$9,$N$12*$O$9),IF(E150="M",0,IF(E150="CJ",IF(G150>$N$11,G150*$P$9,$N$11*$P$9),0))))) -> 0 | P150: =(N150+O150)*K150*C150 -> 0 | Q150: =+N150*H150*C150 -> 0 | R150: =+N150*I150*C150 -> 0 | S150: =+N150*J150*C150 -> 0 | T150: =IF(E150="C",(G150/30*(IF($T$12="NATURALES_2,5",2.5,2.61))*K150),IF(E150="FD",(G150/30*(IF($T$12="NATURALES_2,5",2.5,2.61))*K150),0)) -> 0 | U150: =SUM(V150:X150) -> 0 | V150: =IF(E150="C",(G150/30*(IF($T$12="NATURALES_2,5",2.5,2.61))*H150*C150),IF(E150="FD",(G150/30*(IF($T$12="NATURALES_2,5",2.5,2.61))*H150*C150),0)) -> 0 | W150: =IF(E150="C",(G150/30*(IF($T$12="NATURALES_2,5",2.5,2.61))*I150*C150),IF(E150="FD",(G150/30*(IF($T$12="NATURALES_2,5",2.5,2.61))*I150*C150),0)) -> 0 | X150: =IF(E150="C",(G150/30*(IF($T$12="NATURALES_2,5",2.5,2.61))*J150*C150),IF(E150="FD",(G150/30*(IF($T$12="NATURALES_2,5",2.5,2.61))*J150*C150),0)) -> 0 | Y150: =IF(E150="C",IF(T150<$N$12*(IF($T$12="NATURALES_2,5",2.5,2.61))*K150/30,T150*$P$9*C150,$N$12*(IF($T$12="NATURALES_2,5",2.5,2.61))*K150/30*$P$9*C150),IF(E150="FD",IF(T150<$N$12*(IF($T$12="NATURALES_2,5",2.5,2.61))*K150/30,T150*$O$9*C150,$N$12*(IF($T$12="NATURALES_2,5",2.5,2.61))*K150/30*$O$9*C150),0)) -> 0 | Z150: =IF(Y150=0,0,Y150*H150/K150) -> 0 | AA150: =IF(Y150=0,0,Y150*I150/K150) -> 0 | AB150: =IF(Y150=0,0,Y150*J150/K150) -> 0 | AC150: =IF(E150="C",(G150/30*K150/12*12*C150),0)+AG150 -> 0 | AD150: =IF(E150="C",(G150/30*H150/12*12*C150),0) -> 0 | AE150: =IF(E150="C",(G150/30*I150/12*12*C150),0) -> 0 | AF150: =IF(E150="C",(G150/30*J150/12*12*C150),0) -> 0 | AH150: =+L150+P150+U150+Y150+AC150 -> 0
B151: ='MODELO PPTO.'!B348 -> 03.12.02.00. | C151: ='MODELO PPTO.'!C348 -> 0 | D151: ='MODELO PPTO.'!D348 -> Limpieza decorados | E151: ='MODELO PPTO.'!G348 -> - | F151: =+'MODELO PPTO.'!E348 -> 0 | G151: ='MODELO PPTO.'!F348 -> 0 | H151: ='MODELO PPTO.'!H348 -> 0 | I151: ='MODELO PPTO.'!I348 -> 0 | J151: ='MODELO PPTO.'!J348 -> 0 | K151: 0 | L151: 0 | N151: 0 | P151: =(N151+O151)*K151*C151 -> 0 | Q151: 0 | R151: 0 | S151: 0 | T151: 0 | U151: 0 | V151: 0 | W151: 0 | X151: 0 | Y151: 0 | Z151: 0 | AA151: 0 | AB151: 0 | AC151: =IF(E151="C",(G151/30*K151/12*12*C151),0)+AG151 -> 0 | AD151: =IF(E151="C",(G151/30*H151/12*12*C151),0) -> 0 | AE151: =IF(E151="C",(G151/30*I151/12*12*C151),0) -> 0 | AF151: =IF(E151="C",(G151/30*J151/12*12*C151),0) -> 0 | AH151: 0
B152: ='MODELO PPTO.'!B349 -> 03.12.03.00. | C152: ='MODELO PPTO.'!C349 -> 0 | D152: ='MODELO PPTO.'!D349 -> Mozos/Peones asistencia rodaje | E152: ='MODELO PPTO.'!G349 -> - | F152: =+'MODELO PPTO.'!E349 -> 0 | G152: ='MODELO PPTO.'!F349 -> 0 | H152: ='MODELO PPTO.'!H349 -> 0 | I152: ='MODELO PPTO.'!I349 -> 0 | J152: ='MODELO PPTO.'!J349 -> 0 | K152: 0 | L152: 0 | N152: 0 | P152: 0 | Q152: 0 | R152: 0 | S152: 0 | T152: 0 | U152: 0 | V152: 0 | W152: 0 | X152: 0 | Y152: 0 | Z152: 0 | AA152: 0 | AB152: 0 | AC152: =IF(E152="C",(G152/30*K152/12*12*C152),0)+AG152 -> 0 | AD152: =IF(E152="C",(G152/30*H152/12*12*C152),0) -> 0 | AE152: =IF(E152="C",(G152/30*I152/12*12*C152),0) -> 0 | AF152: =IF(E152="C",(G152/30*J152/12*12*C152),0) -> 0 | AH152: 0
B153: ='MODELO PPTO.'!B350 -> 03.12.04.00. | C153: ='MODELO PPTO.'!C350 -> 0 | D153: ='MODELO PPTO.'!D350 -> Conductores | E153: ='MODELO PPTO.'!G350 -> - | F153: =+'MODELO PPTO.'!E350 -> 0 | G153: ='MODELO PPTO.'!F350 -> 0 | H153: ='MODELO PPTO.'!H350 -> 0 | I153: ='MODELO PPTO.'!I350 -> 0 | J153: ='MODELO PPTO.'!J350 -> 0 | K153: 0 | L153: 0 | N153: 0 | P153: 0 | Q153: 0 | R153: 0 | S153: 0 | T153: 0 | U153: 0 | V153: 0 | W153: 0 | X153: 0 | Y153: 0 | Z153: 0 | AA153: 0 | AB153: 0 | AC153: 0 | AD153: 0 | AE153: 0 | AF153: 0 | AH153: 0
B154: ='MODELO PPTO.'!B351 -> 03.12.05.00. | C154: ='MODELO PPTO.'!C351 -> 0 | D154: ='MODELO PPTO.'!D351 -> Encargado semovientes/ vehiculos. | E154: ='MODELO PPTO.'!G351 -> - | F154: =+'MODELO PPTO.'!E351 -> 0 | G154: ='MODELO PPTO.'!F351 -> 0 | H154: ='MODELO PPTO.'!H351 -> 0 | I154: ='MODELO PPTO.'!I351 -> 0 | J154: ='MODELO PPTO.'!J351 -> 0 | K154: 0 | L154: 0 | N154: 0 | P154: 0 | Q154: 0 | R154: 0 | S154: 0 | T154: 0 | U154: 0 | V154: 0 | W154: 0 | X154: 0 | Y154: 0 | Z154: 0 | AA154: 0 | AB154: 0 | AC154: 0 | AD154: 0 | AE154: 0 | AF154: 0 | AH154: 0
B155: ='MODELO PPTO.'!B352 -> 03.12.06.00. | C155: ='MODELO PPTO.'!C352 -> 0 | D155: ='MODELO PPTO.'!D352 -> Cuadreros/Ramaleros/Carreros/Cuidadores animales. | E155: ='MODELO PPTO.'!G352 -> - | F155: =+'MODELO PPTO.'!E352 -> 0 | G155: ='MODELO PPTO.'!F352 -> 0 | H155: ='MODELO PPTO.'!H352 -> 0 | I155: ='MODELO PPTO.'!I352 -> 0 | J155: ='MODELO PPTO.'!J352 -> 0 | K155: 0 | L155: 0 | N155: 0 | P155: 0 | Q155: 0 | R155: 0 | S155: 0 | T155: 0 | U155: 0 | V155: 0 | W155: 0 | X155: 0 | Y155: 0 | Z155: 0 | AA155: 0 | AB155: 0 | AC155: 0 | AD155: 0 | AE155: 0 | AF155: 0 | AH155: 0
B156: ='MODELO PPTO.'!B353 -> 03.12.07.00. | C156: ='MODELO PPTO.'!C353 -> 0 | D156: ='MODELO PPTO.'!D353 -> Adiestrador. | E156: ='MODELO PPTO.'!G353 -> - | F156: =+'MODELO PPTO.'!E353 -> 0 | G156: ='MODELO PPTO.'!F353 -> 0 | H156: ='MODELO PPTO.'!H353 -> 0 | I156: ='MODELO PPTO.'!I353 -> 0 | J156: ='MODELO PPTO.'!J353 -> 0 | K156: 0 | L156: 0 | N156: 0 | P156: 0 | Q156: 0 | R156: 0 | S156: 0 | T156: 0 | U156: 0 | V156: 0 | W156: 0 | X156: 0 | Y156: 0 | Z156: 0 | AA156: 0 | AB156: 0 | AC156: 0 | AD156: 0 | AE156: 0 | AF156: 0 | AH156: 0
B157: ='MODELO PPTO.'!B354 -> 03.12.08.00. | C157: ='MODELO PPTO.'!C354 -> 0 | D157: ='MODELO PPTO.'!D354 -> Veterinario | E157: ='MODELO PPTO.'!G354 -> - | F157: =+'MODELO PPTO.'!E354 -> 0 | G157: ='MODELO PPTO.'!F354 -> 0 | H157: ='MODELO PPTO.'!H354 -> 0 | I157: ='MODELO PPTO.'!I354 -> 0 | J157: ='MODELO PPTO.'!J354 -> 0 | K157: 0 | L157: 0 | N157: 0 | P157: 0 | Q157: 0 | R157: 0 | S157: 0 | T157: 0 | U157: 0 | V157: 0 | W157: 0 | X157: 0 | Y157: 0 | Z157: 0 | AA157: 0 | AB157: 0 | AC157: 0 | AD157: 0 | AE157: 0 | AF157: 0 | AH157: 0
B158: ='MODELO PPTO.'!B355 -> 03.12.09.00. | C158: ='MODELO PPTO.'!C355 -> 0 | D158: ='MODELO PPTO.'!D355 -> Coordinador pruebas concurso | E158: ='MODELO PPTO.'!G355 -> - | F158: =+'MODELO PPTO.'!E355 -> 0 | G158: ='MODELO PPTO.'!F355 -> 0 | H158: ='MODELO PPTO.'!H355 -> 0 | I158: ='MODELO PPTO.'!I355 -> 0 | J158: ='MODELO PPTO.'!J355 -> 0 | K158: 0 | L158: 0 | N158: 0 | P158: 0 | Q158: 0 | R158: 0 | S158: 0 | T158: 0 | U158: 0 | V158: 0 | W158: 0 | X158: 0 | Y158: 0 | Z158: 0 | AA158: 0 | AB158: 0 | AC158: 0 | AD158: 0 | AE158: 0 | AF158: 0 | AH158: 0
B159: ='MODELO PPTO.'!B356 -> 03.12.10.00. | C159: ='MODELO PPTO.'!C356 -> 0 | D159: ='MODELO PPTO.'!D356 -> Coordinador público/invitados | E159: ='MODELO PPTO.'!G356 -> - | F159: =+'MODELO PPTO.'!E356 -> 0 | G159: ='MODELO PPTO.'!F356 -> 0 | H159: ='MODELO PPTO.'!H356 -> 0 | I159: ='MODELO PPTO.'!I356 -> 0 | J159: ='MODELO PPTO.'!J356 -> 0 | K159: 0 | L159: 0 | N159: 0 | P159: 0 | Q159: 0 | R159: 0 | S159: 0 | T159: 0 | U159: 0 | V159: 0 | W159: 0 | X159: 0 | Y159: 0 | Z159: 0 | AA159: 0 | AB159: 0 | AC159: 0 | AD159: 0 | AE159: 0 | AF159: 0 | AH159: 0
B160: ='MODELO PPTO.'!B357 -> 03.12.11.00. | C160: ='MODELO PPTO.'!C357 -> 0 | D160: ='MODELO PPTO.'!D357 -> Coordinador Casting Concursantes | E160: ='MODELO PPTO.'!G357 -> - | F160: =+'MODELO PPTO.'!E357 -> 0 | G160: ='MODELO PPTO.'!F357 -> 0 | H160: ='MODELO PPTO.'!H357 -> 0 | I160: ='MODELO PPTO.'!I357 -> 0 | J160: ='MODELO PPTO.'!J357 -> 0 | K160: 0 | L160: 0 | N160: 0 | P160: 0 | Q160: 0 | R160: 0 | S160: 0 | T160: 0 | U160: 0 | V160: 0 | W160: 0 | X160: 0 | Y160: 0 | Z160: 0 | AA160: 0 | AB160: 0 | AC160: 0 | AD160: 0 | AE160: 0 | AF160: 0 | AH160: 0
B161: ='MODELO PPTO.'!B358 -> 03.12.12.00. | C161: ='MODELO PPTO.'!C358 -> 0 | D161: ='MODELO PPTO.'!D358 -> Azafatas invitados | E161: ='MODELO PPTO.'!G358 -> - | F161: =+'MODELO PPTO.'!E358 -> 0 | G161: ='MODELO PPTO.'!F358 -> 0 | H161: ='MODELO PPTO.'!H358 -> 0 | I161: ='MODELO PPTO.'!I358 -> 0 | J161: ='MODELO PPTO.'!J358 -> 0 | K161: 0 | L161: 0 | N161: 0 | P161: 0 | Q161: 0 | R161: 0 | S161: 0 | T161: 0 | U161: 0 | V161: 0 | W161: 0 | X161: 0 | Y161: 0 | Z161: 0 | AA161: 0 | AB161: 0 | AC161: 0 | AD161: 0 | AE161: 0 | AF161: 0 | AH161: 0
B162: ='MODELO PPTO.'!B359 -> 03.12.13.00. | C162: ='MODELO PPTO.'!C359 -> 0 | D162: ='MODELO PPTO.'!D359 -> Azafatas público/concursantes | E162: ='MODELO PPTO.'!G359 -> - | F162: =+'MODELO PPTO.'!E359 -> 0 | G162: ='MODELO PPTO.'!F359 -> 0 | H162: ='MODELO PPTO.'!H359 -> 0 | I162: ='MODELO PPTO.'!I359 -> 0 | J162: ='MODELO PPTO.'!J359 -> 0 | K162: 0 | L162: 0 | N162: 0 | P162: 0 | Q162: 0 | R162: 0 | S162: 0 | T162: 0 | U162: 0 | V162: 0 | W162: 0 | X162: 0 | Y162: 0 | Z162: 0 | AA162: 0 | AB162: 0 | AC162: 0 | AD162: 0 | AE162: 0 | AF162: 0 | AH162: 0
B163: ='MODELO PPTO.'!B360 -> 03.12.14.00. | C163: ='MODELO PPTO.'!C360 -> 0 | D163: ='MODELO PPTO.'!D360 -> Sanitario/Medicos | E163: ='MODELO PPTO.'!G360 -> - | F163: =+'MODELO PPTO.'!E360 -> 0 | G163: ='MODELO PPTO.'!F360 -> 0 | H163: ='MODELO PPTO.'!H360 -> 0 | I163: ='MODELO PPTO.'!I360 -> 0 | J163: ='MODELO PPTO.'!J360 -> 0 | K163: 0 | L163: 0 | N163: 0 | P163: 0 | Q163: 0 | R163: 0 | S163: 0 | T163: 0 | U163: 0 | V163: 0 | W163: 0 | X163: 0 | Y163: 0 | Z163: 0 | AA163: 0 | AB163: 0 | AC163: 0 | AD163: 0 | AE163: 0 | AF163: 0 | AH163: 0
B164: ='MODELO PPTO.'!B361 -> 03.12.15.00. | C164: ='MODELO PPTO.'!C361 -> 0 | D164: ='MODELO PPTO.'!D361 -> Ambientador musical | E164: ='MODELO PPTO.'!G361 -> - | F164: =+'MODELO PPTO.'!E361 -> 0 | G164: ='MODELO PPTO.'!F361 -> 0 | H164: ='MODELO PPTO.'!H361 -> 0 | I164: ='MODELO PPTO.'!I361 -> 0 | J164: ='MODELO PPTO.'!J361 -> 0 | K164: 0 | L164: 0 | N164: 0 | P164: 0 | Q164: 0 | R164: 0 | S164: 0 | T164: 0 | U164: 0 | V164: 0 | W164: 0 | X164: 0 | Y164: 0 | Z164: 0 | AA164: 0 | AB164: 0 | AC164: 0 | AD164: 0 | AE164: 0 | AF164: 0 | AH164: 0
B165: ='MODELO PPTO.'!B362 -> 03.12.16.00. | C165: ='MODELO PPTO.'!C362 -> 0 | D165: ='MODELO PPTO.'!D362 -> Lector partituras control realización | E165: ='MODELO PPTO.'!G362 -> - | F165: =+'MODELO PPTO.'!E362 -> 0 | G165: ='MODELO PPTO.'!F362 -> 0 | H165: ='MODELO PPTO.'!H362 -> 0 | I165: ='MODELO PPTO.'!I362 -> 0 | J165: ='MODELO PPTO.'!J362 -> 0 | K165: 0 | L165: 0 | N165: 0 | P165: 0 | Q165: 0 | R165: 0 | S165: 0 | T165: 0 | U165: 0 | V165: 0 | W165: 0 | X165: 0 | Y165: 0 | Z165: 0 | AA165: 0 | AB165: 0 | AC165: 0 | AD165: 0 | AE165: 0 | AF165: 0 | AH165: 0
B166: ='MODELO PPTO.'!B363 -> 03.12.17.00. | C166: ='MODELO PPTO.'!C363 -> 0 | D166: ='MODELO PPTO.'!D363 -> 0 | E166: ='MODELO PPTO.'!G363 -> - | F166: =+'MODELO PPTO.'!E363 -> 0 | G166: ='MODELO PPTO.'!F363 -> 0 | H166: ='MODELO PPTO.'!H363 -> 0 | I166: ='MODELO PPTO.'!I363 -> 0 | J166: ='MODELO PPTO.'!J363 -> 0 | K166: 0 | L166: 0 | N166: 0 | P166: 0 | Q166: 0 | R166: 0 | S166: 0 | T166: =IF(E166="C",(G166/30*(IF($T$12="NATURALES_2,5",2.5,2.61))*K166),IF(E166="FD",(G166/30*(IF($T$12="NATURALES_2,5",2.5,2.61))*K166),0)) -> 0 | U166: 0 | V166: =IF(E166="C",(G166/30*(IF($T$12="NATURALES_2,5",2.5,2.61))*H166*C166),IF(E166="FD",(G166/30*(IF($T$12="NATURALES_2,5",2.5,2.61))*H166*C166),0)) -> 0 | W166: =IF(E166="C",(G166/30*(IF($T$12="NATURALES_2,5",2.5,2.61))*I166*C166),IF(E166="FD",(G166/30*(IF($T$12="NATURALES_2,5",2.5,2.61))*I166*C166),0)) -> 0 | X166: =IF(E166="C",(G166/30*(IF($T$12="NATURALES_2,5",2.5,2.61))*J166*C166),IF(E166="FD",(G166/30*(IF($T$12="NATURALES_2,5",2.5,2.61))*J166*C166),0)) -> 0 | Y166: 0 | Z166: 0 | AA166: 0 | AB166: 0 | AC166: 0 | AD166: 0 | AE166: 0 | AF166: 0 | AH166: 0
B167: ='MODELO PPTO.'!B364 -> 0 | C167: ='MODELO PPTO.'!C364 -> 0 | D167: ='MODELO PPTO.'!D364 -> Para añadir nuevas partidas, insertadlas en ESTA fila y arrastrad formulas de la fila superior | E167: ='MODELO PPTO.'!G364 -> - | F167: =+'MODELO PPTO.'!E364 -> 0 | G167: ='MODELO PPTO.'!F364 -> 0 | H167: ='MODELO PPTO.'!H364 -> 0 | I167: ='MODELO PPTO.'!I364 -> 0 | J167: ='MODELO PPTO.'!J364 -> 0 | K167: 0 | L167: 0 | N167: 0 | P167: 0 | Q167: 0 | R167: 0 | S167: 0 | T167: =IF(E167="C",(G167/30*(IF($T$12="NATURALES_2,5",2.5,2.61))*K167),IF(E167="FD",(G167/30*(IF($T$12="NATURALES_2,5",2.5,2.61))*K167),0)) -> 0 | U167: 0 | V167: =IF(E167="C",(G167/30*(IF($T$12="NATURALES_2,5",2.5,2.61))*H167*C167),IF(E167="FD",(G167/30*(IF($T$12="NATURALES_2,5",2.5,2.61))*H167*C167),0)) -> 0 | W167: =IF(E167="C",(G167/30*(IF($T$12="NATURALES_2,5",2.5,2.61))*I167*C167),IF(E167="FD",(G167/30*(IF($T$12="NATURALES_2,5",2.5,2.61))*I167*C167),0)) -> 0 | X167: =IF(E167="C",(G167/30*(IF($T$12="NATURALES_2,5",2.5,2.61))*J167*C167),IF(E167="FD",(G167/30*(IF($T$12="NATURALES_2,5",2.5,2.61))*J167*C167),0)) -> 0 | Y167: 0 | Z167: 0 | AA167: 0 | AB167: 0 | AC167: 0 | AD167: 0 | AE167: 0 | AF167: 0 | AH167: 0
D168: TOTAL SALARIOS PERSONAL | L168: =+L149+L139+L126+L118+L112+L99+L92+L79+L60+L37+L16+L106 -> 0 | M168: 0 | N168: =+N149+N139+N126+N118+N112+N99+N92+N79+N60+N37+N16+N106 -> 0 | O168: 0 | P168: 0 | Q168: 0 | R168: 0 | S168: 0 | T168: 0 | U168: 0 | V168: 0 | W168: 0 | X168: =+X149+X139+X126+X118+X112+X99+X92+X79+X60+X37+X16+X106 -> 0 | Y168: 0 | Z168: 0 | AA168: 0 | AB168: 0 | AC168: 0 | AD168: 0 | AE168: 0 | AF168: 0 | AG168: 0 | AH168: 0
B169: ='MODELO PPTO.'!B366 -> 03.13.00.00. | D169: ='MODELO PPTO.'!D366 -> SEGURIDAD SOCIAL EQUIPO TÉCNICO | L169: =P168+Y168 -> 0
B170: ='MODELO PPTO.'!B367 -> 03.13.01.00. | D170: ='MODELO PPTO.'!D367 -> Importe Total Vacaciones de EQUIPO TÉCNICO | L170: =U168 -> 0
B171: ='MODELO PPTO.'!B368 -> 03.13.02.00 | D171: ='MODELO PPTO.'!D368 -> Importe Total Finiquitos EQUIPO TÉCNICO | L171: =AC168 -> 0
B172: 03.00.00.00 | D172: TOTAL EQUIPO TÉCNICO | L172: =AH168 -> 0
C174: Comprobación saldo con plantilla MODELO PPTO. | E174: =+L172-'MODELO PPTO.'!O199 -> 0 | F174: =IF(E174=0,"OK","CORREGIR ERRORES HOJA") -> OK
C176: NOTAS PARA LA CUMPLIMENTACIÓN DEL CÁLCULO DE COSTES EQUIPO TÉCNICO.
C177: 1. | D177: El cálculo de los gastos de seguridad social, se realiza de forma mensual, por lo que los valores incluidos en las columnas de Valor Medida y Unidad de Medida han de estar referedos a meses.
C178: 2. | D178: La columna T.C. (tipo de contrato) debe cumplimentarse con carácter obligatorio, en base a la siguiente tabla, para el cálculo de costes
C179: T.C. (1) | D179: F = FIJO, INDEFINIDO
D180: FD= FIJO DISCONTINUO | L180: =+L172-'MODELO PPTO.'!O199 -> 0
D181: C= CONTRATADO DURACIÓN DETERMINADA
D182: CJ= CONTRATO JORNADAS
D183: M=FACTURA
C184: 3. | D184: Las vacaciones se han calculado aplicando 2,5 días por periodo trabajado, y que el trabajador no haya disfrutado.
C185: 4. | D185: El finiquito se ha calculado tomando 12 días por año trabajado para los contratos celebrados a partir del 2015.
C186: 5. | D186: Si fuera necesario incluir alguna fila, habrá que arrastras las fórmulas y vincular con la hoja de presupuesto.

Sheet PlandTrabajo-Calendario
K1: PERIODO DE PRODUCCION
L2: PRE | M2: PRO | N2: POST
K3: INICIO | L3: =IF(NOT(ISBLANK('MODELO PPTO.'!P223)),'MODELO PPTO.'!P223,IF(NOT(ISBLANK('MODELO PPTO.'!P224)),'MODELO PPTO.'!P224,'MODELO PPTO.'!P225)) -> 00:00:00 | M3: =IF(NOT(ISBLANK('MODELO PPTO.'!V223)),'MODELO PPTO.'!V223,IF(NOT(ISBLANK('MODELO PPTO.'!V224)),'MODELO PPTO.'!V224,'MODELO PPTO.'!V225)) -> 00:00:00 | N3: =IF(NOT(ISBLANK('MODELO PPTO.'!AB223)),'MODELO PPTO.'!AB223,IF(NOT(ISBLANK('MODELO PPTO.'!AB224)),'MODELO PPTO.'!AB224,'MODELO PPTO.'!AB225)) -> 00:00:00
B4: ANEXO 2 | K4: FIN | L4: =IF(NOT(ISBLANK('MODELO PPTO.'!Q223)),'MODELO PPTO.'!Q223,IF(NOT(ISBLANK('MODELO PPTO.'!Q224)),'MODELO PPTO.'!Q224,'MODELO PPTO.'!Q225)) -> 00:00:00 | M4: =IF(NOT(ISBLANK('MODELO PPTO.'!W223)),'MODELO PPTO.'!W223,IF(NOT(ISBLANK('MODELO PPTO.'!W224)),'MODELO PPTO.'!W224,'MODELO PPTO.'!W225)) -> 00:00:00 | N4: =IF(NOT(ISBLANK('MODELO PPTO.'!AC223)),'MODELO PPTO.'!AC223,IF(NOT(ISBLANK('MODELO PPTO.'!AC224)),'MODELO PPTO.'!AC224,'MODELO PPTO.'!AC225)) -> 00:00:00 | O4: Total
B5: ='MODELO PPTO.'!H4 -> PROGRAMA: | K5: Días | L5: =IF(AND(ISBLANK(L4),ISBLANK(L3)),0,_xlfn.DAYS(L4,L3)+1) -> 1 | M5: =IF(AND(ISBLANK(M4),ISBLANK(M3)),0,_xlfn.DAYS(M4,M3)+1) -> 1 | N5: =IF(AND(ISBLANK(N4),ISBLANK(N3)),0,_xlfn.DAYS(N4,N3)+1) -> 1 | O5: =SUM(L5:N5) -> 3
B6: PLAN DE TRABAJO | K6: Semanas | L6: =L5/7 -> 0.1428571429 | M6: =M5/7 -> 0.1428571429 | N6: =N5/7 -> 0.1428571429 | O6: =SUM(L6:N6) -> 0.4285714286
C7: LUNES | D7: MARTES | E7: MIERCOLES | F7: JUEVES | G7: VIERNES | H7: SABADO | I7: DOMINGO | K7: Meses | L7: =IF(AND(ISBLANK(L3),ISBLANK(L4)),0,L6/(52/12)) -> 0.03296703297 | M7: =IF(AND(ISBLANK(M3),ISBLANK(M4)),0,M6/(52/12)) -> 0.03296703297 | N7: =IF(AND(ISBLANK(N3),ISBLANK(N4)),0,N6/(52/12)) -> 0.03296703297 | O7: =SUM(L7:N7) -> 0.0989010989
B8: 2024-01-01 | C8: 2024-01-01 | D8: =C8+1 -> 2024-01-02 | E8: =D8+1 -> 2024-01-03 | F8: 2024-01-04 | G8: 2024-01-05 | H8: 2024-01-06 | I8: 2024-01-07
B9: Sem 1 | C9: Año Nuevo | H9: Reyes Magos
B13: Sem 2 | C13: =I8+1 -> 2024-01-08 | D13: =C13+1 -> 2024-01-09 | E13: =D13+1 -> 2024-01-10 | F13: 2024-01-11 | G13: 2024-01-12 | H13: 2024-01-13 | I13: 2024-01-14
B18: Sem 3 | C18: =I13+1 -> 2024-01-15 | D18: =C18+1 -> 2024-01-16 | E18: =D18+1 -> 2024-01-17 | F18: 2024-01-18 | G18: 2024-01-19 | H18: 2024-01-20 | I18: 2024-01-21
B23: Sem 4 | C23: =I18+1 -> 2024-01-22 | D23: =C23+1 -> 2024-01-23 | E23: =D23+1 -> 2024-01-24 | F23: 2024-01-25 | G23: 2024-01-26 | H23: 2024-01-27 | I23: 2024-01-28
B28: Sem 5 | C28: =I23+1 -> 2024-01-29 | D28: =C28+1 -> 2024-01-30 | E28: =D28+1 -> 2024-01-31 | F28: 2024-02-01 | G28: 2024-02-02 | H28: 2024-02-03 | I28: 2024-02-04
B33: 2024-02-01 | C33: =I28+1 -> 2024-02-05 | D33: =C33+1 -> 2024-02-06 | E33: =D33+1 -> 2024-02-07 | F33: 2024-02-08 | G33: 2024-02-09 | H33: 2024-02-10 | I33: 2024-02-11
B34: Sem 6
B38: Sem 7 | C38: =I33+1 -> 2024-02-12 | D38: =C38+1 -> 2024-02-13 | E38: =D38+1 -> 2024-02-14 | F38: 2024-02-15 | G38: 2024-02-16 | H38: 2024-02-17 | I38: 2024-02-18
B43: Sem 8 | C43: =I38+1 -> 2024-02-19 | D43: =C43+1 -> 2024-02-20 | E43: =D43+1 -> 2024-02-21 | F43: 2024-02-22 | G43: 2024-02-23 | H43: 2024-02-24 | I43: 2024-02-25
B48: Sem 9 | C48: =I43+1 -> 2024-02-26 | D48: =C48+1 -> 2024-02-27 | E48: =D48+1 -> 2024-02-28 | F48: 2024-02-29 | G48: 2024-03-01 | H48: 2024-03-02 | I48: 2024-03-03
B53: 2024-03-01 | C53: =I48+1 -> 2024-03-04 | D53: =C53+1 -> 2024-03-05 | E53: =D53+1 -> 2024-03-06 | F53: 2024-03-07 | G53: 2024-03-08 | H53: 2024-03-09 | I53: 2024-03-10
B54: Sem 10
B58: Sem 11 | C58: =I53+1 -> 2024-03-11 | D58: =C58+1 -> 2024-03-12 | E58: =D58+1 -> 2024-03-13 | F58: 2024-03-14 | G58: 2024-03-15 | H58: 2024-03-16 | I58: 2024-03-17
B63: Sem 12 | C63: =I58+1 -> 2024-03-18 | D63: =C63+1 -> 2024-03-19 | E63: =D63+1 -> 2024-03-20 | F63: 2024-03-21 | G63: 2024-03-22 | H63: 2024-03-23 | I63: 2024-03-24
B68: Sem 13 | C68: =I63+1 -> 2024-03-25 | D68: =C68+1 -> 2024-03-26 | E68: =D68+1 -> 2024-03-27 | F68: 2024-03-28 | G68: 2024-03-29 | H68: 2024-03-30 | I68: 2024-03-31
F69: Semana Santa | G69: Viernes santo
B73: 2024-04-01 | C73: =I68+1 -> 2024-04-01 | D73: =C73+1 -> 2024-04-02 | E73: =D73+1 -> 2024-04-03 | F73: 2024-04-04 | G73: 2024-04-05 | H73: 2024-04-06 | I73: 2024-04-07
B74: Sem 14
B78: Sem 15 | C78: =I73+1 -> 2024-04-08 | D78: =C78+1 -> 2024-04-09 | E78: =D78+1 -> 2024-04-10 | F78: 2024-04-11 | G78: 2024-04-12 | H78: 2024-04-13 | I78: 2024-04-14
B83: Sem 16 | C83: =I78+1 -> 2024-04-15 | D83: =C83+1 -> 2024-04-16 | E83: =D83+1 -> 2024-04-17 | F83: 2024-04-18 | G83: 2024-04-19 | H83: 2024-04-20 | I83: 2024-04-21
B88: Sem 17 | C88: =I83+1 -> 2024-04-22 | D88: =C88+1 -> 2024-04-23 | E88: =D88+1 -> 2024-04-24 | F88: 2024-04-25 | G88: 2024-04-26 | H88: 2024-04-27 | I88: 2024-04-28
B93: 2024-05-01 | C93: =I88+1 -> 2024-04-29 | D93: =C93+1 -> 2024-04-30 | E93: =D93+1 -> 2024-05-01 | F93: 2024-05-02 | G93: 2024-05-03 | H93: 2024-05-04 | I93: 2024-05-05
B94: Sem 18
B98: Sem 19 | C98: =I93+1 -> 2024-05-06 | D98: =C98+1 -> 2024-05-07 | E98: =D98+1 -> 2024-05-08 | F98: 2024-05-09 | G98: 2024-05-10 | H98: 2024-05-11 | I98: 2024-05-12
B103: Sem 20 | C103: =I98+1 -> 2024-05-13 | D103: =C103+1 -> 2024-05-14 | E103: =D103+1 -> 2024-05-15 | F103: 2024-05-16 | G103: 2024-05-17 | H103: 2024-05-18 | I103: 2024-05-19
B108: Sem 21 | C108: =I103+1 -> 2024-05-20 | D108: =C108+1 -> 2024-05-21 | E108: =D108+1 -> 2024-05-22 | F108: 2024-05-23 | G108: 2024-05-24 | H108: 2024-05-25 | I108: 2024-05-26
B113: Sem 22 | C113: =I108+1 -> 2024-05-27 | D113: =C113+1 -> 2024-05-28 | E113: =D113+1 -> 2024-05-29 | F113: 2024-05-30 | G113: 2024-05-31 | H113: 2024-06-01 | I113: 2024-06-02
B118: 2024-06-01 | C118: =I113+1 -> 2024-06-03 | D118: =C118+1 -> 2024-06-04 | E118: =D118+1 -> 2024-06-05 | F118: 2024-06-06 | G118: 2024-06-07 | H118: 2024-06-08 | I118: 2024-06-09
B119: Sem 23
B123: Sem 24 | C123: =I118+1 -> 2024-06-10 | D123: =C123+1 -> 2024-06-11 | E123: =D123+1 -> 2024-06-12 | F123: 2024-06-13 | G123: 2024-06-14 | H123: 2024-06-15 | I123: 2024-06-16
B128: Sem 25 | C128: =I123+1 -> 2024-06-17 | D128: =C128+1 -> 2024-06-18 | E128: =D128+1 -> 2024-06-19 | F128: 2024-06-20 | G128: 2024-06-21 | H128: 2024-06-22 | I128: 2024-06-23
B133: Sem 26 | C133: =I128+1 -> 2024-06-24 | D133: =C133+1 -> 2024-06-25 | E133: =D133+1 -> 2024-06-26 | F133: 2024-06-27 | G133: 2024-06-28 | H133: 2024-06-29 | I133: 2024-06-30
B138: 2024-07-01 | C138: =I133+1 -> 2024-07-01 | D138: =C138+1 -> 2024-07-02 | E138: =D138+1 -> 2024-07-03 | F138: 2024-07-04 | G138: 2024-07-05 | H138: 2024-07-06 | I138: 2024-07-07
B139: Sem 27
B143: Sem 28 | C143: =I138+1 -> 2024-07-08 | D143: =C143+1 -> 2024-07-09 | E143: =D143+1 -> 2024-07-10 | F143: 2024-07-11 | G143: 2024-07-12 | H143: 2024-07-13 | I143: 2024-07-14
B148: Sem 29 | C148: =I143+1 -> 2024-07-15 | D148: =C148+1 -> 2024-07-16 | E148: =D148+1 -> 2024-07-17 | F148: 2024-07-18 | G148: 2024-07-19 | H148: 2024-07-20 | I148: 2024-07-21
B153: Sem 30 | C153: =I148+1 -> 2024-07-22 | D153: =C153+1 -> 2024-07-23 | E153: =D153+1 -> 2024-07-24 | F153: 2024-07-25 | G153: 2024-07-26 | H153: 2024-07-27 | I153: 2024-07-28
B158: Sem 31 | C158: =I153+1 -> 2024-07-29 | D158: =C158+1 -> 2024-07-30 | E158: =D158+1 -> 2024-07-31 | F158: 2024-08-01 | G158: 2024-08-02 | H158: 2024-08-03 | I158: 2024-08-04
B163: 2024-08-01 | C163: =I158+1 -> 2024-08-05 | D163: =C163+1 -> 2024-08-06 | E163: =D163+1 -> 2024-08-07 | F163: 2024-08-08 | G163: 2024-08-09 | H163: 2024-08-10 | I163: 2024-08-11
B164: Sem 32
B168: Sem 33 | C168: =I163+1 -> 2024-08-12 | D168: =C168+1 -> 2024-08-13 | E168: =D168+1 -> 2024-08-14 | F168: 2024-08-15 | G168: 2024-08-16 | H168: 2024-08-17 | I168: 2024-08-18
F169: Festivo
B173: Sem 34 | C173: =I168+1 -> 2024-08-19 | D173: =C173+1 -> 2024-08-20 | E173: =D173+1 -> 2024-08-21 | F173: 2024-08-22 | G173: 2024-08-23 | H173: 2024-08-24 | I173: 2024-08-25
B178: Sem 35 | C178: =I173+1 -> 2024-08-26 | D178: =C178+1 -> 2024-08-27 | E178: =D178+1 -> 2024-08-28 | F178: 2024-08-29 | G178: 2024-08-30 | H178: 2024-08-31 | I178: 2024-09-01
B183: 2024-09-01 | C183: =I178+1 -> 2024-09-02 | D183: =C183+1 -> 2024-09-03 | E183: =D183+1 -> 2024-09-04 | F183: 2024-09-05 | G183: 2024-09-06 | H183: 2024-09-07 | I183: 2024-09-08
B184: Sem 36
B188: Sem 37 | C188: =I183+1 -> 2024-09-09 | D188: =C188+1 -> 2024-09-10 | E188: =D188+1 -> 2024-09-11 | F188: 2024-09-12 | G188: 2024-09-13 | H188: 2024-09-14 | I188: 2024-09-15
B193: Sem 38 | C193: =I188+1 -> 2024-09-16 | D193: =C193+1 -> 2024-09-17 | E193: =D193+1 -> 2024-09-18 | F193: 2024-09-19 | G193: 2024-09-20 | H193: 2024-09-21 | I193: 2024-09-22
B198: Sem 39 | C198: =I193+1 -> 2024-09-23 | D198: =C198+1 -> 2024-09-24 | E198: =D198+1 -> 2024-09-25 | F198: 2024-09-26 | G198: 2024-09-27 | H198: 2024-09-28 | I198: 2024-09-29
B203: 2024-10-01 | C203: =I198+1 -> 2024-09-30 | D203: =C203+1 -> 2024-10-01 | E203: =D203+1 -> 2024-10-02 | F203: 2024-10-03 | G203: 2024-10-04 | H203: 2024-10-05 | I203: 2024-10-06
B204: Sem 38
B208: Sem 41 | C208: =I203+1 -> 2024-10-07 | D208: =C208+1 -> 2024-10-08 | E208: =D208+1 -> 2024-10-09 | F208: 2024-10-10 | G208: 2024-10-11 | H208: 2024-10-12 | I208: 2024-10-13
H209: Festivo
B213: Sem 42 | C213: =I208+1 -> 2024-10-14 | D213: =C213+1 -> 2024-10-15 | E213: =D213+1 -> 2024-10-16 | F213: 2024-10-17 | G213: 2024-10-18 | H213: 2024-10-19 | I213: 2024-10-20
B218: Sem 43 | C218: =I213+1 -> 2024-10-21 | D218: =C218+1 -> 2024-10-22 | E218: =D218+1 -> 2024-10-23 | F218: 2024-10-24 | G218: 2024-10-25 | H218: 2024-10-26 | I218: 2024-10-27
B223: Sem 44 | C223: =I218+1 -> 2024-10-28 | D223: =C223+1 -> 2024-10-29 | E223: =D223+1 -> 2024-10-30 | F223: 2024-10-31 | G223: 2024-11-01 | H223: 2024-11-02 | I223: 2024-11-03
G224: Festivo
B228: 2024-11-01 | C228: =I223+1 -> 2024-11-04 | D228: =C228+1 -> 2024-11-05 | E228: =D228+1 -> 2024-11-06 | F228: 2024-11-07 | G228: 2024-11-08 | H228: 2024-11-09 | I228: 2024-11-10
B229: Sem 45
B233: Sem 46 | C233: =I228+1 -> 2024-11-11 | D233: =C233+1 -> 2024-11-12 | E233: =D233+1 -> 2024-11-13 | F233: 2024-11-14 | G233: 2024-11-15 | H233: 2024-11-16 | I233: 2024-11-17
B238: Sem 47 | C238: =I233+1 -> 2024-11-18 | D238: =C238+1 -> 2024-11-19 | E238: =D238+1 -> 2024-11-20 | F238: 2024-11-21 | G238: 2024-11-22 | H238: 2024-11-23 | I238: 2024-11-24
B243: Sem 48 | C243: =I238+1 -> 2024-11-25 | D243: =C243+1 -> 2024-11-26 | E243: =D243+1 -> 2024-11-27 | F243: 2024-11-28 | G243: 2024-11-29 | H243: 2024-11-30 | I243: 2024-12-01
B248: 2024-12-01 | C248: =I243+1 -> 2024-12-02 | D248: =C248+1 -> 2024-12-03 | E248: =D248+1 -> 2024-12-04 | F248: 2024-12-05 | G248: 2024-12-06 | H248: 2024-12-07 | I248: 2024-12-08
B249: Sem 49 | G249: Festivo | I249: Festivo
B253: Sem 50 | C253: =I248+1 -> 2024-12-09 | D253: =C253+1 -> 2024-12-10 | E253: =D253+1 -> 2024-12-11 | F253: 2024-12-12 | G253: 2024-12-13 | H253: 2024-12-14 | I253: 2024-12-15
C254: Festivo por 8 diciembre
B258: Sem 51 | C258: =I253+1 -> 2024-12-16 | D258: =C258+1 -> 2024-12-17 | E258: =D258+1 -> 2024-12-18 | F258: 2024-12-19 | G258: 2024-12-20 | H258: 2024-12-21 | I258: 2024-12-22
B263: Sem 52 | C263: =I258+1 -> 2024-12-23 | D263: =C263+1 -> 2024-12-24 | E263: =D263+1 -> 2024-12-25 | F263: 2024-12-26 | G263: 2024-12-27 | H263: 2024-12-28 | I263: 2024-12-29
D264: Nochebuena | E264: Navidad
B268: 2025-01-01 | C268: =I263+1 -> 2024-12-30 | D268: =C268+1 -> 2024-12-31 | E268: =D268+1 -> 2025-01-01 | F268: 2025-01-02 | G268: 2025-01-03 | H268: 2025-01-04 | I268: 2025-01-05
B269: Sem 1 | D269: Nochevieja | E269: Año Nuevo
B273: Sem 2 | C273: =I268+1 -> 2025-01-06 | D273: =C273+1 -> 2025-01-07 | E273: =D273+1 -> 2025-01-08 | F273: 2025-01-09 | G273: 2025-01-10 | H273: 2025-01-11 | I273: 2025-01-12
C274: Reyes
B278: Sem 3 | C278: =I273+1 -> 2025-01-13 | D278: =C278+1 -> 2025-01-14 | E278: =D278+1 -> 2025-01-15 | F278: 2025-01-16 | G278: 2025-01-17 | H278: 2025-01-18 | I278: 2025-01-19
B283: Sem 4 | C283: =I278+1 -> 2025-01-20 | D283: =C283+1 -> 2025-01-21 | E283: =D283+1 -> 2025-01-22 | F283: 2025-01-23 | G283: 2025-01-24 | H283: 2025-01-25 | I283: 2025-01-26
B288: Sem 5 | C288: =I283+1 -> 2025-01-27 | D288: =C288+1 -> 2025-01-28 | E288: =D288+1 -> 2025-01-29 | F288: 2025-01-30 | G288: 2025-01-31 | H288: 2025-02-01 | I288: 2025-02-02
B293: 2025-02-01 | C293: =I288+1 -> 2025-02-03 | D293: =C293+1 -> 2025-02-04 | E293: =D293+1 -> 2025-02-05 | F293: 2025-02-06 | G293: 2025-02-07 | H293: 2025-02-08 | I293: 2025-02-09
B294: Sem 6
B298: Sem 7 | C298: =I293+1 -> 2025-02-10 | D298: =C298+1 -> 2025-02-11 | E298: =D298+1 -> 2025-02-12 | F298: 2025-02-13 | G298: 2025-02-14 | H298: 2025-02-15 | I298: 2025-02-16
B303: Sem 8 | C303: =I298+1 -> 2025-02-17 | D303: =C303+1 -> 2025-02-18 | E303: =D303+1 -> 2025-02-19 | F303: 2025-02-20 | G303: 2025-02-21 | H303: 2025-02-22 | I303: 2025-02-23
B308: Sem 9 | C308: =I303+1 -> 2025-02-24 | D308: =C308+1 -> 2025-02-25 | E308: =D308+1 -> 2025-02-26 | F308: 2025-02-27 | G308: 2025-02-28 | H308: 2025-03-01 | I308: 2025-03-02
B313: 2025-03-01 | C313: =I308+1 -> 2025-03-03 | D313: =C313+1 -> 2025-03-04 | E313: =D313+1 -> 2025-03-05 | F313: 2025-03-06 | G313: 2025-03-07 | H313: 2025-03-08 | I313: 2025-03-09
B314: Sem 10
B318: Sem 11 | C318: =I313+1 -> 2025-03-10 | D318: =C318+1 -> 2025-03-11 | E318: =D318+1 -> 2025-03-12 | F318: 2025-03-13 | G318: 2025-03-14 | H318: 2025-03-15 | I318: 2025-03-16
B323: Sem 12 | C323: =I318+1 -> 2025-03-17 | D323: =C323+1 -> 2025-03-18 | E323: =D323+1 -> 2025-03-19 | F323: 2025-03-20 | G323: 2025-03-21 | H323: 2025-03-22 | I323: 2025-03-23
B328: Sem 13 | C328: =I323+1 -> 2025-03-24 | D328: =C328+1 -> 2025-03-25 | E328: =D328+1 -> 2025-03-26 | F328: 2025-03-27 | G328: 2025-03-28 | H328: 2025-03-29 | I328: 2025-03-30
B333: 2025-04-01 | C333: =I328+1 -> 2025-03-31 | D333: =C333+1 -> 2025-04-01 | E333: =D333+1 -> 2025-04-02 | F333: 2025-04-03 | G333: 2025-04-04 | H333: 2025-04-05 | I333: 2025-04-06
B334: Sem 14
B338: Sem 15 | C338: =I333+1 -> 2025-04-07 | D338: =C338+1 -> 2025-04-08 | E338: =D338+1 -> 2025-04-09 | F338: 2025-04-10 | G338: 2025-04-11 | H338: 2025-04-12 | I338: 2025-04-13
B343: Sem 16 | C343: =I338+1 -> 2025-04-14 | D343: =C343+1 -> 2025-04-15 | E343: =D343+1 -> 2025-04-16 | F343: 2025-04-17 | G343: 2025-04-18 | H343: 2025-04-19 | I343: 2025-04-20
F344: Semana Santa | G344: Viernes santo
B348: Sem 17 | C348: =I343+1 -> 2025-04-21 | D348: =C348+1 -> 2025-04-22 | E348: =D348+1 -> 2025-04-23 | F348: 2025-04-24 | G348: 2025-04-25 | H348: 2025-04-26 | I348: 2025-04-27
B353: Sem 18 | C353: =I348+1 -> 2025-04-28 | D353: =C353+1 -> 2025-04-29 | E353: =D353+1 -> 2025-04-30 | F353: 2025-05-01 | G353: 2025-05-02 | H353: 2025-05-03 | I353: 2025-05-04
F354: Festivo | G354: Comunidad Madrid
B358: 2025-05-01 | C358: =I353+1 -> 2025-05-05 | D358: =C358+1 -> 2025-05-06 | E358: =D358+1 -> 2025-05-07 | F358: 2025-05-08 | G358: 2025-05-09 | H358: 2025-05-10 | I358: 2025-05-11
B359: Sem 19
B363: Sem 20 | C363: =I358+1 -> 2025-05-12 | D363: =C363+1 -> 2025-05-13 | E363: =D363+1 -> 2025-05-14 | F363: 2025-05-15 | G363: 2025-05-16 | H363: 2025-05-17 | I363: 2025-05-18
B368: Sem 21 | C368: =I363+1 -> 2025-05-19 | D368: =C368+1 -> 2025-05-20 | E368: =D368+1 -> 2025-05-21 | F368: 2025-05-22 | G368: 2025-05-23 | H368: 2025-05-24 | I368: 2025-05-25
B373: Sem 22 | C373: =I368+1 -> 2025-05-26 | D373: =C373+1 -> 2025-05-27 | E373: =D373+1 -> 2025-05-28 | F373: 2025-05-29 | G373: 2025-05-30 | H373: 2025-05-31 | I373: 2025-06-01
B378: 2025-06-01 | C378: =I373+1 -> 2025-06-02 | D378: =C378+1 -> 2025-06-03 | E378: =D378+1 -> 2025-06-04 | F378: 2025-06-05 | G378: 2025-06-06 | H378: 2025-06-07 | I378: 2025-06-08
B379: Sem 23
B383: Sem 24 | C383: =I378+1 -> 2025-06-09 | D383: =C383+1 -> 2025-06-10 | E383: =D383+1 -> 2025-06-11 | F383: 2025-06-12 | G383: 2025-06-13 | H383: 2025-06-14 | I383: 2025-06-15
B388: Sem 25 | C388: =I383+1 -> 2025-06-16 | D388: =C388+1 -> 2025-06-17 | E388: =D388+1 -> 2025-06-18 | F388: 2025-06-19 | G388: 2025-06-20 | H388: 2025-06-21 | I388: 2025-06-22
B393: Sem 26 | C393: =I388+1 -> 2025-06-23 | D393: =C393+1 -> 2025-06-24 | E393: =D393+1 -> 2025-06-25 | F393: 2025-06-26 | G393: 2025-06-27 | H393: 2025-06-28 | I393: 2025-06-29
B398: 2025-07-01 | C398: =I393+1 -> 2025-06-30 | D398: =C398+1 -> 2025-07-01 | E398: =D398+1 -> 2025-07-02 | F398: 2025-07-03 | G398: 2025-07-04 | H398: 2025-07-05 | I398: 2025-07-06
B399: Sem 27
B403: Sem 28 | C403: =I398+1 -> 2025-07-07 | D403: =C403+1 -> 2025-07-08 | E403: =D403+1 -> 2025-07-09 | F403: 2025-07-10 | G403: 2025-07-11 | H403: 2025-07-12 | I403: 2025-07-13
B408: Sem 29 | C408: =I403+1 -> 2025-07-14 | D408: =C408+1 -> 2025-07-15 | E408: =D408+1 -> 2025-07-16 | F408: 2025-07-17 | G408: 2025-07-18 | H408: 2025-07-19 | I408: 2025-07-20
B413: Sem 30 | C413: =I408+1 -> 2025-07-21 | D413: =C413+1 -> 2025-07-22 | E413: =D413+1 -> 2025-07-23 | F413: 2025-07-24 | G413: 2025-07-25 | H413: 2025-07-26 | I413: 2025-07-27
B418: Sem 31 | C418: =I413+1 -> 2025-07-28 | D418: =C418+1 -> 2025-07-29 | E418: =D418+1 -> 2025-07-30 | F418: 2025-07-31 | G418: 2025-08-01 | H418: 2025-08-02 | I418: 2025-08-03
B423: 2025-08-01 | C423: =I418+1 -> 2025-08-04 | D423: =C423+1 -> 2025-08-05 | E423: =D423+1 -> 2025-08-06 | F423: 2025-08-07 | G423: 2025-08-08 | H423: 2025-08-09 | I423: 2025-08-10
B424: Sem 32
B428: Sem 33 | C428: =I423+1 -> 2025-08-11 | D428: =C428+1 -> 2025-08-12 | E428: =D428+1 -> 2025-08-13 | F428: 2025-08-14 | G428: 2025-08-15 | H428: 2025-08-16 | I428: 2025-08-17
G429: FESTIVO
B433: Sem 34 | C433: =I428+1 -> 2025-08-18 | D433: =C433+1 -> 2025-08-19 | E433: =D433+1 -> 2025-08-20 | F433: 2025-08-21 | G433: 2025-08-22 | H433: 2025-08-23 | I433: 2025-08-24
B438: Sem 35 | C438: =I433+1 -> 2025-08-25 | D438: =C438+1 -> 2025-08-26 | E438: =D438+1 -> 2025-08-27 | F438: 2025-08-28 | G438: 2025-08-29 | H438: 2025-08-30 | I438: 2025-08-31
B443: 2025-09-01 | C443: =I438+1 -> 2025-09-01 | D443: =C443+1 -> 2025-09-02 | E443: =D443+1 -> 2025-09-03 | F443: 2025-09-04 | G443: 2025-09-05 | H443: 2025-09-06 | I443: 2025-09-07
B444: Sem 36
B448: Sem 37 | C448: =I443+1 -> 2025-09-08 | D448: =C448+1 -> 2025-09-09 | E448: =D448+1 -> 2025-09-10 | F448: 2025-09-11 | G448: 2025-09-12 | H448: 2025-09-13 | I448: 2025-09-14
B453: Sem 38 | C453: =I448+1 -> 2025-09-15 | D453: =C453+1 -> 2025-09-16 | E453: =D453+1 -> 2025-09-17 | F453: 2025-09-18 | G453: 2025-09-19 | H453: 2025-09-20 | I453: 2025-09-21
B458: Sem 39 | C458: =I453+1 -> 2025-09-22 | D458: =C458+1 -> 2025-09-23 | E458: =D458+1 -> 2025-09-24 | F458: 2025-09-25 | G458: 2025-09-26 | H458: 2025-09-27 | I458: 2025-09-28
B463: Sem 40 | C463: =I458+1 -> 2025-09-29 | D463: =C463+1 -> 2025-09-30 | E463: =D463+1 -> 2025-10-01 | F463: 2025-10-02 | G463: 2025-10-03 | H463: 2025-10-04 | I463: 2025-10-05
B468: 2025-10-01 | C468: =I463+1 -> 2025-10-06 | D468: =C468+1 -> 2025-10-07 | E468: =D468+1 -> 2025-10-08 | F468: 2025-10-09 | G468: 2025-10-10 | H468: 2025-10-11 | I468: 2025-10-12
B469: Sem 41 | I469: FESTIVO
B473: Sem 42 | C473: =I468+1 -> 2025-10-13 | D473: =C473+1 -> 2025-10-14 | E473: =D473+1 -> 2025-10-15 | F473: 2025-10-16 | G473: 2025-10-17 | H473: 2025-10-18 | I473: 2025-10-19
B478: Sem 43 | C478: =I473+1 -> 2025-10-20 | D478: =C478+1 -> 2025-10-21 | E478: =D478+1 -> 2025-10-22 | F478: 2025-10-23 | G478: 2025-10-24 | H478: 2025-10-25 | I478: 2025-10-26
B483: Sem 44 | C483: =I478+1 -> 2025-10-27 | D483: =C483+1 -> 2025-10-28 | E483: =D483+1 -> 2025-10-29 | F483: 2025-10-30 | G483: 2025-10-31 | H483: 2025-11-01 | I483: 2025-11-02
H484: FESTIVO
B488: 2025-11-01 | C488: =I483+1 -> 2025-11-03 | D488: =C488+1 -> 2025-11-04 | E488: =D488+1 -> 2025-11-05 | F488: 2025-11-06 | G488: 2025-11-07 | H488: 2025-11-08 | I488: 2025-11-09
B489: Sem 45
B493: Sem 46 | C493: =I488+1 -> 2025-11-10 | D493: =C493+1 -> 2025-11-11 | E493: =D493+1 -> 2025-11-12 | F493: 2025-11-13 | G493: 2025-11-14 | H493: 2025-11-15 | I493: 2025-11-16
C494: FESTIVO
B498: Sem 47 | C498: =I493+1 -> 2025-11-17 | D498: =C498+1 -> 2025-11-18 | E498: =D498+1 -> 2025-11-19 | F498: 2025-11-20 | G498: 2025-11-21 | H498: 2025-11-22 | I498: 2025-11-23
B503: Sem 48 | C503: =I498+1 -> 2025-11-24 | D503: =C503+1 -> 2025-11-25 | E503: =D503+1 -> 2025-11-26 | F503: 2025-11-27 | G503: 2025-11-28 | H503: 2025-11-29 | I503: 2025-11-30
B508: 2025-12-01 | C508: =I503+1 -> 2025-12-01 | D508: =C508+1 -> 2025-12-02 | E508: =D508+1 -> 2025-12-03 | F508: 2025-12-04 | G508: 2025-12-05 | H508: 2025-12-06 | I508: 2025-12-07
B509: Sem 49
B513: Sem 50 | C513: =I508+1 -> 2025-12-08 | D513: =C513+1 -> 2025-12-09 | E513: =D513+1 -> 2025-12-10 | F513: 2025-12-11 | G513: 2025-12-12 | H513: 2025-12-13 | I513: 2025-12-14
B518: Sem 51 | C518: =I513+1 -> 2025-12-15 | D518: =C518+1 -> 2025-12-16 | E518: =D518+1 -> 2025-12-17 | F518: 2025-12-18 | G518: 2025-12-19 | H518: 2025-12-20 | I518: 2025-12-21
B523: Sem 52 | C523: =I518+1 -> 2025-12-22 | D523: =C523+1 -> 2025-12-23 | E523: =D523+1 -> 2025-12-24 | F523: 2025-12-25 | G523: 2025-12-26 | H523: 2025-12-27 | I523: 2025-12-28
E524: Nochebuena | F524: Navidad
B528: 2026-01-01 | C528: =I523+1 -> 2025-12-29 | D528: =C528+1 -> 2025-12-30 | E528: =D528+1 -> 2025-12-31 | F528: 2026-01-01 | G528: 2026-01-02 | H528: 2026-01-03 | I528: 2026-01-04
B529: Sem 1 | E529: Nochevieja | F529: Año Nuevo
B533: Sem 2 | C533: =I528+1 -> 2026-01-05 | D533: =C533+1 -> 2026-01-06 | E533: =D533+1 -> 2026-01-07 | F533: 2026-01-08 | G533: 2026-01-09 | H533: 2026-01-10 | I533: 2026-01-11
D534: Reyes
B538: Sem 3 | C538: =I533+1 -> 2026-01-12 | D538: =C538+1 -> 2026-01-13 | E538: =D538+1 -> 2026-01-14 | F538: 2026-01-15 | G538: 2026-01-16 | H538: 2026-01-17 | I538: 2026-01-18
B543: Sem 4 | C543: =I538+1 -> 2026-01-19 | D543: =C543+1 -> 2026-01-20 | E543: =D543+1 -> 2026-01-21 | F543: 2026-01-22 | G543: 2026-01-23 | H543: 2026-01-24 | I543: 2026-01-25
B548: Sem 5 | C548: =I543+1 -> 2026-01-26 | D548: =C548+1 -> 2026-01-27 | E548: =D548+1 -> 2026-01-28 | F548: 2026-01-29 | G548: 2026-01-30 | H548: 2026-01-31 | I548: 2026-02-01
B553: 2026-02-01 | C553: =I548+1 -> 2026-02-02 | D553: =C553+1 -> 2026-02-03 | E553: =D553+1 -> 2026-02-04 | F553: 2026-02-05 | G553: 2026-02-06 | H553: 2026-02-07 | I553: 2026-02-08
B554: Sem 6
B558: Sem 7 | C558: =I553+1 -> 2026-02-09 | D558: =C558+1 -> 2026-02-10 | E558: =D558+1 -> 2026-02-11 | F558: 2026-02-12 | G558: 2026-02-13 | H558: 2026-02-14 | I558: 2026-02-15
B563: Sem 8 | C563: =I558+1 -> 2026-02-16 | D563: =C563+1 -> 2026-02-17 | E563: =D563+1 -> 2026-02-18 | F563: 2026-02-19 | G563: 2026-02-20 | H563: 2026-02-21 | I563: 2026-02-22
B568: Sem 9 | C568: =I563+1 -> 2026-02-23 | D568: =C568+1 -> 2026-02-24 | E568: =D568+1 -> 2026-02-25 | F568: 2026-02-26 | G568: 2026-02-27 | H568: 2026-02-28 | I568: 2026-03-01
B573: 2026-03-01 | C573: =I568+1 -> 2026-03-02 | D573: =C573+1 -> 2026-03-03 | E573: =D573+1 -> 2026-03-04 | F573: 2026-03-05 | G573: 2026-03-06 | H573: 2026-03-07 | I573: 2026-03-08
B574: Sem 10
B578: Sem 11 | C578: =I573+1 -> 2026-03-09 | D578: =C578+1 -> 2026-03-10 | E578: =D578+1 -> 2026-03-11 | F578: 2026-03-12 | G578: 2026-03-13 | H578: 2026-03-14 | I578: 2026-03-15
B583: Sem 12 | C583: =I578+1 -> 2026-03-16 | D583: =C583+1 -> 2026-03-17 | E583: =D583+1 -> 2026-03-18 | F583: 2026-03-19 | G583: 2026-03-20 | H583: 2026-03-21 | I583: 2026-03-22
B588: Sem 13 | C588: =I583+1 -> 2026-03-23 | D588: =C588+1 -> 2026-03-24 | E588: =D588+1 -> 2026-03-25 | F588: 2026-03-26 | G588: 2026-03-27 | H588: 2026-03-28 | I588: 2026-03-29
B593: 2026-04-01 | C593: =I588+1 -> 2026-03-30 | D593: =C593+1 -> 2026-03-31 | E593: =D593+1 -> 2026-04-01 | F593: 2026-04-02 | G593: 2026-04-03 | H593: 2026-04-04 | I593: 2026-04-05
B594: Sem 14 | F594: Semana Santa | G594: Viernes santo
B598: Sem 15 | C598: =I593+1 -> 2026-04-06 | D598: =C598+1 -> 2026-04-07 | E598: =D598+1 -> 2026-04-08 | F598: 2026-04-09 | G598: 2026-04-10 | H598: 2026-04-11 | I598: 2026-04-12
B603: Sem 16 | C603: =I598+1 -> 2026-04-13 | D603: =C603+1 -> 2026-04-14 | E603: =D603+1 -> 2026-04-15 | F603: 2026-04-16 | G603: 2026-04-17 | H603: 2026-04-18 | I603: 2026-04-19
B608: Sem 17 | C608: =I603+1 -> 2026-04-20 | D608: =C608+1 -> 2026-04-21 | E608: =D608+1 -> 2026-04-22 | F608: 2026-04-23 | G608: 2026-04-24 | H608: 2026-04-25 | I608: 2026-04-26
B613: Sem 18 | C613: =I608+1 -> 2026-04-27 | D613: =C613+1 -> 2026-04-28 | E613: =D613+1 -> 2026-04-29 | F613: 2026-04-30 | G613: 2026-05-01 | H613: 2026-05-02 | I613: 2026-05-03
G614: Festivo
B618: 2026-05-01 | C618: =I613+1 -> 2026-05-04 | D618: =C618+1 -> 2026-05-05 | E618: =D618+1 -> 2026-05-06 | F618: 2026-05-07 | G618: 2026-05-08 | H618: 2026-05-09 | I618: 2026-05-10
B619: Sem 19
B623: Sem 20 | C623: =I618+1 -> 2026-05-11 | D623: =C623+1 -> 2026-05-12 | E623: =D623+1 -> 2026-05-13 | F623: 2026-05-14 | G623: 2026-05-15 | H623: 2026-05-16 | I623: 2026-05-17
B628: Sem 21 | C628: =I623+1 -> 2026-05-18 | D628: =C628+1 -> 2026-05-19 | E628: =D628+1 -> 2026-05-20 | F628: 2026-05-21 | G628: 2026-05-22 | H628: 2026-05-23 | I628: 2026-05-24
B633: Sem 22 | C633: =I628+1 -> 2026-05-25 | D633: =C633+1 -> 2026-05-26 | E633: =D633+1 -> 2026-05-27 | F633: 2026-05-28 | G633: 2026-05-29 | H633: 2026-05-30 | I633: 2026-05-31
B638: 2026-06-01 | C638: =I633+1 -> 2026-06-01 | D638: =C638+1 -> 2026-06-02 | E638: =D638+1 -> 2026-06-03 | F638: 2026-06-04 | G638: 2026-06-05 | H638: 2026-06-06 | I638: 2026-06-07
B639: Sem 23
B643: Sem 24 | C643: =I638+1 -> 2026-06-08 | D643: =C643+1 -> 2026-06-09 | E643: =D643+1 -> 2026-06-10 | F643: 2026-06-11 | G643: 2026-06-12 | H643: 2026-06-13 | I643: 2026-06-14
B648: Sem 25 | C648: =I643+1 -> 2026-06-15 | D648: =C648+1 -> 2026-06-16 | E648: =D648+1 -> 2026-06-17 | F648: 2026-06-18 | G648: 2026-06-19 | H648: 2026-06-20 | I648: 2026-06-21
B653: Sem 26 | C653: =I648+1 -> 2026-06-22 | D653: =C653+1 -> 2026-06-23 | E653: =D653+1 -> 2026-06-24 | F653: 2026-06-25 | G653: 2026-06-26 | H653: 2026-06-27 | I653: 2026-06-28
B658: 2026-07-01 | C658: =I653+1 -> 2026-06-29 | D658: =C658+1 -> 2026-06-30 | E658: =D658+1 -> 2026-07-01 | F658: 2026-07-02 | G658: 2026-07-03 | H658: 2026-07-04 | I658: 2026-07-05
B659: Sem 27
B663: Sem 28 | C663: =I658+1 -> 2026-07-06 | D663: =C663+1 -> 2026-07-07 | E663: =D663+1 -> 2026-07-08 | F663: 2026-07-09 | G663: 2026-07-10 | H663: 2026-07-11 | I663: 2026-07-12
B668: Sem 29 | C668: =I663+1 -> 2026-07-13 | D668: =C668+1 -> 2026-07-14 | E668: =D668+1 -> 2026-07-15 | F668: 2026-07-16 | G668: 2026-07-17 | H668: 2026-07-18 | I668: 2026-07-19
B673: Sem 30 | C673: =I668+1 -> 2026-07-20 | D673: =C673+1 -> 2026-07-21 | E673: =D673+1 -> 2026-07-22 | F673: 2026-07-23 | G673: 2026-07-24 | H673: 2026-07-25 | I673: 2026-07-26
B678: Sem 31 | C678: =I673+1 -> 2026-07-27 | D678: =C678+1 -> 2026-07-28 | E678: =D678+1 -> 2026-07-29 | F678: 2026-07-30 | G678: 2026-07-31 | H678: 2026-08-01 | I678: 2026-08-02
B683: 2026-08-01 | C683: =I678+1 -> 2026-08-03 | D683: =C683+1 -> 2026-08-04 | E683: =D683+1 -> 2026-08-05 | F683: 2026-08-06 | G683: 2026-08-07 | H683: 2026-08-08 | I683: 2026-08-09
B684: Sem 32
B688: Sem 33 | C688: =I683+1 -> 2026-08-10 | D688: =C688+1 -> 2026-08-11 | E688: =D688+1 -> 2026-08-12 | F688: 2026-08-13 | G688: 2026-08-14 | H688: 2026-08-15 | I688: 2026-08-16
H689: FESTIVO
B693: Sem 34 | C693: =I688+1 -> 2026-08-17 | D693: =C693+1 -> 2026-08-18 | E693: =D693+1 -> 2026-08-19 | F693: 2026-08-20 | G693: 2026-08-21 | H693: 2026-08-22 | I693: 2026-08-23
B698: Sem 35 | C698: =I693+1 -> 2026-08-24 | D698: =C698+1 -> 2026-08-25 | E698: =D698+1 -> 2026-08-26 | F698: 2026-08-27 | G698: 2026-08-28 | H698: 2026-08-29 | I698: 2026-08-30
B703: 2026-09-01 | C703: =I698+1 -> 2026-08-31 | D703: =C703+1 -> 2026-09-01 | E703: =D703+1 -> 2026-09-02 | F703: 2026-09-03 | G703: 2026-09-04 | H703: 2026-09-05 | I703: 2026-09-06
B704: Sem 36
B708: Sem 37 | C708: =I703+1 -> 2026-09-07 | D708: =C708+1 -> 2026-09-08 | E708: =D708+1 -> 2026-09-09 | F708: 2026-09-10 | G708: 2026-09-11 | H708: 2026-09-12 | I708: 2026-09-13
B713: Sem 38 | C713: =I708+1 -> 2026-09-14 | D713: =C713+1 -> 2026-09-15 | E713: =D713+1 -> 2026-09-16 | F713: 2026-09-17 | G713: 2026-09-18 | H713: 2026-09-19 | I713: 2026-09-20
B718: Sem 39 | C718: =I713+1 -> 2026-09-21 | D718: =C718+1 -> 2026-09-22 | E718: =D718+1 -> 2026-09-23 | F718: 2026-09-24 | G718: 2026-09-25 | H718: 2026-09-26 | I718: 2026-09-27
B723: Sem 40 | C723: =I718+1 -> 2026-09-28 | D723: =C723+1 -> 2026-09-29 | E723: =D723+1 -> 2026-09-30 | F723: 2026-10-01 | G723: 2026-10-02 | H723: 2026-10-03 | I723: 2026-10-04
... 170 more rows

Sheet Calendario Contrato
B2: Anexo
B3: ='MODELO PPTO.'!H4 -> PROGRAMA:
B4: CALENDARIO PREVISTO PRODUCCIÓN
B6: 2025 | C6: ENE | D6: FEB | E6: MAR | F6: ABR | G6: MAY | H6: JUN | I6: JUL | J6: AGO | K6: SEP | L6: OCT | M6: NOV | N6: DIC
B7: Preproducción
B8: Producción
B9: Postproducción
B10: 1ª Entrega
B12: 2026 | C12: ENE | D12: FEB | E12: MAR | F12: ABR | G12: MAY | H12: JUN | I12: JUL | J12: AGO | K12: SEP | L12: OCT | M12: NOV | N12: DIC
B13: Preproducción
B14: Producción
B15: Postproducción
B16: 1ª Entrega
B18: 2027 | C18: ENE | D18: FEB | E18: MAR | F18: ABR | G18: MAY | H18: JUN | I18: JUL | J18: AGO | K18: SEP | L18: OCT | M18: NOV | N18: DIC
B19: Preproducción
B20: Producción
B21: Postproducción
B22: 1ª Entrega
B24: 2028 | C24: ENE | D24: FEB | E24: MAR | F24: ABR | G24: MAY | H24: JUN | I24: JUL | J24: AGO | K24: SEP | L24: OCT | M24: NOV | N24: DIC
B25: Preproducción
B26: Producción
B27: Postproducción
B28: 1ª Entrega
